Organisation Code,Organisation Label,Effective Date,Organisational Unit,Service Division Label,Category Internal Name,Purpose,Detailed Expenditure Code,Payment Date,Transaction Number,Irrecoverable VAT Amount,Amount,Capital Or Revenue,Benificiary Name,Procurement Card
Http://opendatacommunities.org/id/metropolitan-district-council/leeds,Leeds City Council,30/09/2016,Citizens And Communities,Benefits  Wlefare And Poverty  ,Supplies and Services,Telephones,213,23-Aug-2016,1609-00001,0.00,45.00,R,(Aq) Limited,Yes
Http://opendatacommunities.org/id/metropolitan-district-council/leeds,Leeds City Council,30/09/2016,Childrens Services,Safeguarding Targeted & Specialist,Third Party Payments,Placement Support,550,12-Sep-2016,1609-00002,0.00,2100.00,R,A & A Coach Travel,No
Http://opendatacommunities.org/id/metropolitan-district-council/leeds,Leeds City Council,30/09/2016,Environment & Housing,Housing Leeds Service,Capital,Other Costs,7,01-Sep-2016,1609-00003,0.00,380.00,C,REDACTED PERSONAL DATA,No
Http://opendatacommunities.org/id/metropolitan-district-council/leeds,Leeds City Council,30/09/2016,Childrens Services,Learning Skills & Universal,Third Party Payments,Services Rendered By Other Organisations,511,09-Sep-2016,1609-00004,0.00,1164.00,R,A Clarkson,No
Http://opendatacommunities.org/id/metropolitan-district-council/leeds,Leeds City Council,30/09/2016,Environment & Housing,Parks and Countryside,Supplies and Services,Bought In Professional Services,277,29-Sep-2016,1609-00005,0.00,2251.91,R,REDACTED COMMERCIAL CONFIDENTIALITY,No
Http://opendatacommunities.org/id/metropolitan-district-council/leeds,Leeds City Council,30/09/2016,Childrens Services,Learning Skills & Universal,Third Party Payments,Services Rendered By Voluntary Sector,505,09-Sep-2016,1609-00006,0.00,2444.40,R,A E Speight,No
Http://opendatacommunities.org/id/metropolitan-district-council/leeds,Leeds City Council,30/09/2016,Childrens Services,Learning Skills & Universal,Third Party Payments,Services Rendered By Voluntary Sector,505,14-Sep-2016,1609-00007,0.00,8937.60,R,A E Speight,No
Http://opendatacommunities.org/id/metropolitan-district-council/leeds,Leeds City Council,30/09/2016,Childrens Services,Learning Skills & Universal,Third Party Payments,Services Rendered By Other Organisations,511,14-Sep-2016,1609-00008,0.00,638.40,R,A Foley,No
Http://opendatacommunities.org/id/metropolitan-district-council/leeds,Leeds City Council,30/09/2016,Childrens Services,Learning Skills & Universal,Third Party Payments,Services Rendered By Other Organisations,511,09-Sep-2016,1609-00009,0.00,814.80,R,A Green,No
Http://opendatacommunities.org/id/metropolitan-district-council/leeds,Leeds City Council,30/09/2016,Childrens Services,Learning Skills & Universal,Third Party Payments,Services Rendered By Other Organisations,511,14-Sep-2016,1609-00010,0.00,91.20,R,A Hayes,No
Http://opendatacommunities.org/id/metropolitan-district-council/leeds,Leeds City Council,30/09/2016,Environment & Housing,Leeds Building Services,Supplies and Services,Operational Materials,205,05-Sep-2016,1609-00011,0.00,780.00,R,A J H  Pump Supply & Repair Ltd,No
Http://opendatacommunities.org/id/metropolitan-district-council/leeds,Leeds City Council,30/09/2016,Environment & Housing,Leeds Building Services,Supplies and Services,Operational Materials,205,05-Sep-2016,1609-00012,0.00,24.75,R,A J H  Pump Supply & Repair Ltd,No
Http://opendatacommunities.org/id/metropolitan-district-council/leeds,Leeds City Council,30/09/2016,Environment & Housing,Leeds Building Services,Supplies and Services,Operational Materials,205,05-Sep-2016,1609-00013,0.00,33.59,R,A J H  Pump Supply & Repair Ltd,No
Http://opendatacommunities.org/id/metropolitan-district-council/leeds,Leeds City Council,30/09/2016,Environment & Housing,Leeds Building Services,Supplies and Services,Operational Materials,205,05-Sep-2016,1609-00014,0.00,48.97,R,A J H  Pump Supply & Repair Ltd,No
Http://opendatacommunities.org/id/metropolitan-district-council/leeds,Leeds City Council,30/09/2016,Environment & Housing,Leeds Building Services,Supplies and Services,Operational Materials,205,05-Sep-2016,1609-00015,0.00,86.10,R,A J H  Pump Supply & Repair Ltd,No
Http://opendatacommunities.org/id/metropolitan-district-council/leeds,Leeds City Council,30/09/2016,Environment & Housing,Leeds Building Services,Supplies and Services,Operational Materials,205,05-Sep-2016,1609-00016,0.00,61.67,R,A J H  Pump Supply & Repair Ltd,No
Http://opendatacommunities.org/id/metropolitan-district-council/leeds,Leeds City Council,30/09/2016,Environment & Housing,Leeds Building Services,Supplies and Services,Operational Materials,205,05-Sep-2016,1609-00017,0.00,195.00,R,A J H  Pump Supply & Repair Ltd,No
Http://opendatacommunities.org/id/metropolitan-district-council/leeds,Leeds City Council,30/09/2016,Environment & Housing,Leeds Building Services,Supplies and Services,Operational Materials,205,05-Sep-2016,1609-00018,0.00,38.09,R,A J H  Pump Supply & Repair Ltd,No
Http://opendatacommunities.org/id/metropolitan-district-council/leeds,Leeds City Council,30/09/2016,Environment & Housing,Leeds Building Services,Supplies and Services,Operational Materials,205,05-Sep-2016,1609-00019,0.00,16.03,R,A J H  Pump Supply & Repair Ltd,No
Http://opendatacommunities.org/id/metropolitan-district-council/leeds,Leeds City Council,30/09/2016,Environment & Housing,Leeds Building Services,Supplies and Services,Operational Materials,205,05-Sep-2016,1609-00020,0.00,48.59,R,A J H  Pump Supply & Repair Ltd,No
Http://opendatacommunities.org/id/metropolitan-district-council/leeds,Leeds City Council,30/09/2016,Environment & Housing,Leeds Building Services,Supplies and Services,Operational Materials,205,05-Sep-2016,1609-00021,0.00,96.07,R,A J H  Pump Supply & Repair Ltd,No
Http://opendatacommunities.org/id/metropolitan-district-council/leeds,Leeds City Council,30/09/2016,Environment & Housing,Leeds Building Services,Supplies and Services,Operational Materials,205,05-Sep-2016,1609-00022,0.00,28.00,R,A J H  Pump Supply & Repair Ltd,No
Http://opendatacommunities.org/id/metropolitan-district-council/leeds,Leeds City Council,30/09/2016,Environment & Housing,Leeds Building Services,Supplies and Services,Operational Materials,205,05-Sep-2016,1609-00023,0.00,154.00,R,A J H  Pump Supply & Repair Ltd,No
Http://opendatacommunities.org/id/metropolitan-district-council/leeds,Leeds City Council,30/09/2016,Environment & Housing,Leeds Building Services,Supplies and Services,Operational Materials,205,05-Sep-2016,1609-00024,0.00,33.47,R,A J H  Pump Supply & Repair Ltd,No
Http://opendatacommunities.org/id/metropolitan-district-council/leeds,Leeds City Council,30/09/2016,Environment & Housing,Leeds Building Services,Supplies and Services,Operational Materials,205,05-Sep-2016,1609-00025,0.00,239.62,R,A J H  Pump Supply & Repair Ltd,No
Http://opendatacommunities.org/id/metropolitan-district-council/leeds,Leeds City Council,30/09/2016,Environment & Housing,Leeds Building Services,Supplies and Services,Operational Materials,205,05-Sep-2016,1609-00026,0.00,72.00,R,A J H  Pump Supply & Repair Ltd,No
Http://opendatacommunities.org/id/metropolitan-district-council/leeds,Leeds City Council,30/09/2016,Environment & Housing,Leeds Building Services,Supplies and Services,Operational Materials,205,05-Sep-2016,1609-00027,0.00,135.45,R,A J H  Pump Supply & Repair Ltd,No
Http://opendatacommunities.org/id/metropolitan-district-council/leeds,Leeds City Council,30/09/2016,Environment & Housing,Leeds Building Services,Supplies and Services,Operational Materials,205,05-Sep-2016,1609-00028,0.00,3440.00,R,A J H  Pump Supply & Repair Ltd,No
Http://opendatacommunities.org/id/metropolitan-district-council/leeds,Leeds City Council,30/09/2016,Environment & Housing,Leeds Building Services,Supplies and Services,Operational Materials,205,09-Sep-2016,1609-00029,0.00,476.90,R,A J H  Pump Supply & Repair Ltd,No
Http://opendatacommunities.org/id/metropolitan-district-council/leeds,Leeds City Council,30/09/2016,Environment & Housing,Leeds Building Services,Supplies and Services,Operational Materials,205,09-Sep-2016,1609-00030,0.00,362.00,R,A J H  Pump Supply & Repair Ltd,No
Http://opendatacommunities.org/id/metropolitan-district-council/leeds,Leeds City Council,30/09/2016,Environment & Housing,Leeds Building Services,Supplies and Services,Operational Materials,205,09-Sep-2016,1609-00031,0.00,850.00,R,A J H  Pump Supply & Repair Ltd,No
Http://opendatacommunities.org/id/metropolitan-district-council/leeds,Leeds City Council,30/09/2016,Environment & Housing,Leeds Building Services,Supplies and Services,Operational Materials,205,09-Sep-2016,1609-00032,0.00,1123.00,R,A J H  Pump Supply & Repair Ltd,No
Http://opendatacommunities.org/id/metropolitan-district-council/leeds,Leeds City Council,30/09/2016,Environment & Housing,Leeds Building Services,Supplies and Services,Other Hired And Contracted Services,265,09-Sep-2016,1609-00033,0.00,760.00,R,A J H  Pump Supply & Repair Ltd,No
Http://opendatacommunities.org/id/metropolitan-district-council/leeds,Leeds City Council,30/09/2016,Environment & Housing,Leeds Building Services,Supplies and Services,Operational Materials,205,12-Sep-2016,1609-00034,0.00,54.25,R,A J H  Pump Supply & Repair Ltd,No
Http://opendatacommunities.org/id/metropolitan-district-council/leeds,Leeds City Council,30/09/2016,Environment & Housing,Leeds Building Services,Supplies and Services,Operational Materials,205,12-Sep-2016,1609-00035,0.00,247.20,R,A J H  Pump Supply & Repair Ltd,No
Http://opendatacommunities.org/id/metropolitan-district-council/leeds,Leeds City Council,30/09/2016,Environment & Housing,Leeds Building Services,Supplies and Services,Operational Materials,205,12-Sep-2016,1609-00036,0.00,198.83,R,A J H  Pump Supply & Repair Ltd,No
Http://opendatacommunities.org/id/metropolitan-district-council/leeds,Leeds City Council,30/09/2016,Environment & Housing,Leeds Building Services,Supplies and Services,Operational Materials,205,12-Sep-2016,1609-00037,0.00,450.00,R,A J H  Pump Supply & Repair Ltd,No
Http://opendatacommunities.org/id/metropolitan-district-council/leeds,Leeds City Council,30/09/2016,Environment & Housing,Leeds Building Services,Supplies and Services,Operational Materials,205,12-Sep-2016,1609-00038,0.00,24.10,R,A J H  Pump Supply & Repair Ltd,No
Http://opendatacommunities.org/id/metropolitan-district-council/leeds,Leeds City Council,30/09/2016,Environment & Housing,Leeds Building Services,Supplies and Services,Operational Materials,205,12-Sep-2016,1609-00039,0.00,417.42,R,A J H  Pump Supply & Repair Ltd,No
Http://opendatacommunities.org/id/metropolitan-district-council/leeds,Leeds City Council,30/09/2016,Environment & Housing,Leeds Building Services,Supplies and Services,Operational Materials,205,12-Sep-2016,1609-00040,0.00,44.31,R,A J H  Pump Supply & Repair Ltd,No
Http://opendatacommunities.org/id/metropolitan-district-council/leeds,Leeds City Council,30/09/2016,Environment & Housing,Leeds Building Services,Supplies and Services,Operational Materials,205,12-Sep-2016,1609-00041,0.00,36.42,R,A J H  Pump Supply & Repair Ltd,No
Http://opendatacommunities.org/id/metropolitan-district-council/leeds,Leeds City Council,30/09/2016,Environment & Housing,Leeds Building Services,Supplies and Services,Operational Materials,205,12-Sep-2016,1609-00042,0.00,15.68,R,A J H  Pump Supply & Repair Ltd,No
Http://opendatacommunities.org/id/metropolitan-district-council/leeds,Leeds City Council,30/09/2016,Environment & Housing,Leeds Building Services,Supplies and Services,Operational Materials,205,12-Sep-2016,1609-00043,0.00,109.00,R,A J H  Pump Supply & Repair Ltd,No
Http://opendatacommunities.org/id/metropolitan-district-council/leeds,Leeds City Council,30/09/2016,Environment & Housing,Leeds Building Services,Supplies and Services,Operational Materials,205,12-Sep-2016,1609-00044,0.00,95.53,R,A J H  Pump Supply & Repair Ltd,No
Http://opendatacommunities.org/id/metropolitan-district-council/leeds,Leeds City Council,30/09/2016,Environment & Housing,Leeds Building Services,Supplies and Services,Operational Materials,205,12-Sep-2016,1609-00045,0.00,70.09,R,A J H  Pump Supply & Repair Ltd,No
Http://opendatacommunities.org/id/metropolitan-district-council/leeds,Leeds City Council,30/09/2016,Environment & Housing,Leeds Building Services,Supplies and Services,Operational Materials,205,12-Sep-2016,1609-00046,0.00,228.00,R,A J H  Pump Supply & Repair Ltd,No
Http://opendatacommunities.org/id/metropolitan-district-council/leeds,Leeds City Council,30/09/2016,Environment & Housing,Leeds Building Services,Supplies and Services,Operational Materials,205,12-Sep-2016,1609-00047,0.00,87.29,R,A J H  Pump Supply & Repair Ltd,No
Http://opendatacommunities.org/id/metropolitan-district-council/leeds,Leeds City Council,30/09/2016,Environment & Housing,Leeds Building Services,Supplies and Services,Operational Materials,205,12-Sep-2016,1609-00048,0.00,105.00,R,A J H  Pump Supply & Repair Ltd,No
Http://opendatacommunities.org/id/metropolitan-district-council/leeds,Leeds City Council,30/09/2016,Environment & Housing,Leeds Building Services,Supplies and Services,Operational Materials,205,12-Sep-2016,1609-00049,0.00,184.33,R,A J H  Pump Supply & Repair Ltd,No
Http://opendatacommunities.org/id/metropolitan-district-council/leeds,Leeds City Council,30/09/2016,Environment & Housing,Leeds Building Services,Supplies and Services,Operational Materials,205,12-Sep-2016,1609-00050,0.00,186.00,R,A J H  Pump Supply & Repair Ltd,No
Http://opendatacommunities.org/id/metropolitan-district-council/leeds,Leeds City Council,30/09/2016,Environment & Housing,Leeds Building Services,Supplies and Services,Operational Materials,205,12-Sep-2016,1609-00051,0.00,129.88,R,A J H  Pump Supply & Repair Ltd,No
Http://opendatacommunities.org/id/metropolitan-district-council/leeds,Leeds City Council,30/09/2016,Environment & Housing,Leeds Building Services,Supplies and Services,Operational Materials,205,12-Sep-2016,1609-00052,0.00,169.40,R,A J H  Pump Supply & Repair Ltd,No
Http://opendatacommunities.org/id/metropolitan-district-council/leeds,Leeds City Council,30/09/2016,Environment & Housing,Leeds Building Services,Supplies and Services,Operational Materials,205,12-Sep-2016,1609-00053,0.00,107.95,R,A J H  Pump Supply & Repair Ltd,No
Http://opendatacommunities.org/id/metropolitan-district-council/leeds,Leeds City Council,30/09/2016,Environment & Housing,Leeds Building Services,Supplies and Services,Operational Materials,205,13-Sep-2016,1609-00054,0.00,1733.00,R,A J H  Pump Supply & Repair Ltd,No
Http://opendatacommunities.org/id/metropolitan-district-council/leeds,Leeds City Council,30/09/2016,Environment & Housing,Leeds Building Services,Supplies and Services,Operational Materials,205,16-Sep-2016,1609-00055,0.00,382.00,R,A J H  Pump Supply & Repair Ltd,No
Http://opendatacommunities.org/id/metropolitan-district-council/leeds,Leeds City Council,30/09/2016,Environment & Housing,Leeds Building Services,Supplies and Services,Operational Materials,205,16-Sep-2016,1609-00056,0.00,153.00,R,A J H  Pump Supply & Repair Ltd,No
Http://opendatacommunities.org/id/metropolitan-district-council/leeds,Leeds City Council,30/09/2016,Environment & Housing,Leeds Building Services,Supplies and Services,Operational Materials,205,19-Sep-2016,1609-00057,0.00,603.16,R,A J H  Pump Supply & Repair Ltd,No
Http://opendatacommunities.org/id/metropolitan-district-council/leeds,Leeds City Council,30/09/2016,Environment & Housing,Leeds Building Services,Supplies and Services,Operational Materials,205,20-Sep-2016,1609-00058,0.00,197.93,R,A J H  Pump Supply & Repair Ltd,No
Http://opendatacommunities.org/id/metropolitan-district-council/leeds,Leeds City Council,30/09/2016,Environment & Housing,Leeds Building Services,Supplies and Services,Operational Materials,205,20-Sep-2016,1609-00059,0.00,220.00,R,A J H  Pump Supply & Repair Ltd,No
Http://opendatacommunities.org/id/metropolitan-district-council/leeds,Leeds City Council,30/09/2016,Environment & Housing,Leeds Building Services,Supplies and Services,Other Hired And Contracted Services,265,20-Sep-2016,1609-00060,0.00,181.50,R,A J H  Pump Supply & Repair Ltd,No
Http://opendatacommunities.org/id/metropolitan-district-council/leeds,Leeds City Council,30/09/2016,Environment & Housing,Leeds Building Services,Supplies and Services,Operational Materials,205,20-Sep-2016,1609-00061,0.00,434.07,R,A J H  Pump Supply & Repair Ltd,No
Http://opendatacommunities.org/id/metropolitan-district-council/leeds,Leeds City Council,30/09/2016,Environment & Housing,Leeds Building Services,Supplies and Services,Operational Materials,205,21-Sep-2016,1609-00062,0.00,64.75,R,A J H  Pump Supply & Repair Ltd,No
Http://opendatacommunities.org/id/metropolitan-district-council/leeds,Leeds City Council,30/09/2016,Environment & Housing,Leeds Building Services,Supplies and Services,Operational Materials,205,21-Sep-2016,1609-00063,0.00,392.28,R,A J H  Pump Supply & Repair Ltd,No
Http://opendatacommunities.org/id/metropolitan-district-council/leeds,Leeds City Council,30/09/2016,Environment & Housing,Leeds Building Services,Supplies and Services,Operational Materials,205,21-Sep-2016,1609-00064,0.00,10.50,R,A J H  Pump Supply & Repair Ltd,No
Http://opendatacommunities.org/id/metropolitan-district-council/leeds,Leeds City Council,30/09/2016,Environment & Housing,Leeds Building Services,Supplies and Services,Operational Materials,205,21-Sep-2016,1609-00065,0.00,2009.00,R,A J H  Pump Supply & Repair Ltd,No
Http://opendatacommunities.org/id/metropolitan-district-council/leeds,Leeds City Council,30/09/2016,Environment & Housing,Leeds Building Services,Supplies and Services,Operational Materials,205,21-Sep-2016,1609-00066,0.00,44.77,R,A J H  Pump Supply & Repair Ltd,No
Http://opendatacommunities.org/id/metropolitan-district-council/leeds,Leeds City Council,30/09/2016,Environment & Housing,Leeds Building Services,Supplies and Services,Operational Materials,205,21-Sep-2016,1609-00067,0.00,95.00,R,A J H  Pump Supply & Repair Ltd,No
Http://opendatacommunities.org/id/metropolitan-district-council/leeds,Leeds City Council,30/09/2016,Environment & Housing,Leeds Building Services,Supplies and Services,Operational Materials,205,21-Sep-2016,1609-00068,0.00,28.32,R,A J H  Pump Supply & Repair Ltd,No
Http://opendatacommunities.org/id/metropolitan-district-council/leeds,Leeds City Council,30/09/2016,Environment & Housing,Leeds Building Services,Supplies and Services,Operational Materials,205,21-Sep-2016,1609-00069,0.00,751.71,R,A J H  Pump Supply & Repair Ltd,No
Http://opendatacommunities.org/id/metropolitan-district-council/leeds,Leeds City Council,30/09/2016,Environment & Housing,Leeds Building Services,Supplies and Services,Operational Materials,205,21-Sep-2016,1609-00070,0.00,20.00,R,A J H  Pump Supply & Repair Ltd,No
Http://opendatacommunities.org/id/metropolitan-district-council/leeds,Leeds City Council,30/09/2016,Environment & Housing,Leeds Building Services,Supplies and Services,Operational Materials,205,21-Sep-2016,1609-00071,0.00,51.30,R,A J H  Pump Supply & Repair Ltd,No
Http://opendatacommunities.org/id/metropolitan-district-council/leeds,Leeds City Council,30/09/2016,Environment & Housing,Leeds Building Services,Supplies and Services,Operational Materials,205,21-Sep-2016,1609-00072,0.00,144.00,R,A J H  Pump Supply & Repair Ltd,No
Http://opendatacommunities.org/id/metropolitan-district-council/leeds,Leeds City Council,30/09/2016,Environment & Housing,Leeds Building Services,Supplies and Services,Operational Materials,205,21-Sep-2016,1609-00073,0.00,209.62,R,A J H  Pump Supply & Repair Ltd,No
Http://opendatacommunities.org/id/metropolitan-district-council/leeds,Leeds City Council,30/09/2016,Environment & Housing,Leeds Building Services,Supplies and Services,Operational Materials,205,21-Sep-2016,1609-00074,0.00,56.80,R,A J H  Pump Supply & Repair Ltd,No
Http://opendatacommunities.org/id/metropolitan-district-council/leeds,Leeds City Council,30/09/2016,Environment & Housing,Leeds Building Services,Supplies and Services,Operational Materials,205,21-Sep-2016,1609-00075,0.00,420.00,R,A J H  Pump Supply & Repair Ltd,No
Http://opendatacommunities.org/id/metropolitan-district-council/leeds,Leeds City Council,30/09/2016,Environment & Housing,Leeds Building Services,Supplies and Services,Operational Materials,205,21-Sep-2016,1609-00076,0.00,1440.54,R,A J H  Pump Supply & Repair Ltd,No
Http://opendatacommunities.org/id/metropolitan-district-council/leeds,Leeds City Council,30/09/2016,Environment & Housing,Leeds Building Services,Supplies and Services,Operational Materials,205,21-Sep-2016,1609-00077,0.00,39.67,R,A J H  Pump Supply & Repair Ltd,No
Http://opendatacommunities.org/id/metropolitan-district-council/leeds,Leeds City Council,30/09/2016,Environment & Housing,Leeds Building Services,Supplies and Services,Operational Materials,205,21-Sep-2016,1609-00078,0.00,157.10,R,A J H  Pump Supply & Repair Ltd,No
Http://opendatacommunities.org/id/metropolitan-district-council/leeds,Leeds City Council,30/09/2016,Environment & Housing,Leeds Building Services,Supplies and Services,Operational Materials,205,21-Sep-2016,1609-00079,0.00,48.95,R,A J H  Pump Supply & Repair Ltd,No
Http://opendatacommunities.org/id/metropolitan-district-council/leeds,Leeds City Council,30/09/2016,Environment & Housing,Leeds Building Services,Supplies and Services,Operational Materials,205,21-Sep-2016,1609-00080,0.00,90.28,R,A J H  Pump Supply & Repair Ltd,No
Http://opendatacommunities.org/id/metropolitan-district-council/leeds,Leeds City Council,30/09/2016,Environment & Housing,Leeds Building Services,Supplies and Services,Operational Materials,205,21-Sep-2016,1609-00081,0.00,18.75,R,A J H  Pump Supply & Repair Ltd,No
Http://opendatacommunities.org/id/metropolitan-district-council/leeds,Leeds City Council,30/09/2016,Environment & Housing,Leeds Building Services,Supplies and Services,Operational Materials,205,21-Sep-2016,1609-00082,0.00,14.90,R,A J H  Pump Supply & Repair Ltd,No
Http://opendatacommunities.org/id/metropolitan-district-council/leeds,Leeds City Council,30/09/2016,Environment & Housing,Leeds Building Services,Supplies and Services,Operational Materials,205,21-Sep-2016,1609-00083,0.00,105.00,R,A J H  Pump Supply & Repair Ltd,No
Http://opendatacommunities.org/id/metropolitan-district-council/leeds,Leeds City Council,30/09/2016,Environment & Housing,Leeds Building Services,Supplies and Services,Operational Materials,205,21-Sep-2016,1609-00084,0.00,48.77,R,A J H  Pump Supply & Repair Ltd,No
Http://opendatacommunities.org/id/metropolitan-district-council/leeds,Leeds City Council,30/09/2016,Environment & Housing,Leeds Building Services,Supplies and Services,Operational Materials,205,21-Sep-2016,1609-00085,0.00,38.54,R,A J H  Pump Supply & Repair Ltd,No
Http://opendatacommunities.org/id/metropolitan-district-council/leeds,Leeds City Council,30/09/2016,Environment & Housing,Leeds Building Services,Supplies and Services,Operational Materials,205,21-Sep-2016,1609-00086,0.00,35.00,R,A J H  Pump Supply & Repair Ltd,No
Http://opendatacommunities.org/id/metropolitan-district-council/leeds,Leeds City Council,30/09/2016,Environment & Housing,Leeds Building Services,Supplies and Services,Operational Materials,205,21-Sep-2016,1609-00087,0.00,29.81,R,A J H  Pump Supply & Repair Ltd,No
Http://opendatacommunities.org/id/metropolitan-district-council/leeds,Leeds City Council,30/09/2016,Environment & Housing,Leeds Building Services,Supplies and Services,Operational Materials,205,21-Sep-2016,1609-00088,0.00,328.00,R,A J H  Pump Supply & Repair Ltd,No
Http://opendatacommunities.org/id/metropolitan-district-council/leeds,Leeds City Council,30/09/2016,Environment & Housing,Leeds Building Services,Supplies and Services,Operational Materials,205,21-Sep-2016,1609-00089,0.00,7.95,R,A J H  Pump Supply & Repair Ltd,No
Http://opendatacommunities.org/id/metropolitan-district-council/leeds,Leeds City Council,30/09/2016,Environment & Housing,Leeds Building Services,Supplies and Services,Operational Materials,205,21-Sep-2016,1609-00090,0.00,76.99,R,A J H  Pump Supply & Repair Ltd,No
Http://opendatacommunities.org/id/metropolitan-district-council/leeds,Leeds City Council,30/09/2016,Environment & Housing,Leeds Building Services,Supplies and Services,Operational Materials,205,21-Sep-2016,1609-00091,0.00,396.00,R,A J H  Pump Supply & Repair Ltd,No
Http://opendatacommunities.org/id/metropolitan-district-council/leeds,Leeds City Council,30/09/2016,Environment & Housing,Leeds Building Services,Supplies and Services,Operational Materials,205,21-Sep-2016,1609-00092,0.00,20.71,R,A J H  Pump Supply & Repair Ltd,No
Http://opendatacommunities.org/id/metropolitan-district-council/leeds,Leeds City Council,30/09/2016,Environment & Housing,Leeds Building Services,Supplies and Services,Operational Materials,205,26-Sep-2016,1609-00093,0.00,15.90,R,A J H  Pump Supply & Repair Ltd,No
Http://opendatacommunities.org/id/metropolitan-district-council/leeds,Leeds City Council,30/09/2016,Environment & Housing,Leeds Building Services,Supplies and Services,Other Hired And Contracted Services,265,27-Sep-2016,1609-00094,0.00,852.37,R,A J H  Pump Supply & Repair Ltd,No
Http://opendatacommunities.org/id/metropolitan-district-council/leeds,Leeds City Council,30/09/2016,Environment & Housing,Leeds Building Services,Supplies and Services,Operational Materials,205,27-Sep-2016,1609-00095,0.00,55.71,R,A J H  Pump Supply & Repair Ltd,No
Http://opendatacommunities.org/id/metropolitan-district-council/leeds,Leeds City Council,30/09/2016,Environment & Housing,Leeds Building Services,Supplies and Services,Operational Materials,205,27-Sep-2016,1609-00096,0.00,113.46,R,A J H  Pump Supply & Repair Ltd,No
Http://opendatacommunities.org/id/metropolitan-district-council/leeds,Leeds City Council,30/09/2016,City Development,Libraries  Arts & Heritage,Supplies and Services,Resaleable Materials,204,15-Sep-2016,1609-00097,0.00,8.28,R,A J Promotions,No
Http://opendatacommunities.org/id/metropolitan-district-council/leeds,Leeds City Council,30/09/2016,City Development,Planning & Sustainable Development,Income,Planning Fees,939,08-Sep-2016,1609-00098,0.00,50.00,R,REDACTED PERSONAL DATA,No
Http://opendatacommunities.org/id/metropolitan-district-council/leeds,Leeds City Council,30/09/2016,Childrens Services,Learning Skills & Universal,Third Party Payments,Services Rendered By Other Organisations,511,14-Sep-2016,1609-00099,0.00,3192.00,R,A K Walsh,No
Http://opendatacommunities.org/id/metropolitan-district-council/leeds,Leeds City Council,30/09/2016,Environment & Housing,Streetscene Environmental Services,Income,Penalties  Fines & Car Parking Charges,934,05-Sep-2016,1609-00100,0.00,97.00,R,REDACTED PERSONAL DATA,No
Http://opendatacommunities.org/id/metropolitan-district-council/leeds,Leeds City Council,30/09/2016,Insurance,Insurance,Supplies and Services,Other Hired And Contracted Services,265,13-Sep-2016,1609-00101,0.00,50.00,R,REDACTED PERSONAL DATA,No
Http://opendatacommunities.org/id/metropolitan-district-council/leeds,Leeds City Council,30/09/2016,Public Health,Public Health,Third Party Payments,Public Health Commissioned Services,526,06-Sep-2016,1609-00102,0.00,654.00,R,A Khan & K Muneer,No
Http://opendatacommunities.org/id/metropolitan-district-council/leeds,Leeds City Council,30/09/2016,Childrens Services,Learning Skills & Universal,Third Party Payments,Services Rendered By Other Organisations,511,09-Sep-2016,1609-00103,0.00,180.00,R,A Little Something Extra Ltd,No
Http://opendatacommunities.org/id/metropolitan-district-council/leeds,Leeds City Council,30/09/2016,Childrens Services,Partnership Development & Leadership,Employees,Training & Development,70,09-Sep-2016,1609-00104,0.00,75.00,R,A Little Something Extra Ltd,No
Http://opendatacommunities.org/id/metropolitan-district-council/leeds,Leeds City Council,30/09/2016,Childrens Services,Learning Skills & Universal,Third Party Payments,Services Rendered By Other Organisations,511,09-Sep-2016,1609-00105,0.00,1629.60,R,A Longbottom,No
Http://opendatacommunities.org/id/metropolitan-district-council/leeds,Leeds City Council,30/09/2016,Citizens and Communities,Customer Access,Supplies and Services,Other Hired And Contracted Services,265,01-Sep-2016,1609-00106,0.00,34.50,R,A Mohammed,No
Http://opendatacommunities.org/id/metropolitan-district-council/leeds,Leeds City Council,30/09/2016,Citizens and Communities,Customer Access,Supplies and Services,Other Hired And Contracted Services,265,29-Sep-2016,1609-00107,0.00,98.00,R,A Mohammed,No
Http://opendatacommunities.org/id/metropolitan-district-council/leeds,Leeds City Council,30/09/2016,Citizens and Communities,Customer Access,Supplies and Services,Other Hired And Contracted Services,265,01-Sep-2016,1609-00108,0.00,57.88,R,A Musalam,No
Http://opendatacommunities.org/id/metropolitan-district-council/leeds,Leeds City Council,30/09/2016,Citizens and Communities,Customer Access,Supplies and Services,Other Hired And Contracted Services,265,05-Sep-2016,1609-00109,0.00,328.00,R,A Namaki,No
Http://opendatacommunities.org/id/metropolitan-district-council/leeds,Leeds City Council,30/09/2016,Environment & Housing,Parks and Countryside,Supplies and Services,Operational Materials,205,07-Sep-2016,1609-00110,0.00,384.00,R,A Newton,No
Http://opendatacommunities.org/id/metropolitan-district-council/leeds,Leeds City Council,30/09/2016,Public Health,Public Health,Third Party Payments,Public Health Commissioned Services,526,21-Sep-2016,1609-00111,0.00,3875.75,R,A P Health,No
Http://opendatacommunities.org/id/metropolitan-district-council/leeds,Leeds City Council,30/09/2016,Public Health,Public Health,Third Party Payments,Public Health Commissioned Services,526,06-Sep-2016,1609-00112,0.00,46.00,R,REDACTED PERSONAL DATA,No
Http://opendatacommunities.org/id/metropolitan-district-council/leeds,Leeds City Council,30/09/2016,Environment & Housing,Environmental Health,Capital,Construction,3,29-Sep-2016,1609-00113,0.00,25400.00,C,A S Builders,No
Http://opendatacommunities.org/id/metropolitan-district-council/leeds,Leeds City Council,30/09/2016,City Development,Libraries  Arts & Heritage,Supplies and Services,Books & Audio-Visual Materials,206,02-Sep-2016,1609-00114,0.00,150.22,R,A S Jhagra,No
Http://opendatacommunities.org/id/metropolitan-district-council/leeds,Leeds City Council,30/09/2016,Environment & Housing,Housing Leeds Service,Capital,Other Costs,7,08-Sep-2016,1609-00115,0.00,240.00,C,REDACTED PERSONAL DATA,No
Http://opendatacommunities.org/id/metropolitan-district-council/leeds,Leeds City Council,30/09/2016,Civic Enterprise Leeds,Business Support Centre,Supplies and Services,Other Hired And Contracted Services,265,08-Sep-2016,1609-00116,0.00,46.00,R,A Star Couriers Ltd,No
Http://opendatacommunities.org/id/metropolitan-district-council/leeds,Leeds City Council,30/09/2016,Civic Enterprise Leeds,Business Support Centre,Supplies and Services,Other Hired And Contracted Services,265,23-Sep-2016,1609-00117,0.00,46.25,R,A Star Couriers Ltd,No
Http://opendatacommunities.org/id/metropolitan-district-council/leeds,Leeds City Council,30/09/2016,Civic Enterprise Leeds,Business Support Centre,Supplies and Services,Other Hired And Contracted Services,265,28-Sep-2016,1609-00118,0.00,35.00,R,A Star Couriers Ltd,No
Http://opendatacommunities.org/id/metropolitan-district-council/leeds,Leeds City Council,30/09/2016,Childrens Services,Safeguarding Targeted & Specialist,Third Party Payments,Allowances,546,22-Sep-2016,1609-00119,0.00,500.00,R,REDACTED PERSONAL DATA,No
Http://opendatacommunities.org/id/metropolitan-district-council/leeds,Leeds City Council,30/09/2016,Childrens Services,Learning Skills & Universal,Third Party Payments,Services Rendered By Other Organisations,511,14-Sep-2016,1609-00120,0.00,766.08,R,A Walding,No
Http://opendatacommunities.org/id/metropolitan-district-council/leeds,Leeds City Council,30/09/2016,Environment & Housing,Housing Leeds Service,Capital,Other Costs,7,15-Sep-2016,1609-00121,0.00,350.00,C,REDACTED PERSONAL DATA,No
Http://opendatacommunities.org/id/metropolitan-district-council/leeds,Leeds City Council,30/09/2016,City Development,Recreation,Income,Swimming Bath Charges,923,15-Sep-2016,1609-00122,0.00,41.40,R,REDACTED PERSONAL DATA,No
Http://opendatacommunities.org/id/metropolitan-district-council/leeds,Leeds City Council,30/09/2016,Citizens and Communities,Customer Access,Supplies and Services,Other Hired And Contracted Services,265,05-Sep-2016,1609-00123,0.00,161.06,R,A Zeir,No
Http://opendatacommunities.org/id/metropolitan-district-council/leeds,Leeds City Council,30/09/2016,Environment & Housing,Waste Management,Supplies and Services,Operational Furniture And Equipment,203,09-Sep-2016,1609-00124,0.00,10502.50,R,A&C Weber Uk Ltd,No
Http://opendatacommunities.org/id/metropolitan-district-council/leeds,Leeds City Council,30/09/2016,Public Health,Public Health,Third Party Payments,Public Health Commissioned Services,526,05-Sep-2016,1609-00125,0.00,16.24,R,Aaa Healthcare Ltd,No
Http://opendatacommunities.org/id/metropolitan-district-council/leeds,Leeds City Council,30/09/2016,Public Health,Public Health,Third Party Payments,Public Health Commissioned Services,526,21-Sep-2016,1609-00126,0.00,237.00,R,Aaa Healthcare Ltd,No
Http://opendatacommunities.org/id/metropolitan-district-council/leeds,Leeds City Council,30/09/2016,Public Health,Public Health,Third Party Payments,Public Health Commissioned Services,526,27-Sep-2016,1609-00127,0.00,38.42,R,Aaa Healthcare Ltd,No
Http://opendatacommunities.org/id/metropolitan-district-council/leeds,Leeds City Council,30/09/2016,Childrens Services,Safeguarding Targeted & Specialist,Support Services,Legal Disbursements,411,07-Sep-2016,1609-00128,0.00,31.02,R,Abacus Express Limited,No
Http://opendatacommunities.org/id/metropolitan-district-council/leeds,Leeds City Council,30/09/2016,Childrens Services,Safeguarding Targeted & Specialist,Support Services,Legal Disbursements,411,07-Sep-2016,1609-00129,0.00,17.74,R,Abacus Express Limited,No
Http://opendatacommunities.org/id/metropolitan-district-council/leeds,Leeds City Council,30/09/2016,Childrens Services,Safeguarding Targeted & Specialist,Support Services,Legal Disbursements,411,08-Sep-2016,1609-00130,0.00,16.66,R,Abacus Express Limited,No
Http://opendatacommunities.org/id/metropolitan-district-council/leeds,Leeds City Council,30/09/2016,Childrens Services,Safeguarding Targeted & Specialist,Support Services,Legal Disbursements,411,15-Sep-2016,1609-00131,0.00,31.02,R,Abacus Express Limited,No
Http://opendatacommunities.org/id/metropolitan-district-council/leeds,Leeds City Council,30/09/2016,Childrens Services,Safeguarding Targeted & Specialist,Support Services,Legal Disbursements,411,19-Sep-2016,1609-00132,0.00,31.02,R,Abacus Express Limited,No
Http://opendatacommunities.org/id/metropolitan-district-council/leeds,Leeds City Council,30/09/2016,Childrens Services,Safeguarding Targeted & Specialist,Support Services,Legal Disbursements,411,21-Sep-2016,1609-00133,0.00,17.74,R,Abacus Express Limited,No
Http://opendatacommunities.org/id/metropolitan-district-council/leeds,Leeds City Council,30/09/2016,Childrens Services,Safeguarding Targeted & Specialist,Support Services,Legal Disbursements,411,23-Sep-2016,1609-00134,0.00,15.59,R,Abacus Express Limited,No
Http://opendatacommunities.org/id/metropolitan-district-council/leeds,Leeds City Council,30/09/2016,Civic Enterprise Leeds,Business Support Centre,Supplies and Services,Computer Software & Equipment,214,30-Sep-2016,1609-00135,0.00,7950.00,R,Abacus Software Ltd,No
Http://opendatacommunities.org/id/metropolitan-district-council/leeds,Leeds City Council,30/09/2016,Adult Social Care,Services For Older People - 65 And Over,Third Party Payments,Nursing Care Dementia,574,21-Sep-2016,1609-00136,0.00,1556.00,R,Abbendon Nursing Home,No
Http://opendatacommunities.org/id/metropolitan-district-council/leeds,Leeds City Council,30/09/2016,Public Health,Public Health,Third Party Payments,Public Health Commissioned Services,526,06-Sep-2016,1609-00137,0.00,3675.57,R,Abbey Grange Medical Practice,No
Http://opendatacommunities.org/id/metropolitan-district-council/leeds,Leeds City Council,30/09/2016,Adult Social Care,Services For Older People - 65 And Over,Third Party Payments,Home Care,568,02-Sep-2016,1609-00138,0.00,1555.13,R,Abbeyfield The Dales Limited,No
Http://opendatacommunities.org/id/metropolitan-district-council/leeds,Leeds City Council,30/09/2016,Childrens Services,Learning Skills & Universal,Third Party Payments,Services Rendered By Other Organisations,511,09-Sep-2016,1609-00139,0.00,4888.80,R,Abc Daycare And Ozone Out Of School,No
Http://opendatacommunities.org/id/metropolitan-district-council/leeds,Leeds City Council,30/09/2016,Childrens Services,Learning Skills & Universal,Third Party Payments,Services Rendered By Other Organisations,511,14-Sep-2016,1609-00140,0.00,5472.00,R,Abc Daycare And Ozone Out Of School,No
Http://opendatacommunities.org/id/metropolitan-district-council/leeds,Leeds City Council,30/09/2016,Childrens Services,Learning Skills & Universal,Third Party Payments,Services Rendered By Other Organisations,511,09-Sep-2016,1609-00141,0.00,4074.00,R,Abc Nursery At Lufc,No
Http://opendatacommunities.org/id/metropolitan-district-council/leeds,Leeds City Council,30/09/2016,Childrens Services,Learning Skills & Universal,Third Party Payments,Services Rendered By Other Organisations,511,14-Sep-2016,1609-00142,0.00,11491.20,R,Abc Nursery At Lufc,No
Http://opendatacommunities.org/id/metropolitan-district-council/leeds,Leeds City Council,30/09/2016,Childrens Services,Learning Skills & Universal,Third Party Payments,Services Rendered By Other Organisations,511,09-Sep-2016,1609-00143,0.00,1629.60,R,Abc@D'S Childcare Services,No
Http://opendatacommunities.org/id/metropolitan-district-council/leeds,Leeds City Council,30/09/2016,Childrens Services,Learning Skills & Universal,Third Party Payments,Services Rendered By Other Organisations,511,14-Sep-2016,1609-00144,0.00,638.40,R,Abc@D'S Childcare Services,No
Http://opendatacommunities.org/id/metropolitan-district-council/leeds,Leeds City Council,30/09/2016,Citizens and Communities,Customer Access,Supplies and Services,Other Hired And Contracted Services,265,05-Sep-2016,1609-00145,0.00,23.50,R,Abdul Wadood Kazizadha,No
Http://opendatacommunities.org/id/metropolitan-district-council/leeds,Leeds City Council,30/09/2016,Adult Social Care,Services For Older People - 65 And Over,Third Party Payments,Residential,580,01-Sep-2016,1609-00146,0.00,12948.64,R,Aberford Hall,No
Http://opendatacommunities.org/id/metropolitan-district-council/leeds,Leeds City Council,30/09/2016,Adult Social Care,Services For Older People - 65 And Over,Third Party Payments,Nursing Home,570,21-Sep-2016,1609-00147,0.00,30500.62,R,Aberford Hall,No
Http://opendatacommunities.org/id/metropolitan-district-council/leeds,Leeds City Council,30/09/2016,Adult Social Care,Services For Older People - 65 And Over,Third Party Payments,Nursing Care Dementia,574,21-Sep-2016,1609-00148,0.00,1501.20,R,Aberford Hall,No
Http://opendatacommunities.org/id/metropolitan-district-council/leeds,Leeds City Council,30/09/2016,Adult Social Care,Services For Older People - 65 And Over,Third Party Payments,Residential,580,21-Sep-2016,1609-00149,0.00,6365.64,R,Aberford Hall,No
Http://opendatacommunities.org/id/metropolitan-district-council/leeds,Leeds City Council,30/09/2016,Environment & Housing,Leeds Building Services,Supplies and Services,Operational Materials,205,12-Sep-2016,1609-00150,0.00,225.00,R,Abi Garage Doors Ltd,No
Http://opendatacommunities.org/id/metropolitan-district-council/leeds,Leeds City Council,30/09/2016,Environment & Housing,Leeds Building Services,Supplies and Services,Operational Materials,205,30-Sep-2016,1609-00151,0.00,12.00,R,Abi Garage Doors Ltd,No
Http://opendatacommunities.org/id/metropolitan-district-council/leeds,Leeds City Council,30/09/2016,Citizens and Communities,Elections  Licensing and Registration,Income,Admissions  Booking Fees & Ticket Sales,933,01-Sep-2016,1609-00152,0.00,30.00,R,Abid Hussain,No
Http://opendatacommunities.org/id/metropolitan-district-council/leeds,Leeds City Council,30/09/2016,Central & Corporate,Human Resources,Employees,Occupational Health,85,22-Sep-2016,1609-00153,0.00,40.00,R,Abie Hector-Goma,No
Http://opendatacommunities.org/id/metropolitan-district-council/leeds,Leeds City Council,30/09/2016,Adult Social Care,Services For Older People Under 65 P/Dis,Third Party Payments,Residential,580,15-Sep-2016,1609-00154,0.00,3084.00,R,Able Community Care Ltd,No
Http://opendatacommunities.org/id/metropolitan-district-council/leeds,Leeds City Council,30/09/2016,Childrens Services,Safeguarding Targeted & Specialist  ,Supplies and Services,Food & Drink,231,02-Aug-2016,1609-00155,0.00,9.10,R,Abu Bakar,Yes
Http://opendatacommunities.org/id/metropolitan-district-council/leeds,Leeds City Council,30/09/2016,Childrens Services,Safeguarding Targeted & Specialist  ,Supplies and Services,Food & Drink,231,02-Aug-2016,1609-00156,0.00,9.05,R,Abu Bakar,Yes
Http://opendatacommunities.org/id/metropolitan-district-council/leeds,Leeds City Council,30/09/2016,Childrens Services,Safeguarding Targeted & Specialist,Employees,Agency Staff,8,02-Sep-2016,1609-00157,0.00,1071.10,R,Academic Appointments Ltd,No
Http://opendatacommunities.org/id/metropolitan-district-council/leeds,Leeds City Council,30/09/2016,Childrens Services,Safeguarding Targeted & Specialist,Employees,Agency Staff,8,09-Sep-2016,1609-00158,0.00,2662.50,R,Academic Appointments Ltd,No
Http://opendatacommunities.org/id/metropolitan-district-council/leeds,Leeds City Council,30/09/2016,Childrens Services,Safeguarding Targeted & Specialist,Employees,Agency Staff,8,09-Sep-2016,1609-00159,0.00,213.05,R,Academic Appointments Ltd,No
Http://opendatacommunities.org/id/metropolitan-district-council/leeds,Leeds City Council,30/09/2016,Childrens Services,Learning Skills & Universal,Employees,Basic Pay,1,14-Sep-2016,1609-00160,0.00,3472.00,R,Academic Appointments Ltd,No
Http://opendatacommunities.org/id/metropolitan-district-council/leeds,Leeds City Council,30/09/2016,Childrens Services,Safeguarding Targeted & Specialist,Employees,Agency Staff,8,16-Sep-2016,1609-00161,0.00,363.10,R,Academic Appointments Ltd,No
Http://opendatacommunities.org/id/metropolitan-district-council/leeds,Leeds City Council,30/09/2016,Childrens Services,Safeguarding Targeted & Specialist,Employees,Agency Staff,8,30-Sep-2016,1609-00162,0.00,360.85,R,Academic Appointments Ltd,No
Http://opendatacommunities.org/id/metropolitan-district-council/leeds,Leeds City Council,30/09/2016,Environment & Housing,Community Safety,Transport,Hire Of Movable Plant & Machinery,315,16-Sep-2016,1609-00163,0.00,152.80,R,Access Hire Nationwide Ltd,No
Http://opendatacommunities.org/id/metropolitan-district-council/leeds,Leeds City Council,30/09/2016,Environment & Housing,Community Safety,Transport,Hire Of Movable Plant & Machinery,315,23-Sep-2016,1609-00164,0.00,1350.71,R,Access Hire Nationwide Ltd,No
Http://opendatacommunities.org/id/metropolitan-district-council/leeds,Leeds City Council,30/09/2016,Civic Enterprise Leeds,Commercial Services  ,Supplies and Services,Operational Materials,205,03-Aug-2016,1609-00165,0.00,4.40,R,Access Locksmiths,Yes
Http://opendatacommunities.org/id/metropolitan-district-council/leeds,Leeds City Council,30/09/2016,Childrens Services,Learning Skills & Universal  ,Supplies and Services,Teaching Materials,202,24-Aug-2016,1609-00166,0.00,9.29,R,Access Locksmiths,Yes
Http://opendatacommunities.org/id/metropolitan-district-council/leeds,Leeds City Council,30/09/2016,Environment & Housing,Parks And Countryside  ,Supplies and Services,Operational Materials,205,30-Aug-2016,1609-00167,0.00,6.25,R,Access Locksmiths,Yes
Http://opendatacommunities.org/id/metropolitan-district-council/leeds,Leeds City Council,30/09/2016,Strategic Landlord,Property and Contracts,Premises,General Maintenance,104,15-Sep-2016,1609-00168,0.00,102.42,R,Access Locksmiths (Leeds) Limited,No
Http://opendatacommunities.org/id/metropolitan-district-council/leeds,Leeds City Council,30/09/2016,Strategic Landlord,Property and Contracts,Premises,General Maintenance,104,15-Sep-2016,1609-00169,0.00,371.00,R,Access Locksmiths (Leeds) Limited,No
Http://opendatacommunities.org/id/metropolitan-district-council/leeds,Leeds City Council,30/09/2016,Strategic Landlord,Property and Contracts,Premises,General Maintenance,104,15-Sep-2016,1609-00170,0.00,77.10,R,Access Locksmiths (Leeds) Limited,No
Http://opendatacommunities.org/id/metropolitan-district-council/leeds,Leeds City Council,30/09/2016,Strategic Landlord,Property and Contracts,Premises,General Maintenance,104,15-Sep-2016,1609-00171,0.00,732.60,R,Access Locksmiths (Leeds) Limited,No
Http://opendatacommunities.org/id/metropolitan-district-council/leeds,Leeds City Council,30/09/2016,Strategic Landlord,Property and Contracts,Premises,General Maintenance,104,15-Sep-2016,1609-00172,0.00,92.15,R,Access Locksmiths (Leeds) Limited,No
Http://opendatacommunities.org/id/metropolitan-district-council/leeds,Leeds City Council,30/09/2016,Strategic Landlord,Housing Management,Supplies and Services,Operational Materials,205,16-Sep-2016,1609-00173,0.00,13.50,R,Access Locksmiths (Leeds) Limited,No
Http://opendatacommunities.org/id/metropolitan-district-council/leeds,Leeds City Council,30/09/2016,Strategic Landlord,Housing Management,Supplies and Services,Operational Materials,205,16-Sep-2016,1609-00174,0.00,72.00,R,Access Locksmiths (Leeds) Limited,No
Http://opendatacommunities.org/id/metropolitan-district-council/leeds,Leeds City Council,30/09/2016,Strategic Landlord,Property and Contracts,Premises,General Maintenance,104,16-Sep-2016,1609-00175,0.00,16.43,R,Access Locksmiths (Leeds) Limited,No
Http://opendatacommunities.org/id/metropolitan-district-council/leeds,Leeds City Council,30/09/2016,Strategic Landlord,Housing Management,Premises,General Maintenance,104,16-Sep-2016,1609-00176,0.00,207.40,R,Access Locksmiths (Leeds) Limited,No
Http://opendatacommunities.org/id/metropolitan-district-council/leeds,Leeds City Council,30/09/2016,Strategic Landlord,Housing Management,Premises,General Maintenance,104,16-Sep-2016,1609-00177,0.00,51.85,R,Access Locksmiths (Leeds) Limited,No
Http://opendatacommunities.org/id/metropolitan-district-council/leeds,Leeds City Council,30/09/2016,Strategic Landlord,Housing Management,Premises,General Maintenance,104,16-Sep-2016,1609-00178,0.00,7.50,R,Access Locksmiths (Leeds) Limited,No
Http://opendatacommunities.org/id/metropolitan-district-council/leeds,Leeds City Council,30/09/2016,Environment & Housing,Parks and Countryside,Supplies and Services,Operational Materials,205,16-Sep-2016,1609-00179,0.00,312.60,R,Access Locksmiths (Leeds) Limited,No
Http://opendatacommunities.org/id/metropolitan-district-council/leeds,Leeds City Council,30/09/2016,Environment & Housing,Environmental Action (East North East),Supplies and Services,Operational Furniture And Equipment,203,16-Sep-2016,1609-00180,0.00,47.10,R,Access Locksmiths (Leeds) Limited,No
Http://opendatacommunities.org/id/metropolitan-district-council/leeds,Leeds City Council,30/09/2016,Strategic Landlord,Housing Management,Supplies and Services,Operational Materials,205,16-Sep-2016,1609-00181,0.00,5.00,R,Access Locksmiths (Leeds) Limited,No
Http://opendatacommunities.org/id/metropolitan-district-council/leeds,Leeds City Council,30/09/2016,Strategic Landlord,Housing Management,Premises,General Maintenance,104,16-Sep-2016,1609-00182,0.00,103.70,R,Access Locksmiths (Leeds) Limited,No
Http://opendatacommunities.org/id/metropolitan-district-council/leeds,Leeds City Council,30/09/2016,Strategic Landlord,Housing Management,Premises,General Maintenance,104,16-Sep-2016,1609-00183,0.00,103.70,R,Access Locksmiths (Leeds) Limited,No
Http://opendatacommunities.org/id/metropolitan-district-council/leeds,Leeds City Council,30/09/2016,Environment & Housing,Leeds Building Services,Supplies and Services,Operational Materials,205,21-Sep-2016,1609-00184,0.00,19.33,R,Access Locksmiths (Leeds) Limited,No
Http://opendatacommunities.org/id/metropolitan-district-council/leeds,Leeds City Council,30/09/2016,Environment & Housing,Leeds Building Services,Supplies and Services,Operational Materials,205,21-Sep-2016,1609-00185,0.00,10.78,R,Access Locksmiths (Leeds) Limited,No
Http://opendatacommunities.org/id/metropolitan-district-council/leeds,Leeds City Council,30/09/2016,Environment & Housing,Leeds Building Services,Supplies and Services,Operational Materials,205,21-Sep-2016,1609-00186,0.00,15.30,R,Access Locksmiths (Leeds) Limited,No
Http://opendatacommunities.org/id/metropolitan-district-council/leeds,Leeds City Council,30/09/2016,Environment & Housing,Leeds Building Services,Supplies and Services,Operational Materials,205,21-Sep-2016,1609-00187,0.00,49.28,R,Access Locksmiths (Leeds) Limited,No
Http://opendatacommunities.org/id/metropolitan-district-council/leeds,Leeds City Council,30/09/2016,Environment & Housing,Leeds Building Services,Supplies and Services,Operational Materials,205,21-Sep-2016,1609-00188,0.00,18.00,R,Access Locksmiths (Leeds) Limited,No
Http://opendatacommunities.org/id/metropolitan-district-council/leeds,Leeds City Council,30/09/2016,Environment & Housing,Leeds Building Services,Supplies and Services,Operational Materials,205,21-Sep-2016,1609-00189,0.00,11.34,R,Access Locksmiths (Leeds) Limited,No
Http://opendatacommunities.org/id/metropolitan-district-council/leeds,Leeds City Council,30/09/2016,Environment & Housing,Leeds Building Services,Supplies and Services,Operational Materials,205,21-Sep-2016,1609-00190,0.00,55.39,R,Access Locksmiths (Leeds) Limited,No
Http://opendatacommunities.org/id/metropolitan-district-council/leeds,Leeds City Council,30/09/2016,Environment & Housing,Leeds Building Services,Supplies and Services,Operational Materials,205,21-Sep-2016,1609-00191,0.00,15.75,R,Access Locksmiths (Leeds) Limited,No
Http://opendatacommunities.org/id/metropolitan-district-council/leeds,Leeds City Council,30/09/2016,Environment & Housing,Leeds Building Services,Supplies and Services,Operational Materials,205,21-Sep-2016,1609-00192,0.00,13.00,R,Access Locksmiths (Leeds) Limited,No
Http://opendatacommunities.org/id/metropolitan-district-council/leeds,Leeds City Council,30/09/2016,Environment & Housing,Leeds Building Services,Supplies and Services,Operational Materials,205,21-Sep-2016,1609-00193,0.00,17.82,R,Access Locksmiths (Leeds) Limited,No
Http://opendatacommunities.org/id/metropolitan-district-council/leeds,Leeds City Council,30/09/2016,Environment & Housing,Leeds Building Services,Supplies and Services,Operational Materials,205,21-Sep-2016,1609-00194,0.00,17.78,R,Access Locksmiths (Leeds) Limited,No
Http://opendatacommunities.org/id/metropolitan-district-council/leeds,Leeds City Council,30/09/2016,Environment & Housing,Leeds Building Services,Supplies and Services,Operational Materials,205,21-Sep-2016,1609-00195,0.00,187.76,R,Access Locksmiths (Leeds) Limited,No
Http://opendatacommunities.org/id/metropolitan-district-council/leeds,Leeds City Council,30/09/2016,Environment & Housing,Leeds Building Services,Supplies and Services,Operational Materials,205,21-Sep-2016,1609-00196,0.00,10.37,R,Access Locksmiths (Leeds) Limited,No
Http://opendatacommunities.org/id/metropolitan-district-council/leeds,Leeds City Council,30/09/2016,Strategic Landlord,Property and Contracts,Premises,General Maintenance,104,23-Sep-2016,1609-00197,0.00,34.14,R,Access Locksmiths (Leeds) Limited,No
Http://opendatacommunities.org/id/metropolitan-district-council/leeds,Leeds City Council,30/09/2016,Strategic Landlord,Property and Contracts,Premises,General Maintenance,104,23-Sep-2016,1609-00198,0.00,41.70,R,Access Locksmiths (Leeds) Limited,No
Http://opendatacommunities.org/id/metropolitan-district-council/leeds,Leeds City Council,30/09/2016,Environment & Housing,Leeds Building Services,Supplies and Services,Operational Materials,205,26-Sep-2016,1609-00199,0.00,22.50,R,Access Locksmiths (Leeds) Limited,No
Http://opendatacommunities.org/id/metropolitan-district-council/leeds,Leeds City Council,30/09/2016,Environment & Housing,Leeds Building Services,Supplies and Services,Operational Materials,205,26-Sep-2016,1609-00200,0.00,63.04,R,Access Locksmiths (Leeds) Limited,No
Http://opendatacommunities.org/id/metropolitan-district-council/leeds,Leeds City Council,30/09/2016,Environment & Housing,Leeds Building Services,Supplies and Services,Operational Materials,205,26-Sep-2016,1609-00201,0.00,13.86,R,Access Locksmiths (Leeds) Limited,No
Http://opendatacommunities.org/id/metropolitan-district-council/leeds,Leeds City Council,30/09/2016,Environment & Housing,Leeds Building Services,Supplies and Services,Operational Materials,205,26-Sep-2016,1609-00202,0.00,7.61,R,Access Locksmiths (Leeds) Limited,No
Http://opendatacommunities.org/id/metropolitan-district-council/leeds,Leeds City Council,30/09/2016,Strategic Landlord,Property and Contracts,Supplies and Services,Clothing & Uniforms,241,30-Sep-2016,1609-00203,0.00,79.79,R,Access Locksmiths (Leeds) Limited,No
Http://opendatacommunities.org/id/metropolitan-district-council/leeds,Leeds City Council,30/09/2016,Strategic Landlord,Housing Management,Supplies and Services,Operational Materials,205,30-Sep-2016,1609-00204,0.00,11.14,R,Access Locksmiths (Leeds) Limited,No
Http://opendatacommunities.org/id/metropolitan-district-council/leeds,Leeds City Council,30/09/2016,City Development,Libraries  Arts & Heritage,Supplies and Services,Bought In Professional Services,277,15-Sep-2016,1609-00205,0.00,1000.00,R,Access Moving Image Ltd,No
Http://opendatacommunities.org/id/metropolitan-district-council/leeds,Leeds City Council,30/09/2016,Environment & Housing,Leeds Building Services,Supplies and Services,Operational Materials,205,07-Sep-2016,1609-00206,0.00,85.00,R,Access Opening Systems Limited,No
Http://opendatacommunities.org/id/metropolitan-district-council/leeds,Leeds City Council,30/09/2016,Environment & Housing,Leeds Building Services,Supplies and Services,Operational Materials,205,08-Sep-2016,1609-00207,0.00,284.10,R,Access Opening Systems Limited,No
Http://opendatacommunities.org/id/metropolitan-district-council/leeds,Leeds City Council,30/09/2016,Environment & Housing,Leeds Building Services,Supplies and Services,Other Hired And Contracted Services,265,09-Sep-2016,1609-00208,0.00,85.00,R,Access Opening Systems Limited,No
Http://opendatacommunities.org/id/metropolitan-district-council/leeds,Leeds City Council,30/09/2016,Environment & Housing,Leeds Building Services,Supplies and Services,Other Hired And Contracted Services,265,09-Sep-2016,1609-00209,0.00,313.44,R,Access Opening Systems Limited,No
Http://opendatacommunities.org/id/metropolitan-district-council/leeds,Leeds City Council,30/09/2016,Environment & Housing,Leeds Building Services,Supplies and Services,Other Hired And Contracted Services,265,09-Sep-2016,1609-00210,0.00,280.25,R,Access Opening Systems Limited,No
Http://opendatacommunities.org/id/metropolitan-district-council/leeds,Leeds City Council,30/09/2016,Environment & Housing,Leeds Building Services,Supplies and Services,Other Hired And Contracted Services,265,09-Sep-2016,1609-00211,0.00,85.00,R,Access Opening Systems Limited,No
Http://opendatacommunities.org/id/metropolitan-district-council/leeds,Leeds City Council,30/09/2016,Environment & Housing,Leeds Building Services,Supplies and Services,Other Hired And Contracted Services,265,09-Sep-2016,1609-00212,0.00,85.00,R,Access Opening Systems Limited,No
Http://opendatacommunities.org/id/metropolitan-district-council/leeds,Leeds City Council,30/09/2016,Environment & Housing,Leeds Building Services,Supplies and Services,Other Hired And Contracted Services,265,09-Sep-2016,1609-00213,0.00,7750.00,R,Access Opening Systems Limited,No
Http://opendatacommunities.org/id/metropolitan-district-council/leeds,Leeds City Council,30/09/2016,Environment & Housing,Leeds Building Services,Supplies and Services,Other Hired And Contracted Services,265,09-Sep-2016,1609-00214,0.00,85.00,R,Access Opening Systems Limited,No
Http://opendatacommunities.org/id/metropolitan-district-council/leeds,Leeds City Council,30/09/2016,Environment & Housing,Leeds Building Services,Supplies and Services,Other Hired And Contracted Services,265,09-Sep-2016,1609-00215,0.00,85.00,R,Access Opening Systems Limited,No
Http://opendatacommunities.org/id/metropolitan-district-council/leeds,Leeds City Council,30/09/2016,Environment & Housing,Leeds Building Services,Supplies and Services,Other Hired And Contracted Services,265,09-Sep-2016,1609-00216,0.00,85.00,R,Access Opening Systems Limited,No
Http://opendatacommunities.org/id/metropolitan-district-council/leeds,Leeds City Council,30/09/2016,Environment & Housing,Leeds Building Services,Supplies and Services,Other Hired And Contracted Services,265,09-Sep-2016,1609-00217,0.00,85.00,R,Access Opening Systems Limited,No
Http://opendatacommunities.org/id/metropolitan-district-council/leeds,Leeds City Council,30/09/2016,Environment & Housing,Leeds Building Services,Supplies and Services,Operational Materials,205,12-Sep-2016,1609-00218,0.00,85.00,R,Access Opening Systems Limited,No
Http://opendatacommunities.org/id/metropolitan-district-council/leeds,Leeds City Council,30/09/2016,Environment & Housing,Leeds Building Services,Supplies and Services,Operational Materials,205,12-Sep-2016,1609-00219,0.00,85.00,R,Access Opening Systems Limited,No
Http://opendatacommunities.org/id/metropolitan-district-council/leeds,Leeds City Council,30/09/2016,Environment & Housing,Leeds Building Services,Supplies and Services,Other Hired And Contracted Services,265,12-Sep-2016,1609-00220,0.00,85.00,R,Access Opening Systems Limited,No
Http://opendatacommunities.org/id/metropolitan-district-council/leeds,Leeds City Council,30/09/2016,Environment & Housing,Leeds Building Services,Supplies and Services,Other Hired And Contracted Services,265,12-Sep-2016,1609-00221,0.00,786.12,R,Access Opening Systems Limited,No
Http://opendatacommunities.org/id/metropolitan-district-council/leeds,Leeds City Council,30/09/2016,Environment & Housing,Leeds Building Services,Supplies and Services,Other Hired And Contracted Services,265,12-Sep-2016,1609-00222,0.00,85.00,R,Access Opening Systems Limited,No
Http://opendatacommunities.org/id/metropolitan-district-council/leeds,Leeds City Council,30/09/2016,Environment & Housing,Leeds Building Services,Supplies and Services,Other Hired And Contracted Services,265,12-Sep-2016,1609-00223,0.00,85.00,R,Access Opening Systems Limited,No
Http://opendatacommunities.org/id/metropolitan-district-council/leeds,Leeds City Council,30/09/2016,Environment & Housing,Leeds Building Services,Supplies and Services,Other Hired And Contracted Services,265,12-Sep-2016,1609-00224,0.00,85.00,R,Access Opening Systems Limited,No
Http://opendatacommunities.org/id/metropolitan-district-council/leeds,Leeds City Council,30/09/2016,Environment & Housing,Leeds Building Services,Supplies and Services,Other Hired And Contracted Services,265,12-Sep-2016,1609-00225,0.00,210.00,R,Access Opening Systems Limited,No
Http://opendatacommunities.org/id/metropolitan-district-council/leeds,Leeds City Council,30/09/2016,Environment & Housing,Leeds Building Services,Supplies and Services,Other Hired And Contracted Services,265,12-Sep-2016,1609-00226,0.00,85.00,R,Access Opening Systems Limited,No
Http://opendatacommunities.org/id/metropolitan-district-council/leeds,Leeds City Council,30/09/2016,Environment & Housing,Leeds Building Services,Supplies and Services,Other Hired And Contracted Services,265,13-Sep-2016,1609-00227,0.00,85.00,R,Access Opening Systems Limited,No
Http://opendatacommunities.org/id/metropolitan-district-council/leeds,Leeds City Council,30/09/2016,Environment & Housing,Leeds Building Services,Supplies and Services,Operational Materials,205,13-Sep-2016,1609-00228,0.00,75.00,R,Access Opening Systems Limited,No
Http://opendatacommunities.org/id/metropolitan-district-council/leeds,Leeds City Council,30/09/2016,Environment & Housing,Leeds Building Services,Supplies and Services,Operational Materials,205,13-Sep-2016,1609-00229,0.00,60.00,R,Access Opening Systems Limited,No
Http://opendatacommunities.org/id/metropolitan-district-council/leeds,Leeds City Council,30/09/2016,Environment & Housing,Leeds Building Services,Supplies and Services,Operational Materials,205,13-Sep-2016,1609-00230,0.00,210.50,R,Access Opening Systems Limited,No
Http://opendatacommunities.org/id/metropolitan-district-council/leeds,Leeds City Council,30/09/2016,Environment & Housing,Leeds Building Services,Supplies and Services,Other Hired And Contracted Services,265,13-Sep-2016,1609-00231,0.00,85.00,R,Access Opening Systems Limited,No
Http://opendatacommunities.org/id/metropolitan-district-council/leeds,Leeds City Council,30/09/2016,Environment & Housing,Leeds Building Services,Supplies and Services,Other Hired And Contracted Services,265,16-Sep-2016,1609-00232,0.00,85.00,R,Access Opening Systems Limited,No
Http://opendatacommunities.org/id/metropolitan-district-council/leeds,Leeds City Council,30/09/2016,Environment & Housing,Leeds Building Services,Supplies and Services,Operational Materials,205,16-Sep-2016,1609-00233,0.00,375.00,R,Access Opening Systems Limited,No
Http://opendatacommunities.org/id/metropolitan-district-council/leeds,Leeds City Council,30/09/2016,Environment & Housing,Leeds Building Services,Supplies and Services,Operational Materials,205,16-Sep-2016,1609-00234,0.00,135.00,R,Access Opening Systems Limited,No
Http://opendatacommunities.org/id/metropolitan-district-council/leeds,Leeds City Council,30/09/2016,Environment & Housing,Leeds Building Services,Supplies and Services,Operational Materials,205,16-Sep-2016,1609-00235,0.00,48.00,R,Access Opening Systems Limited,No
Http://opendatacommunities.org/id/metropolitan-district-council/leeds,Leeds City Council,30/09/2016,Environment & Housing,Leeds Building Services,Supplies and Services,Other Hired And Contracted Services,265,20-Sep-2016,1609-00236,0.00,85.00,R,Access Opening Systems Limited,No
Http://opendatacommunities.org/id/metropolitan-district-council/leeds,Leeds City Council,30/09/2016,Environment & Housing,Leeds Building Services,Supplies and Services,Other Hired And Contracted Services,265,20-Sep-2016,1609-00237,0.00,85.00,R,Access Opening Systems Limited,No
Http://opendatacommunities.org/id/metropolitan-district-council/leeds,Leeds City Council,30/09/2016,Environment & Housing,Leeds Building Services,Supplies and Services,Other Hired And Contracted Services,265,23-Sep-2016,1609-00238,0.00,603.92,R,Access Opening Systems Limited,No
Http://opendatacommunities.org/id/metropolitan-district-council/leeds,Leeds City Council,30/09/2016,Environment & Housing,Leeds Building Services,Supplies and Services,Other Hired And Contracted Services,265,23-Sep-2016,1609-00239,0.00,589.50,R,Access Opening Systems Limited,No
Http://opendatacommunities.org/id/metropolitan-district-council/leeds,Leeds City Council,30/09/2016,Environment & Housing,Leeds Building Services,Supplies and Services,Other Hired And Contracted Services,265,23-Sep-2016,1609-00240,0.00,1020.66,R,Access Opening Systems Limited,No
Http://opendatacommunities.org/id/metropolitan-district-council/leeds,Leeds City Council,30/09/2016,Environment & Housing,Leeds Building Services,Supplies and Services,Other Hired And Contracted Services,265,23-Sep-2016,1609-00241,0.00,85.00,R,Access Opening Systems Limited,No
Http://opendatacommunities.org/id/metropolitan-district-council/leeds,Leeds City Council,30/09/2016,Environment & Housing,Leeds Building Services,Supplies and Services,Other Hired And Contracted Services,265,23-Sep-2016,1609-00242,0.00,225.00,R,Access Opening Systems Limited,No
Http://opendatacommunities.org/id/metropolitan-district-council/leeds,Leeds City Council,30/09/2016,Environment & Housing,Leeds Building Services,Supplies and Services,Other Hired And Contracted Services,265,23-Sep-2016,1609-00243,0.00,85.00,R,Access Opening Systems Limited,No
Http://opendatacommunities.org/id/metropolitan-district-council/leeds,Leeds City Council,30/09/2016,Environment & Housing,Leeds Building Services,Supplies and Services,Other Hired And Contracted Services,265,23-Sep-2016,1609-00244,0.00,286.25,R,Access Opening Systems Limited,No
Http://opendatacommunities.org/id/metropolitan-district-council/leeds,Leeds City Council,30/09/2016,Environment & Housing,Leeds Building Services,Supplies and Services,Other Hired And Contracted Services,265,30-Sep-2016,1609-00245,0.00,85.00,R,Access Opening Systems Limited,No
Http://opendatacommunities.org/id/metropolitan-district-council/leeds,Leeds City Council,30/09/2016,Insurance,Insurance,Supplies and Services,Insurance Claims,248,08-Sep-2016,1609-00246,0.00,357.30,R,Accident Exchange Ltd,No
Http://opendatacommunities.org/id/metropolitan-district-council/leeds,Leeds City Council,30/09/2016,Insurance,Insurance,Supplies and Services,Insurance Claims,248,08-Sep-2016,1609-00247,0.00,990.28,R,Accident Exchange Ltd,No
Http://opendatacommunities.org/id/metropolitan-district-council/leeds,Leeds City Council,30/09/2016,Insurance,Insurance,Supplies and Services,Insurance Claims,248,23-Sep-2016,1609-00248,0.00,3500.00,R,Accountant General Of The Senior Courts,No
Http://opendatacommunities.org/id/metropolitan-district-council/leeds,Leeds City Council,30/09/2016,Environment & Housing,Parks And Countryside  ,Transport,Hire Of Movable Plant & Machinery,315,02-Aug-2016,1609-00249,0.00,434.14,R,Ace Container Services L,Yes
Http://opendatacommunities.org/id/metropolitan-district-council/leeds,Leeds City Council,30/09/2016,City Development,Recreation,Transport,External Hire -Occasional,304,30-Sep-2016,1609-00250,0.00,124.50,R,Ace Container Services Limited,No
Http://opendatacommunities.org/id/metropolitan-district-council/leeds,Leeds City Council,30/09/2016,City Development,Recreation,Supplies and Services,Other Hired And Contracted Services,265,30-Sep-2016,1609-00251,0.00,135.00,R,Ace Container Services Limited,No
Http://opendatacommunities.org/id/metropolitan-district-council/leeds,Leeds City Council,30/09/2016,Environment & Housing,Leeds Building Services,Supplies and Services,Other Hired And Contracted Services,265,02-Sep-2016,1609-00252,0.00,946.00,R,Acme Facilities Group Ltd,No
Http://opendatacommunities.org/id/metropolitan-district-council/leeds,Leeds City Council,30/09/2016,Environment & Housing,Leeds Building Services,Supplies and Services,Other Hired And Contracted Services,265,02-Sep-2016,1609-00253,0.00,855.00,R,Acme Facilities Group Ltd,No
Http://opendatacommunities.org/id/metropolitan-district-council/leeds,Leeds City Council,30/09/2016,Environment & Housing,Leeds Building Services,Supplies and Services,Other Hired And Contracted Services,265,02-Sep-2016,1609-00254,0.00,1330.00,R,Acme Facilities Group Ltd,No
Http://opendatacommunities.org/id/metropolitan-district-council/leeds,Leeds City Council,30/09/2016,Civic Enterprise Leeds,Commercial Services,Supplies and Services,Operational Furniture And Equipment,203,07-Sep-2016,1609-00255,0.00,1113.00,R,Acme Facilities Group Ltd,No
Http://opendatacommunities.org/id/metropolitan-district-council/leeds,Leeds City Council,30/09/2016,Civic Enterprise Leeds,Commercial Services,Supplies and Services,Operational Furniture And Equipment,203,07-Sep-2016,1609-00256,0.00,597.00,R,Acme Facilities Group Ltd,No
Http://opendatacommunities.org/id/metropolitan-district-council/leeds,Leeds City Council,30/09/2016,Civic Enterprise Leeds,Commercial Services,Supplies and Services,Operational Furniture And Equipment,203,07-Sep-2016,1609-00257,0.00,1135.00,R,Acme Facilities Group Ltd,No
Http://opendatacommunities.org/id/metropolitan-district-council/leeds,Leeds City Council,30/09/2016,Civic Enterprise Leeds,Commercial Services,Supplies and Services,Operational Furniture And Equipment,203,07-Sep-2016,1609-00258,0.00,807.00,R,Acme Facilities Group Ltd,No
Http://opendatacommunities.org/id/metropolitan-district-council/leeds,Leeds City Council,30/09/2016,Childrens Services,Safeguarding Targeted & Specialist,Third Party Payments,Independent Fostering Agencies,509,16-Sep-2016,1609-00259,0.00,5181.34,R,Acorn House (Fostering Services) Ltd,No
Http://opendatacommunities.org/id/metropolitan-district-council/leeds,Leeds City Council,30/09/2016,Childrens Services,Safeguarding Targeted & Specialist,Third Party Payments,Independent Fostering Agencies,509,16-Sep-2016,1609-00260,0.00,5181.34,R,Acorn House (Fostering Services) Ltd,No
Http://opendatacommunities.org/id/metropolitan-district-council/leeds,Leeds City Council,30/09/2016,Adult Social Care,Services For Older People - 65 And Over,Third Party Payments,Nursing Care Dementia,574,21-Sep-2016,1609-00261,0.00,1480.08,R,Acorn Nursing Home,No
Http://opendatacommunities.org/id/metropolitan-district-council/leeds,Leeds City Council,30/09/2016,City Development,Libraries  Arts & Heritage,Supplies and Services,Other Hired And Contracted Services,265,30-Sep-2016,1609-00262,0.00,2072.90,R,Acorn Scaffolding (Yorkshire) Ltd,No
Http://opendatacommunities.org/id/metropolitan-district-council/leeds,Leeds City Council,30/09/2016,Childrens Services,Learning Skills & Universal,Third Party Payments,Services Rendered By Other Organisations,511,14-Sep-2016,1609-00263,0.00,7660.80,R,Acorns Nursery,No
Http://opendatacommunities.org/id/metropolitan-district-council/leeds,Leeds City Council,30/09/2016,Adult Social Care,Services For Older People - 65 And Over,Third Party Payments,Residential,580,01-Sep-2016,1609-00264,0.00,14000.50,R,Acre Green,No
Http://opendatacommunities.org/id/metropolitan-district-council/leeds,Leeds City Council,30/09/2016,Adult Social Care,Services For Adults Under 65 Mental/Dis,Third Party Payments,Residential,580,21-Sep-2016,1609-00265,0.00,1459.20,R,Acre Green,No
Http://opendatacommunities.org/id/metropolitan-district-council/leeds,Leeds City Council,30/09/2016,Adult Social Care,Services For Older People - 65 And Over,Third Party Payments,Nursing Home,570,21-Sep-2016,1609-00266,0.00,16922.40,R,Acre Green,No
Http://opendatacommunities.org/id/metropolitan-district-council/leeds,Leeds City Council,30/09/2016,Adult Social Care,Services For Older People - 65 And Over,Third Party Payments,Nursing Care Dementia,574,21-Sep-2016,1609-00267,0.00,1122.48,R,Acre Green,No
Http://opendatacommunities.org/id/metropolitan-district-council/leeds,Leeds City Council,30/09/2016,Adult Social Care,Services For Older People - 65 And Over,Third Party Payments,Residential,580,21-Sep-2016,1609-00268,0.00,10145.60,R,Acre Green,No
Http://opendatacommunities.org/id/metropolitan-district-council/leeds,Leeds City Council,30/09/2016,Adult Social Care,Services For Older People Under 65 P/Dis,Third Party Payments,Nursing Home,570,21-Sep-2016,1609-00269,0.00,5159.84,R,Acre Green,No
Http://opendatacommunities.org/id/metropolitan-district-council/leeds,Leeds City Council,30/09/2016,Adult Social Care,Services For Older People Under 65 P/Dis,Third Party Payments,Residential,580,21-Sep-2016,1609-00270,0.00,1678.80,R,Acre Green,No
Http://opendatacommunities.org/id/metropolitan-district-council/leeds,Leeds City Council,30/09/2016,Childrens Services,Learning Skills & Universal,Third Party Payments,Services Rendered By Other Organisations,511,09-Sep-2016,1609-00271,0.00,7333.20,R,Acre Wood Day Nursery,No
Http://opendatacommunities.org/id/metropolitan-district-council/leeds,Leeds City Council,30/09/2016,Childrens Services,Learning Skills & Universal,Third Party Payments,Services Rendered By Other Organisations,511,14-Sep-2016,1609-00272,0.00,10852.80,R,Acre Wood Day Nursery,No
Http://opendatacommunities.org/id/metropolitan-district-council/leeds,Leeds City Council,30/09/2016,Childrens Services,Learning Skills & Universal,Third Party Payments,Services Rendered By Voluntary Sector,505,16-Sep-2016,1609-00273,0.00,3528.00,R,Acre Wood Day Nursery,No
Http://opendatacommunities.org/id/metropolitan-district-council/leeds,Leeds City Council,30/09/2016,Environment & Housing,Leeds Building Services,Supplies and Services,Operational Materials,205,02-Sep-2016,1609-00274,0.00,105.70,R,Actavo Uk Limited,No
Http://opendatacommunities.org/id/metropolitan-district-council/leeds,Leeds City Council,30/09/2016,Environment & Housing,Leeds Building Services,Supplies and Services,Operational Furniture And Equipment,203,02-Sep-2016,1609-00275,0.00,25.00,R,Actavo Uk Limited,No
Http://opendatacommunities.org/id/metropolitan-district-council/leeds,Leeds City Council,30/09/2016,Environment & Housing,Leeds Building Services,Supplies and Services,Operational Materials,205,16-Sep-2016,1609-00276,0.00,332.40,R,Actavo Uk Limited,No
Http://opendatacommunities.org/id/metropolitan-district-council/leeds,Leeds City Council as Accountable Body,30/09/2016,Social Services Pooled Budgets,Jcs For People With Learning Disabilitie,Supplies and Services,Other Equipment,203,09-Sep-2016,1609-00277,0.00,5935.00,R,Action Assist Ltd,No
Http://opendatacommunities.org/id/metropolitan-district-council/leeds,Leeds City Council as Accountable Body,30/09/2016,Social Services Pooled Budgets,Leeds Community Equip Store Pooled Budgt,Supplies and Services,Other Equipment,203,16-Sep-2016,1609-00278,0.00,6875.00,R,Action Assist Ltd,No
Http://opendatacommunities.org/id/metropolitan-district-council/leeds,Leeds City Council,30/09/2016,Adult Social Care,Services For Adults Under 65 Mental/Dis,Third Party Payments,Fees - Level 4,520,02-Sep-2016,1609-00279,0.00,1750.00,R,Action First Recruitment Ltd,No
Http://opendatacommunities.org/id/metropolitan-district-council/leeds,Leeds City Council,30/09/2016,Adult Social Care,Services For Adults Under 65 Mental/Dis,Third Party Payments,Fees - Level 4,520,05-Sep-2016,1609-00280,0.00,1400.00,R,Action First Recruitment Ltd,No
Http://opendatacommunities.org/id/metropolitan-district-council/leeds,Leeds City Council,30/09/2016,Adult Social Care,Services For Adults Under 65 Mental/Dis,Third Party Payments,Fees - Level 4,520,07-Sep-2016,1609-00281,0.00,2000.00,R,Action First Recruitment Ltd,No
Http://opendatacommunities.org/id/metropolitan-district-council/leeds,Leeds City Council,30/09/2016,Adult Social Care,Services For Adults Under 65 Mental/Dis,Third Party Payments,Fees - Level 4,520,07-Sep-2016,1609-00282,0.00,4000.00,R,Action First Recruitment Ltd,No
Http://opendatacommunities.org/id/metropolitan-district-council/leeds,Leeds City Council,30/09/2016,Adult Social Care,Services For Adults Under 65 Mental/Dis,Third Party Payments,Fees - Level 4,520,07-Sep-2016,1609-00283,0.00,2750.00,R,Action First Recruitment Ltd,No
Http://opendatacommunities.org/id/metropolitan-district-council/leeds,Leeds City Council,30/09/2016,Adult Social Care,Services For Adults Under 65 Mental/Dis,Third Party Payments,Fees - Level 4,520,07-Sep-2016,1609-00284,0.00,2000.00,R,Action First Recruitment Ltd,No
Http://opendatacommunities.org/id/metropolitan-district-council/leeds,Leeds City Council,30/09/2016,Adult Social Care,Services For Adults Under 65 Mental/Dis,Third Party Payments,Fees - Level 4,520,07-Sep-2016,1609-00285,0.00,350.00,R,Action First Recruitment Ltd,No
Http://opendatacommunities.org/id/metropolitan-district-council/leeds,Leeds City Council,30/09/2016,Adult Social Care,Services For Adults Under 65 Mental/Dis,Third Party Payments,Fees - Level 4,520,07-Sep-2016,1609-00286,0.00,700.00,R,Action First Recruitment Ltd,No
Http://opendatacommunities.org/id/metropolitan-district-council/leeds,Leeds City Council,30/09/2016,Adult Social Care,Services For Adults Under 65 Mental/Dis,Third Party Payments,Fees - Level 4,520,07-Sep-2016,1609-00287,0.00,350.00,R,Action First Recruitment Ltd,No
Http://opendatacommunities.org/id/metropolitan-district-council/leeds,Leeds City Council,30/09/2016,Adult Social Care,Services For Adults Under 65 Mental/Dis,Third Party Payments,Fees - Level 4,520,07-Sep-2016,1609-00288,0.00,3150.00,R,Action First Recruitment Ltd,No
Http://opendatacommunities.org/id/metropolitan-district-council/leeds,Leeds City Council,30/09/2016,Adult Social Care,Services For Adults Under 65 Mental/Dis,Third Party Payments,Fees - Level 4,520,07-Sep-2016,1609-00289,0.00,1400.00,R,Action First Recruitment Ltd,No
Http://opendatacommunities.org/id/metropolitan-district-council/leeds,Leeds City Council,30/09/2016,Adult Social Care,Services For Adults Under 65 Mental/Dis,Third Party Payments,Fees - Level 4,520,07-Sep-2016,1609-00290,0.00,1750.00,R,Action First Recruitment Ltd,No
Http://opendatacommunities.org/id/metropolitan-district-council/leeds,Leeds City Council,30/09/2016,Adult Social Care,Services For Adults Under 65 Mental/Dis,Third Party Payments,Fees - Level 4,520,07-Sep-2016,1609-00291,0.00,1050.00,R,Action First Recruitment Ltd,No
Http://opendatacommunities.org/id/metropolitan-district-council/leeds,Leeds City Council,30/09/2016,Adult Social Care,Services For Adults Under 65 Mental/Dis,Third Party Payments,Fees - Level 4,520,07-Sep-2016,1609-00292,0.00,1400.00,R,Action First Recruitment Ltd,No
Http://opendatacommunities.org/id/metropolitan-district-council/leeds,Leeds City Council,30/09/2016,Adult Social Care,Services For Adults Under 65 Mental/Dis,Third Party Payments,Fees - Level 4,520,07-Sep-2016,1609-00293,0.00,1400.00,R,Action First Recruitment Ltd,No
Http://opendatacommunities.org/id/metropolitan-district-council/leeds,Leeds City Council,30/09/2016,Adult Social Care,Services For Adults Under 65 Mental/Dis,Third Party Payments,Fees - Level 4,520,07-Sep-2016,1609-00294,0.00,350.00,R,Action First Recruitment Ltd,No
Http://opendatacommunities.org/id/metropolitan-district-council/leeds,Leeds City Council,30/09/2016,Adult Social Care,Services For Adults Under 65 Mental/Dis,Third Party Payments,Fees - Level 4,520,07-Sep-2016,1609-00295,0.00,350.00,R,Action First Recruitment Ltd,No
Http://opendatacommunities.org/id/metropolitan-district-council/leeds,Leeds City Council,30/09/2016,Adult Social Care,Services For Adults Under 65 Mental/Dis,Third Party Payments,Fees - Level 4,520,07-Sep-2016,1609-00296,0.00,3500.00,R,Action First Recruitment Ltd,No
Http://opendatacommunities.org/id/metropolitan-district-council/leeds,Leeds City Council,30/09/2016,Adult Social Care,Services For Adults Under 65 Mental/Dis,Third Party Payments,Fees - Level 4,520,07-Sep-2016,1609-00297,0.00,700.00,R,Action First Recruitment Ltd,No
Http://opendatacommunities.org/id/metropolitan-district-council/leeds,Leeds City Council,30/09/2016,Adult Social Care,Services For Adults Under 65 Mental/Dis,Third Party Payments,Fees - Level 4,520,07-Sep-2016,1609-00298,0.00,700.00,R,Action First Recruitment Ltd,No
Http://opendatacommunities.org/id/metropolitan-district-council/leeds,Leeds City Council,30/09/2016,Adult Social Care,Services For Adults Under 65 Mental/Dis,Third Party Payments,Fees - Level 4,520,07-Sep-2016,1609-00299,0.00,700.00,R,Action First Recruitment Ltd,No
Http://opendatacommunities.org/id/metropolitan-district-council/leeds,Leeds City Council,30/09/2016,Adult Social Care,Services For Adults Under 65 Mental/Dis,Third Party Payments,Fees - Level 4,520,07-Sep-2016,1609-00300,0.00,350.00,R,Action First Recruitment Ltd,No
Http://opendatacommunities.org/id/metropolitan-district-council/leeds,Leeds City Council,30/09/2016,Adult Social Care,Services For Adults Under 65 Mental/Dis,Third Party Payments,Fees - Level 4,520,07-Sep-2016,1609-00301,0.00,1050.00,R,Action First Recruitment Ltd,No
Http://opendatacommunities.org/id/metropolitan-district-council/leeds,Leeds City Council,30/09/2016,Adult Social Care,Services For Adults Under 65 Mental/Dis,Third Party Payments,Fees - Level 4,520,07-Sep-2016,1609-00302,0.00,350.00,R,Action First Recruitment Ltd,No
Http://opendatacommunities.org/id/metropolitan-district-council/leeds,Leeds City Council,30/09/2016,Adult Social Care,Services For Adults Under 65 Mental/Dis,Third Party Payments,Fees - Level 4,520,07-Sep-2016,1609-00303,0.00,350.00,R,Action First Recruitment Ltd,No
Http://opendatacommunities.org/id/metropolitan-district-council/leeds,Leeds City Council,30/09/2016,Adult Social Care,Services For Adults Under 65 Mental/Dis,Third Party Payments,Fees - Level 4,520,07-Sep-2016,1609-00304,0.00,350.00,R,Action First Recruitment Ltd,No
Http://opendatacommunities.org/id/metropolitan-district-council/leeds,Leeds City Council,30/09/2016,Adult Social Care,Services For Adults Under 65 Mental/Dis,Third Party Payments,Fees - Level 4,520,07-Sep-2016,1609-00305,0.00,1400.00,R,Action First Recruitment Ltd,No
Http://opendatacommunities.org/id/metropolitan-district-council/leeds,Leeds City Council,30/09/2016,Adult Social Care,Services For Adults Under 65 Mental/Dis,Third Party Payments,Fees - Level 4,520,07-Sep-2016,1609-00306,0.00,700.00,R,Action First Recruitment Ltd,No
Http://opendatacommunities.org/id/metropolitan-district-council/leeds,Leeds City Council,30/09/2016,Adult Social Care,Services For Adults Under 65 Mental/Dis,Third Party Payments,Fees - Level 4,520,07-Sep-2016,1609-00307,0.00,700.00,R,Action First Recruitment Ltd,No
Http://opendatacommunities.org/id/metropolitan-district-council/leeds,Leeds City Council,30/09/2016,Adult Social Care,Services For Adults Under 65 Mental/Dis,Third Party Payments,Fees - Level 4,520,07-Sep-2016,1609-00308,0.00,3150.00,R,Action First Recruitment Ltd,No
Http://opendatacommunities.org/id/metropolitan-district-council/leeds,Leeds City Council,30/09/2016,Adult Social Care,Services For Adults Under 65 Mental/Dis,Third Party Payments,Fees - Level 4,520,07-Sep-2016,1609-00309,0.00,1750.00,R,Action First Recruitment Ltd,No
Http://opendatacommunities.org/id/metropolitan-district-council/leeds,Leeds City Council,30/09/2016,Adult Social Care,Services For Adults Under 65 Mental/Dis,Third Party Payments,Fees - Level 4,520,07-Sep-2016,1609-00310,0.00,1050.00,R,Action First Recruitment Ltd,No
Http://opendatacommunities.org/id/metropolitan-district-council/leeds,Leeds City Council,30/09/2016,Adult Social Care,Services For Adults Under 65 Mental/Dis,Third Party Payments,Fees - Level 4,520,07-Sep-2016,1609-00311,0.00,1400.00,R,Action First Recruitment Ltd,No
Http://opendatacommunities.org/id/metropolitan-district-council/leeds,Leeds City Council,30/09/2016,Adult Social Care,Services For Adults Under 65 Mental/Dis,Third Party Payments,Fees - Level 4,520,07-Sep-2016,1609-00312,0.00,1750.00,R,Action First Recruitment Ltd,No
Http://opendatacommunities.org/id/metropolitan-district-council/leeds,Leeds City Council,30/09/2016,Adult Social Care,Services For Adults Under 65 Mental/Dis,Third Party Payments,Fees - Level 4,520,07-Sep-2016,1609-00313,0.00,1050.00,R,Action First Recruitment Ltd,No
Http://opendatacommunities.org/id/metropolitan-district-council/leeds,Leeds City Council,30/09/2016,Adult Social Care,Services For Adults Under 65 Mental/Dis,Third Party Payments,Fees - Level 4,520,07-Sep-2016,1609-00314,0.00,350.00,R,Action First Recruitment Ltd,No
Http://opendatacommunities.org/id/metropolitan-district-council/leeds,Leeds City Council,30/09/2016,Adult Social Care,Services For Adults Under 65 Mental/Dis,Third Party Payments,Fees - Level 4,520,07-Sep-2016,1609-00315,0.00,1050.00,R,Action First Recruitment Ltd,No
Http://opendatacommunities.org/id/metropolitan-district-council/leeds,Leeds City Council,30/09/2016,Adult Social Care,Services For Adults Under 65 Mental/Dis,Third Party Payments,Fees - Level 4,520,07-Sep-2016,1609-00316,0.00,2450.00,R,Action First Recruitment Ltd,No
Http://opendatacommunities.org/id/metropolitan-district-council/leeds,Leeds City Council,30/09/2016,Adult Social Care,Services For Adults Under 65 Mental/Dis,Third Party Payments,Fees - Level 4,520,07-Sep-2016,1609-00317,0.00,350.00,R,Action First Recruitment Ltd,No
Http://opendatacommunities.org/id/metropolitan-district-council/leeds,Leeds City Council,30/09/2016,Adult Social Care,Services For Adults Under 65 Mental/Dis,Third Party Payments,Fees - Level 4,520,07-Sep-2016,1609-00318,0.00,1750.00,R,Action First Recruitment Ltd,No
Http://opendatacommunities.org/id/metropolitan-district-council/leeds,Leeds City Council,30/09/2016,Adult Social Care,Services For Adults Under 65 Mental/Dis,Third Party Payments,Fees - Level 4,520,07-Sep-2016,1609-00319,0.00,700.00,R,Action First Recruitment Ltd,No
Http://opendatacommunities.org/id/metropolitan-district-council/leeds,Leeds City Council,30/09/2016,Adult Social Care,Services For Adults Under 65 Mental/Dis,Third Party Payments,Fees - Level 4,520,07-Sep-2016,1609-00320,0.00,350.00,R,Action First Recruitment Ltd,No
Http://opendatacommunities.org/id/metropolitan-district-council/leeds,Leeds City Council,30/09/2016,Adult Social Care,Services For Adults Under 65 Mental/Dis,Third Party Payments,Fees - Level 4,520,07-Sep-2016,1609-00321,0.00,1050.00,R,Action First Recruitment Ltd,No
Http://opendatacommunities.org/id/metropolitan-district-council/leeds,Leeds City Council,30/09/2016,Adult Social Care,Services For Adults Under 65 Mental/Dis,Third Party Payments,Fees - Level 4,520,07-Sep-2016,1609-00322,0.00,700.00,R,Action First Recruitment Ltd,No
Http://opendatacommunities.org/id/metropolitan-district-council/leeds,Leeds City Council,30/09/2016,Adult Social Care,Services For Adults Under 65 Mental/Dis,Third Party Payments,Fees - Level 4,520,07-Sep-2016,1609-00323,0.00,1050.00,R,Action First Recruitment Ltd,No
Http://opendatacommunities.org/id/metropolitan-district-council/leeds,Leeds City Council,30/09/2016,Adult Social Care,Services For Adults Under 65 Mental/Dis,Third Party Payments,Fees - Level 4,520,07-Sep-2016,1609-00324,0.00,700.00,R,Action First Recruitment Ltd,No
Http://opendatacommunities.org/id/metropolitan-district-council/leeds,Leeds City Council,30/09/2016,Adult Social Care,Services For Adults Under 65 Mental/Dis,Third Party Payments,Fees - Level 4,520,07-Sep-2016,1609-00325,0.00,350.00,R,Action First Recruitment Ltd,No
Http://opendatacommunities.org/id/metropolitan-district-council/leeds,Leeds City Council,30/09/2016,Adult Social Care,Services For Adults Under 65 Mental/Dis,Third Party Payments,Fees - Level 4,520,07-Sep-2016,1609-00326,0.00,700.00,R,Action First Recruitment Ltd,No
Http://opendatacommunities.org/id/metropolitan-district-council/leeds,Leeds City Council,30/09/2016,Adult Social Care,Services For Adults Under 65 Mental/Dis,Third Party Payments,Fees - Level 4,520,07-Sep-2016,1609-00327,0.00,350.00,R,Action First Recruitment Ltd,No
Http://opendatacommunities.org/id/metropolitan-district-council/leeds,Leeds City Council,30/09/2016,Adult Social Care,Services For Adults Under 65 Mental/Dis,Third Party Payments,Fees - Level 4,520,07-Sep-2016,1609-00328,0.00,2250.00,R,Action First Recruitment Ltd,No
Http://opendatacommunities.org/id/metropolitan-district-council/leeds,Leeds City Council,30/09/2016,Adult Social Care,Services For Adults Under 65 Mental/Dis,Third Party Payments,Fees - Level 4,520,07-Sep-2016,1609-00329,0.00,700.00,R,Action First Recruitment Ltd,No
Http://opendatacommunities.org/id/metropolitan-district-council/leeds,Leeds City Council,30/09/2016,Adult Social Care,Services For Adults Under 65 Mental/Dis,Third Party Payments,Fees - Level 4,520,07-Sep-2016,1609-00330,0.00,350.00,R,Action First Recruitment Ltd,No
Http://opendatacommunities.org/id/metropolitan-district-council/leeds,Leeds City Council,30/09/2016,Adult Social Care,Services For Adults Under 65 Mental/Dis,Third Party Payments,Fees - Level 4,520,07-Sep-2016,1609-00331,0.00,1750.00,R,Action First Recruitment Ltd,No
Http://opendatacommunities.org/id/metropolitan-district-council/leeds,Leeds City Council,30/09/2016,Adult Social Care,Services For Adults Under 65 Mental/Dis,Third Party Payments,Fees - Level 4,520,07-Sep-2016,1609-00332,0.00,1750.00,R,Action First Recruitment Ltd,No
Http://opendatacommunities.org/id/metropolitan-district-council/leeds,Leeds City Council,30/09/2016,Adult Social Care,Services For Adults Under 65 Mental/Dis,Third Party Payments,Fees - Level 4,520,07-Sep-2016,1609-00333,0.00,350.00,R,Action First Recruitment Ltd,No
Http://opendatacommunities.org/id/metropolitan-district-council/leeds,Leeds City Council,30/09/2016,Adult Social Care,Services For Adults Under 65 Mental/Dis,Third Party Payments,Fees - Level 4,520,07-Sep-2016,1609-00334,0.00,1750.00,R,Action First Recruitment Ltd,No
Http://opendatacommunities.org/id/metropolitan-district-council/leeds,Leeds City Council,30/09/2016,Adult Social Care,Services For Adults Under 65 Mental/Dis,Third Party Payments,Fees - Level 4,520,07-Sep-2016,1609-00335,0.00,1750.00,R,Action First Recruitment Ltd,No
Http://opendatacommunities.org/id/metropolitan-district-council/leeds,Leeds City Council,30/09/2016,Adult Social Care,Services For Adults Under 65 Mental/Dis,Third Party Payments,Fees - Level 4,520,07-Sep-2016,1609-00336,0.00,1050.00,R,Action First Recruitment Ltd,No
Http://opendatacommunities.org/id/metropolitan-district-council/leeds,Leeds City Council,30/09/2016,Adult Social Care,Services For Adults Under 65 Mental/Dis,Third Party Payments,Fees - Level 4,520,07-Sep-2016,1609-00337,0.00,350.00,R,Action First Recruitment Ltd,No
Http://opendatacommunities.org/id/metropolitan-district-council/leeds,Leeds City Council,30/09/2016,Adult Social Care,Services For Adults Under 65 Mental/Dis,Third Party Payments,Fees - Level 4,520,07-Sep-2016,1609-00338,0.00,1050.00,R,Action First Recruitment Ltd,No
Http://opendatacommunities.org/id/metropolitan-district-council/leeds,Leeds City Council,30/09/2016,Adult Social Care,Services For Adults Under 65 Mental/Dis,Third Party Payments,Fees - Level 4,520,07-Sep-2016,1609-00339,0.00,350.00,R,Action First Recruitment Ltd,No
Http://opendatacommunities.org/id/metropolitan-district-council/leeds,Leeds City Council,30/09/2016,Adult Social Care,Services For Adults Under 65 Mental/Dis,Third Party Payments,Fees - Level 4,520,07-Sep-2016,1609-00340,0.00,700.00,R,Action First Recruitment Ltd,No
Http://opendatacommunities.org/id/metropolitan-district-council/leeds,Leeds City Council,30/09/2016,Adult Social Care,Services For Adults Under 65 Mental/Dis,Third Party Payments,Fees - Level 4,520,07-Sep-2016,1609-00341,0.00,1050.00,R,Action First Recruitment Ltd,No
Http://opendatacommunities.org/id/metropolitan-district-council/leeds,Leeds City Council,30/09/2016,Adult Social Care,Services For Adults Under 65 Mental/Dis,Third Party Payments,Fees - Level 4,520,07-Sep-2016,1609-00342,0.00,1050.00,R,Action First Recruitment Ltd,No
Http://opendatacommunities.org/id/metropolitan-district-council/leeds,Leeds City Council,30/09/2016,Adult Social Care,Services For Adults Under 65 Mental/Dis,Third Party Payments,Fees - Level 4,520,08-Sep-2016,1609-00343,0.00,250.00,R,Action First Recruitment Ltd,No
Http://opendatacommunities.org/id/metropolitan-district-council/leeds,Leeds City Council,30/09/2016,Adult Social Care,Services For Adults Under 65 Mental/Dis,Third Party Payments,Fees - Level 4,520,08-Sep-2016,1609-00344,0.00,350.00,R,Action First Recruitment Ltd,No
Http://opendatacommunities.org/id/metropolitan-district-council/leeds,Leeds City Council,30/09/2016,Adult Social Care,Services For Adults Under 65 Mental/Dis,Third Party Payments,Fees - Level 4,520,08-Sep-2016,1609-00345,0.00,1750.00,R,Action First Recruitment Ltd,No
Http://opendatacommunities.org/id/metropolitan-district-council/leeds,Leeds City Council,30/09/2016,Adult Social Care,Services For Adults Under 65 Mental/Dis,Third Party Payments,Fees - Level 4,520,08-Sep-2016,1609-00346,0.00,1750.00,R,Action First Recruitment Ltd,No
Http://opendatacommunities.org/id/metropolitan-district-council/leeds,Leeds City Council,30/09/2016,Adult Social Care,Services For Adults Under 65 Mental/Dis,Third Party Payments,Fees - Level 4,520,08-Sep-2016,1609-00347,0.00,350.00,R,Action First Recruitment Ltd,No
Http://opendatacommunities.org/id/metropolitan-district-council/leeds,Leeds City Council,30/09/2016,Adult Social Care,Services For Adults Under 65 Mental/Dis,Third Party Payments,Fees - Level 4,520,08-Sep-2016,1609-00348,0.00,1400.00,R,Action First Recruitment Ltd,No
Http://opendatacommunities.org/id/metropolitan-district-council/leeds,Leeds City Council,30/09/2016,Adult Social Care,Services For Adults Under 65 Mental/Dis,Third Party Payments,Fees - Level 4,520,08-Sep-2016,1609-00349,0.00,2450.00,R,Action First Recruitment Ltd,No
Http://opendatacommunities.org/id/metropolitan-district-council/leeds,Leeds City Council,30/09/2016,Adult Social Care,Services For Adults Under 65 Mental/Dis,Third Party Payments,Fees - Level 4,520,08-Sep-2016,1609-00350,0.00,350.00,R,Action First Recruitment Ltd,No
Http://opendatacommunities.org/id/metropolitan-district-council/leeds,Leeds City Council,30/09/2016,Adult Social Care,Services For Adults Under 65 Mental/Dis,Third Party Payments,Fees - Level 4,520,08-Sep-2016,1609-00351,0.00,1050.00,R,Action First Recruitment Ltd,No
Http://opendatacommunities.org/id/metropolitan-district-council/leeds,Leeds City Council,30/09/2016,Adult Social Care,Services For Adults Under 65 Mental/Dis,Third Party Payments,Fees - Level 4,520,08-Sep-2016,1609-00352,0.00,1050.00,R,Action First Recruitment Ltd,No
Http://opendatacommunities.org/id/metropolitan-district-council/leeds,Leeds City Council,30/09/2016,Adult Social Care,Services For Adults Under 65 Mental/Dis,Third Party Payments,Fees - Level 4,520,08-Sep-2016,1609-00353,0.00,350.00,R,Action First Recruitment Ltd,No
Http://opendatacommunities.org/id/metropolitan-district-council/leeds,Leeds City Council,30/09/2016,Adult Social Care,Services For Adults Under 65 Mental/Dis,Third Party Payments,Fees - Level 4,520,08-Sep-2016,1609-00354,0.00,700.00,R,Action First Recruitment Ltd,No
Http://opendatacommunities.org/id/metropolitan-district-council/leeds,Leeds City Council,30/09/2016,Adult Social Care,Services For Adults Under 65 Mental/Dis,Third Party Payments,Fees - Level 4,520,08-Sep-2016,1609-00355,0.00,350.00,R,Action First Recruitment Ltd,No
Http://opendatacommunities.org/id/metropolitan-district-council/leeds,Leeds City Council,30/09/2016,Adult Social Care,Services For Adults Under 65 Mental/Dis,Third Party Payments,Fees - Level 4,520,08-Sep-2016,1609-00356,0.00,250.00,R,Action First Recruitment Ltd,No
Http://opendatacommunities.org/id/metropolitan-district-council/leeds,Leeds City Council,30/09/2016,Adult Social Care,Services For Adults Under 65 Mental/Dis,Third Party Payments,Fees - Level 4,520,08-Sep-2016,1609-00357,0.00,3750.00,R,Action First Recruitment Ltd,No
Http://opendatacommunities.org/id/metropolitan-district-council/leeds,Leeds City Council,30/09/2016,Adult Social Care,Services For Adults Under 65 Mental/Dis,Third Party Payments,Fees - Level 4,520,08-Sep-2016,1609-00358,0.00,250.00,R,Action First Recruitment Ltd,No
Http://opendatacommunities.org/id/metropolitan-district-council/leeds,Leeds City Council,30/09/2016,Adult Social Care,Services For Adults Under 65 Mental/Dis,Third Party Payments,Fees - Level 4,520,08-Sep-2016,1609-00359,0.00,700.00,R,Action First Recruitment Ltd,No
Http://opendatacommunities.org/id/metropolitan-district-council/leeds,Leeds City Council,30/09/2016,Adult Social Care,Services For Adults Under 65 Mental/Dis,Third Party Payments,Fees - Level 4,520,08-Sep-2016,1609-00360,0.00,1400.00,R,Action First Recruitment Ltd,No
Http://opendatacommunities.org/id/metropolitan-district-council/leeds,Leeds City Council,30/09/2016,Adult Social Care,Services For Adults Under 65 Mental/Dis,Third Party Payments,Fees - Level 4,520,08-Sep-2016,1609-00361,0.00,700.00,R,Action First Recruitment Ltd,No
Http://opendatacommunities.org/id/metropolitan-district-council/leeds,Leeds City Council,30/09/2016,Adult Social Care,Services For Adults Under 65 Mental/Dis,Third Party Payments,Fees - Level 4,520,08-Sep-2016,1609-00362,0.00,350.00,R,Action First Recruitment Ltd,No
Http://opendatacommunities.org/id/metropolitan-district-council/leeds,Leeds City Council,30/09/2016,Adult Social Care,Services For Adults Under 65 Mental/Dis,Third Party Payments,Fees - Level 4,520,08-Sep-2016,1609-00363,0.00,3150.00,R,Action First Recruitment Ltd,No
Http://opendatacommunities.org/id/metropolitan-district-council/leeds,Leeds City Council,30/09/2016,Adult Social Care,Services For Adults Under 65 Mental/Dis,Third Party Payments,Fees - Level 4,520,08-Sep-2016,1609-00364,0.00,700.00,R,Action First Recruitment Ltd,No
Http://opendatacommunities.org/id/metropolitan-district-council/leeds,Leeds City Council,30/09/2016,Adult Social Care,Services For Adults Under 65 Mental/Dis,Third Party Payments,Fees - Level 4,520,08-Sep-2016,1609-00365,0.00,350.00,R,Action First Recruitment Ltd,No
Http://opendatacommunities.org/id/metropolitan-district-council/leeds,Leeds City Council,30/09/2016,Adult Social Care,Services For Adults Under 65 Mental/Dis,Third Party Payments,Fees - Level 4,520,08-Sep-2016,1609-00366,0.00,700.00,R,Action First Recruitment Ltd,No
Http://opendatacommunities.org/id/metropolitan-district-council/leeds,Leeds City Council,30/09/2016,Adult Social Care,Services For Adults Under 65 Mental/Dis,Third Party Payments,Fees - Level 4,520,08-Sep-2016,1609-00367,0.00,700.00,R,Action First Recruitment Ltd,No
Http://opendatacommunities.org/id/metropolitan-district-council/leeds,Leeds City Council,30/09/2016,Adult Social Care,Services For Adults Under 65 Mental/Dis,Third Party Payments,Fees - Level 4,520,08-Sep-2016,1609-00368,0.00,750.00,R,Action First Recruitment Ltd,No
Http://opendatacommunities.org/id/metropolitan-district-council/leeds,Leeds City Council,30/09/2016,Adult Social Care,Services For Adults Under 65 Mental/Dis,Third Party Payments,Fees - Level 4,520,08-Sep-2016,1609-00369,0.00,700.00,R,Action First Recruitment Ltd,No
Http://opendatacommunities.org/id/metropolitan-district-council/leeds,Leeds City Council,30/09/2016,Adult Social Care,Services For Adults Under 65 Mental/Dis,Third Party Payments,Fees - Level 4,520,08-Sep-2016,1609-00370,0.00,700.00,R,Action First Recruitment Ltd,No
Http://opendatacommunities.org/id/metropolitan-district-council/leeds,Leeds City Council,30/09/2016,Adult Social Care,Services For Adults Under 65 Mental/Dis,Third Party Payments,Fees - Level 4,520,16-Sep-2016,1609-00371,0.00,2100.00,R,Action First Recruitment Ltd,No
Http://opendatacommunities.org/id/metropolitan-district-council/leeds,Leeds City Council,30/09/2016,Adult Social Care,Services For Adults Under 65 Mental/Dis,Third Party Payments,Fees - Level 4,520,16-Sep-2016,1609-00372,0.00,2100.00,R,Action First Recruitment Ltd,No
Http://opendatacommunities.org/id/metropolitan-district-council/leeds,Leeds City Council,30/09/2016,Adult Social Care,Services For Adults Under 65 Mental/Dis,Third Party Payments,Fees - Level 4,520,16-Sep-2016,1609-00373,0.00,350.00,R,Action First Recruitment Ltd,No
Http://opendatacommunities.org/id/metropolitan-district-council/leeds,Leeds City Council,30/09/2016,Adult Social Care,Services For Adults Under 65 Mental/Dis,Third Party Payments,Fees - Level 4,520,16-Sep-2016,1609-00374,0.00,350.00,R,Action First Recruitment Ltd,No
Http://opendatacommunities.org/id/metropolitan-district-council/leeds,Leeds City Council,30/09/2016,Adult Social Care,Services For Adults Under 65 Mental/Dis,Third Party Payments,Fees - Level 4,520,16-Sep-2016,1609-00375,0.00,700.00,R,Action First Recruitment Ltd,No
Http://opendatacommunities.org/id/metropolitan-district-council/leeds,Leeds City Council,30/09/2016,Adult Social Care,Services For Adults Under 65 Mental/Dis,Third Party Payments,Fees - Level 4,520,16-Sep-2016,1609-00376,0.00,1050.00,R,Action First Recruitment Ltd,No
Http://opendatacommunities.org/id/metropolitan-district-council/leeds,Leeds City Council,30/09/2016,Adult Social Care,Services For Adults Under 65 Mental/Dis,Third Party Payments,Fees - Level 4,520,16-Sep-2016,1609-00377,0.00,2100.00,R,Action First Recruitment Ltd,No
Http://opendatacommunities.org/id/metropolitan-district-council/leeds,Leeds City Council,30/09/2016,Adult Social Care,Services For Adults Under 65 Mental/Dis,Third Party Payments,Fees - Level 4,520,16-Sep-2016,1609-00378,0.00,1400.00,R,Action First Recruitment Ltd,No
Http://opendatacommunities.org/id/metropolitan-district-council/leeds,Leeds City Council,30/09/2016,Adult Social Care,Services For Adults Under 65 Mental/Dis,Third Party Payments,Fees - Level 4,520,16-Sep-2016,1609-00379,0.00,350.00,R,Action First Recruitment Ltd,No
Http://opendatacommunities.org/id/metropolitan-district-council/leeds,Leeds City Council,30/09/2016,Adult Social Care,Services For Adults Under 65 Mental/Dis,Third Party Payments,Fees - Level 4,520,16-Sep-2016,1609-00380,0.00,350.00,R,Action First Recruitment Ltd,No
Http://opendatacommunities.org/id/metropolitan-district-council/leeds,Leeds City Council,30/09/2016,Adult Social Care,Services For Adults Under 65 Mental/Dis,Third Party Payments,Fees - Level 4,520,16-Sep-2016,1609-00381,0.00,350.00,R,Action First Recruitment Ltd,No
Http://opendatacommunities.org/id/metropolitan-district-council/leeds,Leeds City Council,30/09/2016,Adult Social Care,Services For Adults Under 65 Mental/Dis,Third Party Payments,Fees - Level 4,520,16-Sep-2016,1609-00382,0.00,700.00,R,Action First Recruitment Ltd,No
Http://opendatacommunities.org/id/metropolitan-district-council/leeds,Leeds City Council,30/09/2016,Adult Social Care,Services For Adults Under 65 Mental/Dis,Third Party Payments,Fees - Level 4,520,16-Sep-2016,1609-00383,0.00,1750.00,R,Action First Recruitment Ltd,No
Http://opendatacommunities.org/id/metropolitan-district-council/leeds,Leeds City Council,30/09/2016,Adult Social Care,Services For Adults Under 65 Mental/Dis,Third Party Payments,Fees - Level 4,520,16-Sep-2016,1609-00384,0.00,2100.00,R,Action First Recruitment Ltd,No
Http://opendatacommunities.org/id/metropolitan-district-council/leeds,Leeds City Council,30/09/2016,Adult Social Care,Services For Adults Under 65 Mental/Dis,Third Party Payments,Fees - Level 4,520,30-Sep-2016,1609-00385,0.00,350.00,R,Action First Recruitment Ltd,No
Http://opendatacommunities.org/id/metropolitan-district-council/leeds,Leeds City Council,30/09/2016,Childrens Services,Safeguarding Targeted & Specialist,Third Party Payments,Independent Fostering Agencies,509,23-Sep-2016,1609-00386,0.00,4776.48,R,Action For Children,No
Http://opendatacommunities.org/id/metropolitan-district-council/leeds,Leeds City Council,30/09/2016,Childrens Services,Safeguarding Targeted & Specialist,Third Party Payments,Independent Fostering Agencies,509,23-Sep-2016,1609-00387,0.00,4776.48,R,Action For Children,No
Http://opendatacommunities.org/id/metropolitan-district-council/leeds,Leeds City Council,30/09/2016,Childrens Services,Safeguarding Targeted & Specialist,Third Party Payments,Independent Fostering Agencies,509,23-Sep-2016,1609-00388,0.00,4776.48,R,Action For Children,No
Http://opendatacommunities.org/id/metropolitan-district-council/leeds,Leeds City Council,30/09/2016,Childrens Services,Safeguarding Targeted & Specialist,Third Party Payments,Independent Fostering Agencies,509,23-Sep-2016,1609-00389,0.00,5163.67,R,Action For Children,No
Http://opendatacommunities.org/id/metropolitan-district-council/leeds,Leeds City Council,30/09/2016,Childrens Services,Safeguarding Targeted & Specialist,Third Party Payments,Independent Fostering Agencies,509,23-Sep-2016,1609-00390,0.00,4776.48,R,Action For Children,No
Http://opendatacommunities.org/id/metropolitan-district-council/leeds,Leeds City Council,30/09/2016,Adult Social Care,Services For Older People - 65 And Over,Third Party Payments,Payments To Voluntary Organisations,561,30-Sep-2016,1609-00391,0.00,34505.50,R,Action For Gipton Elderly,No
Http://opendatacommunities.org/id/metropolitan-district-council/leeds,Leeds City Council,30/09/2016,Citizens and Communities,Communities,Supplies and Services,'Well Being' Large Grants Projects,230,08-Sep-2016,1609-00392,0.00,530.00,R,Active Hire (Leeds) Ltd,No
Http://opendatacommunities.org/id/metropolitan-district-council/leeds,Leeds City Council,30/09/2016,Strategic Landlord,Housing Management,Supplies and Services,Grants To Voluntary Organisations,293,16-Sep-2016,1609-00393,0.00,40.00,R,Active Hire (Leeds) Ltd,No
Http://opendatacommunities.org/id/metropolitan-district-council/leeds,Leeds City Council,30/09/2016,Childrens Services,Learning Skills & Universal,Third Party Payments,Services Rendered By Other Organisations,511,09-Sep-2016,1609-00394,0.00,3259.20,R,Active Kids Day Nursery,No
Http://opendatacommunities.org/id/metropolitan-district-council/leeds,Leeds City Council,30/09/2016,Childrens Services,Learning Skills & Universal,Third Party Payments,Services Rendered By Other Organisations,511,14-Sep-2016,1609-00395,0.00,36230.72,R,Active Kids Day Nursery,No
Http://opendatacommunities.org/id/metropolitan-district-council/leeds,Leeds City Council,30/09/2016,Environment & Housing,Waste Management,Supplies and Services,Recycling & Reuse Charges,234,01-Sep-2016,1609-00396,0.00,330.00,R,Acumen Waste Services Ltd,No
Http://opendatacommunities.org/id/metropolitan-district-council/leeds,Leeds City Council,30/09/2016,Environment & Housing,Waste Management,Supplies and Services,Recycling & Reuse Charges,234,07-Sep-2016,1609-00397,0.00,110.00,R,Acumen Waste Services Ltd,No
Http://opendatacommunities.org/id/metropolitan-district-council/leeds,Leeds City Council,30/09/2016,Environment & Housing,Waste Management,Supplies and Services,Recycling & Reuse Charges,234,07-Sep-2016,1609-00398,0.00,220.00,R,Acumen Waste Services Ltd,No
Http://opendatacommunities.org/id/metropolitan-district-council/leeds,Leeds City Council,30/09/2016,Environment & Housing,Waste Management,Supplies and Services,Recycling & Reuse Charges,234,08-Sep-2016,1609-00399,0.00,6697.99,R,Acumen Waste Services Ltd,No
Http://opendatacommunities.org/id/metropolitan-district-council/leeds,Leeds City Council,30/09/2016,Environment & Housing,Waste Management,Supplies and Services,Recycling & Reuse Charges,234,08-Sep-2016,1609-00400,0.00,3820.34,R,Acumen Waste Services Ltd,No
Http://opendatacommunities.org/id/metropolitan-district-council/leeds,Leeds City Council,30/09/2016,Environment & Housing,Waste Management,Supplies and Services,Recycling & Reuse Charges,234,08-Sep-2016,1609-00401,0.00,4775.76,R,Acumen Waste Services Ltd,No
Http://opendatacommunities.org/id/metropolitan-district-council/leeds,Leeds City Council,30/09/2016,Environment & Housing,Waste Management,Supplies and Services,Recycling & Reuse Charges,234,08-Sep-2016,1609-00402,0.00,924.60,R,Acumen Waste Services Ltd,No
Http://opendatacommunities.org/id/metropolitan-district-council/leeds,Leeds City Council,30/09/2016,Environment & Housing,Waste Management,Supplies and Services,Recycling & Reuse Charges,234,16-Sep-2016,1609-00403,0.00,3762.05,R,Acumen Waste Services Ltd,No
Http://opendatacommunities.org/id/metropolitan-district-council/leeds,Leeds City Council,30/09/2016,Environment & Housing,Waste Management,Supplies and Services,Recycling & Reuse Charges,234,21-Sep-2016,1609-00404,0.00,110.00,R,Acumen Waste Services Ltd,No
Http://opendatacommunities.org/id/metropolitan-district-council/leeds,Leeds City Council,30/09/2016,City Development,Libraries  Arts & Heritage,Supplies and Services,Publication And Promotion,267,09-Sep-2016,1609-00405,0.00,1000.00,R,Adam Young,No
Http://opendatacommunities.org/id/metropolitan-district-council/leeds,Leeds City Council,30/09/2016,Adult Social Care,Services For Older People - 65 And Over,Third Party Payments,Nursing Home,570,21-Sep-2016,1609-00406,0.00,2120.00,R,Adbolton Hall,No
Http://opendatacommunities.org/id/metropolitan-district-council/leeds,Leeds City Council,30/09/2016,Environment & Housing,Environmental Health,Capital,Other Costs,7,19-Sep-2016,1609-00407,0.00,5186.00,C,Addleshaw Goddard Llp,No
Http://opendatacommunities.org/id/metropolitan-district-council/leeds,Leeds City Council,30/09/2016,Environment & Housing,Housing Leeds Service,Capital,Internal Fees,6,19-Sep-2016,1609-00408,0.00,5186.00,C,Addleshaw Goddard Llp,No
Http://opendatacommunities.org/id/metropolitan-district-council/leeds,Leeds City Council,30/09/2016,Environment & Housing,Housing Leeds Service,Capital,Internal Fees,6,27-Sep-2016,1609-00409,0.00,2077.00,C,Addleshaw Goddard Llp,No
Http://opendatacommunities.org/id/metropolitan-district-council/leeds,Leeds City Council,30/09/2016,Public Health,Public Health,Third Party Payments,Public Health Commissioned Services,526,06-Sep-2016,1609-00410,0.00,4111.35,R,Addlestone & Partners,No
Http://opendatacommunities.org/id/metropolitan-district-council/leeds,Leeds City Council,30/09/2016,Public Health,Public Health,Third Party Payments,Public Health Commissioned Services,526,16-Sep-2016,1609-00411,0.00,500.00,R,Addlestone & Partners,No
Http://opendatacommunities.org/id/metropolitan-district-council/leeds,Leeds City Council,30/09/2016,Public Health,Public Health,Third Party Payments,Public Health Commissioned Services,526,28-Sep-2016,1609-00412,0.00,119.00,R,Addlestone & Partners,No
Http://opendatacommunities.org/id/metropolitan-district-council/leeds,Leeds City Council,30/09/2016,Central & Corporate,Technology  ,Employees,Agency Staff,8,02-Aug-2016,1609-00413,0.00,2300.00,R,Adecco Alfred Marks,Yes
Http://opendatacommunities.org/id/metropolitan-district-council/leeds,Leeds City Council,30/09/2016,Central & Corporate,Technology  ,Employees,Agency Staff,8,02-Aug-2016,1609-00414,0.00,8958.80,R,Adecco Alfred Marks,Yes
Http://opendatacommunities.org/id/metropolitan-district-council/leeds,Leeds City Council,30/09/2016,Central & Corporate,Technology  ,Employees,Agency Staff,8,02-Aug-2016,1609-00415,0.00,2900.00,R,Adecco Alfred Marks,Yes
Http://opendatacommunities.org/id/metropolitan-district-council/leeds,Leeds City Council,30/09/2016,Central & Corporate,Technology  ,Employees,Agency Staff,8,19-Aug-2016,1609-00416,0.00,2300.00,R,Adecco Alfred Marks,Yes
Http://opendatacommunities.org/id/metropolitan-district-council/leeds,Leeds City Council,30/09/2016,Central & Corporate,Technology  ,Employees,Agency Staff,8,24-Aug-2016,1609-00417,0.00,2808.50,R,Adecco Alfred Marks,Yes
Http://opendatacommunities.org/id/metropolitan-district-council/leeds,Leeds City Council,30/09/2016,Strategic Landlord,Housing Management,Supplies and Services,Grants To Voluntary Organisations,293,19-Sep-2016,1609-00418,0.00,100.00,R,Adel Crag Community Association,No
Http://opendatacommunities.org/id/metropolitan-district-council/leeds,Leeds City Council,30/09/2016,Strategic Landlord,Housing Management,Supplies and Services,Grants To Voluntary Organisations,293,19-Sep-2016,1609-00419,0.00,260.00,R,Adel Crag Community Association,No
Http://opendatacommunities.org/id/metropolitan-district-council/leeds,Leeds City Council,30/09/2016,Childrens Services,Learning Skills & Universal,Third Party Payments,Services Rendered By Voluntary Sector,505,09-Sep-2016,1609-00420,0.00,1629.60,R,Adel Pre School,No
Http://opendatacommunities.org/id/metropolitan-district-council/leeds,Leeds City Council,30/09/2016,Childrens Services,Learning Skills & Universal,Third Party Payments,Services Rendered By Voluntary Sector,505,14-Sep-2016,1609-00421,0.00,15066.24,R,Adel Pre School,No
Http://opendatacommunities.org/id/metropolitan-district-council/leeds,Leeds City Council,30/09/2016,Childrens Services,Learning Skills & Universal,Third Party Payments,Services Rendered By Voluntary Sector,505,16-Sep-2016,1609-00422,0.00,1512.00,R,Adel Pre School,No
Http://opendatacommunities.org/id/metropolitan-district-council/leeds,Leeds City Council,30/09/2016,Childrens Services,Safeguarding Targeted & Specialist,Supplies and Services,Food & Drink,231,06-Sep-2016,1609-00423,0.00,48.00,R,Adel Quaker Meeting,No
Http://opendatacommunities.org/id/metropolitan-district-council/leeds,Leeds City Council,30/09/2016,Childrens Services,Safeguarding Targeted & Specialist,Supplies and Services,Food & Drink,231,06-Sep-2016,1609-00424,0.00,150.00,R,Adel Quaker Meeting,No
Http://opendatacommunities.org/id/metropolitan-district-council/leeds,Leeds City Council,30/09/2016,Childrens Services,Learning Skills & Universal,Third Party Payments,Services Rendered By Other Organisations,511,14-Sep-2016,1609-00425,0.00,786.60,R,Adele Harrington,No
Http://opendatacommunities.org/id/metropolitan-district-council/leeds,Leeds City Council,30/09/2016,Childrens Services,Learning Skills & Universal,Third Party Payments,Services Rendered By Other Organisations,511,14-Sep-2016,1609-00426,0.00,766.08,R,REDACTED PERSONAL DATA,No
Http://opendatacommunities.org/id/metropolitan-district-council/leeds,Leeds City Council,30/09/2016,Adult Social Care,Services For Older People - 65 And Over,Third Party Payments,Residential,580,21-Sep-2016,1609-00427,0.00,1173.68,R,Adeline Lodge,No
Http://opendatacommunities.org/id/metropolitan-district-council/leeds,Leeds City Council,30/09/2016,Adult Social Care,Services For Older People - 65 And Over,Third Party Payments,Nursing Home,570,21-Sep-2016,1609-00428,0.00,1056.32,R,Aden House,No
Http://opendatacommunities.org/id/metropolitan-district-council/leeds,Leeds City Council,30/09/2016,Environment & Housing,Leeds Building Services,Supplies and Services,Operational Materials,205,13-Sep-2016,1609-00429,0.00,141.45,R,Adi Global,No
Http://opendatacommunities.org/id/metropolitan-district-council/leeds,Leeds City Council,30/09/2016,Environment & Housing,Leeds Building Services,Supplies and Services,Operational Materials,205,20-Sep-2016,1609-00430,0.00,133.63,R,Adi Global,No
Http://opendatacommunities.org/id/metropolitan-district-council/leeds,Leeds City Council,30/09/2016,Environment & Housing,Leeds Building Services,Supplies and Services,Operational Materials,205,26-Sep-2016,1609-00431,0.00,888.58,R,Adi Global,No
Http://opendatacommunities.org/id/metropolitan-district-council/leeds,Leeds City Council,30/09/2016,Civic Enterprise Leeds,Commercial Services,Transport,Vehicle Spares,345,01-Sep-2016,1609-00432,0.00,35.00,R,Adm Car Audio,No
Http://opendatacommunities.org/id/metropolitan-district-council/leeds,Leeds City Council,30/09/2016,Insurance,Insurance,Supplies and Services,Insurance Claims,248,29-Sep-2016,1609-00433,0.00,1901.47,R,Admiral Insurance,No
Http://opendatacommunities.org/id/metropolitan-district-council/leeds,Leeds City Council,30/09/2016,Childrens Services,Safeguarding Targeted & Specialist,Third Party Payments,Independent Fostering Agencies,509,02-Sep-2016,1609-00434,0.00,2945.00,R,Adolescent And Childrens Trust,No
Http://opendatacommunities.org/id/metropolitan-district-council/leeds,Leeds City Council,30/09/2016,Childrens Services,Safeguarding Targeted & Specialist,Third Party Payments,Independent Fostering Agencies,509,02-Sep-2016,1609-00435,0.00,2945.00,R,Adolescent And Childrens Trust,No
Http://opendatacommunities.org/id/metropolitan-district-council/leeds,Leeds City Council,30/09/2016,Childrens Services,Safeguarding Targeted & Specialist,Third Party Payments,Independent Fostering Agencies,509,02-Sep-2016,1609-00436,0.00,3100.00,R,Adolescent And Childrens Trust,No
Http://opendatacommunities.org/id/metropolitan-district-council/leeds,Leeds City Council,30/09/2016,Childrens Services,Safeguarding Targeted & Specialist,Third Party Payments,Independent Fostering Agencies,509,02-Sep-2016,1609-00437,0.00,3100.00,R,Adolescent And Childrens Trust,No
Http://opendatacommunities.org/id/metropolitan-district-council/leeds,Leeds City Council,30/09/2016,Childrens Services,Safeguarding Targeted & Specialist,Third Party Payments,Independent Fostering Agencies,509,30-Sep-2016,1609-00438,0.00,3100.00,R,Adolescent And Childrens Trust,No
Http://opendatacommunities.org/id/metropolitan-district-council/leeds,Leeds City Council as Accountable Body,30/09/2016,Social Services Pooled Budgets,Jcs For People With Learning Disabilitie,Third Party Payments,Residential,580,15-Sep-2016,1609-00439,0.00,2609.36,R,Adrian House,No
Http://opendatacommunities.org/id/metropolitan-district-council/leeds,Leeds City Council,30/09/2016,City Development,Recreation,Income,Swimming Bath Charges,923,06-Sep-2016,1609-00440,0.00,51.14,R,REDACTED PERSONAL DATA,No
Http://opendatacommunities.org/id/metropolitan-district-council/leeds,Leeds City Council,30/09/2016,Strategic Landlord,Housing Management,Supplies and Services,Other Hired And Contracted Services,265,15-Sep-2016,1609-00441,0.00,909.55,R,Adt Fire And Security Plc,No
Http://opendatacommunities.org/id/metropolitan-district-council/leeds,Leeds City Council as Accountable Body,30/09/2016,Social Services Pooled Budgets,Jcs For People With Learning Disabilitie,Third Party Payments,Sheltered Accommodation,569,19-Sep-2016,1609-00442,0.00,1332.20,R,Adult Placement Services,No
Http://opendatacommunities.org/id/metropolitan-district-council/leeds,Leeds City Council as Accountable Body,30/09/2016,Social Services Pooled Budgets,Jcs For People With Learning Disabilitie,Third Party Payments,Sheltered Accommodation,569,19-Sep-2016,1609-00443,0.00,1332.20,R,Adult Placement Services,No
Http://opendatacommunities.org/id/metropolitan-district-council/leeds,Leeds City Council as Accountable Body,30/09/2016,Social Services Pooled Budgets,Jcs For People With Learning Disabilitie,Third Party Payments,Sheltered Accommodation,569,19-Sep-2016,1609-00444,0.00,823.81,R,Adult Placement Services,No
Http://opendatacommunities.org/id/metropolitan-district-council/leeds,Leeds City Council as Accountable Body,30/09/2016,Social Services Pooled Budgets,Jcs For People With Learning Disabilitie,Third Party Payments,Sheltered Accommodation,569,19-Sep-2016,1609-00445,0.00,565.00,R,Adult Placement Services,No
Http://opendatacommunities.org/id/metropolitan-district-council/leeds,Leeds City Council as Accountable Body,30/09/2016,Social Services Pooled Budgets,Jcs For People With Learning Disabilitie,Third Party Payments,Sheltered Accommodation,569,19-Sep-2016,1609-00446,0.00,395.50,R,Adult Placement Services,No
Http://opendatacommunities.org/id/metropolitan-district-council/leeds,Leeds City Council as Accountable Body,30/09/2016,Social Services Pooled Budgets,Jcs For People With Learning Disabilitie,Third Party Payments,Sheltered Accommodation,569,29-Sep-2016,1609-00447,0.00,1332.20,R,Adult Placement Services,No
Http://opendatacommunities.org/id/metropolitan-district-council/leeds,Leeds City Council as Accountable Body,30/09/2016,Social Services Pooled Budgets,Jcs For People With Learning Disabilitie,Third Party Payments,Sheltered Accommodation,569,29-Sep-2016,1609-00448,0.00,169.50,R,Adult Placement Services,No
Http://opendatacommunities.org/id/metropolitan-district-council/leeds,Leeds City Council,30/09/2016,Adult Social Care,Services For Adults Under 65 Mental/Dis,Third Party Payments,Nursing Home,570,21-Sep-2016,1609-00449,0.00,1541.96,R,Adult Supported Living Ltd,No
Http://opendatacommunities.org/id/metropolitan-district-council/leeds,Leeds City Council,30/09/2016,City Development,Recreation,Supplies and Services,External Audit Fees,261,02-Sep-2016,1609-00450,0.00,235.00,R,Advance Stocks Ltd,No
Http://opendatacommunities.org/id/metropolitan-district-council/leeds,Leeds City Council,30/09/2016,City Development,Libraries  Arts & Heritage,Supplies and Services,External Audit Fees,261,30-Sep-2016,1609-00451,0.00,85.00,R,Advance Stocks Ltd,No
Http://opendatacommunities.org/id/metropolitan-district-council/leeds,Leeds City Council,30/09/2016,City Development,Libraries  Arts & Heritage,Supplies and Services,External Audit Fees,261,30-Sep-2016,1609-00452,0.00,85.00,R,Advance Stocks Ltd,No
Http://opendatacommunities.org/id/metropolitan-district-council/leeds,Leeds City Council,30/09/2016,Environment & Housing,Leeds Building Services,Supplies and Services,Operational Materials,205,07-Sep-2016,1609-00453,0.00,139.00,R,Advanced Labelling Limited,No
Http://opendatacommunities.org/id/metropolitan-district-council/leeds,Leeds City Council as Accountable Body,30/09/2016,Social Services Pooled Budgets,Jcs For People With Learning Disabilitie,Third Party Payments,Residential,580,21-Sep-2016,1609-00454,0.00,20213.48,R,Advitam Ltd,No
Http://opendatacommunities.org/id/metropolitan-district-council/leeds,Leeds City Council,30/09/2016,Adult Social Care,Services For Older People - 65 And Over,Third Party Payments,Payments To Voluntary Organisations,561,16-Sep-2016,1609-00455,0.00,83435.70,R,Advonet,No
Http://opendatacommunities.org/id/metropolitan-district-council/leeds,Leeds City Council,30/09/2016,Childrens Services,Safeguarding Targeted & Specialist  ,Transport,Public Transport Expenses,310,29-Jul-2016,1609-00456,0.00,66.98,R,Aerling 26jpin Redmor,Yes
Http://opendatacommunities.org/id/metropolitan-district-council/leeds,Leeds City Council,30/09/2016,Adult Social Care,Services For Older People Under 65 P/Dis,Third Party Payments,Home Care,568,05-Sep-2016,1609-00457,0.00,439.45,R,Affinity Trust,No
Http://opendatacommunities.org/id/metropolitan-district-council/leeds,Leeds City Council as Accountable Body,30/09/2016,Social Services Pooled Budgets,Jcs For People With Learning Disabilitie,Third Party Payments,Home Care,568,07-Sep-2016,1609-00458,0.00,2363.70,R,Affinity Trust,No
Http://opendatacommunities.org/id/metropolitan-district-council/leeds,Leeds City Council as Accountable Body,30/09/2016,Social Services Pooled Budgets,Jcs For People With Learning Disabilitie,Third Party Payments,Home Care,568,07-Sep-2016,1609-00459,0.00,298.31,R,Affinity Trust,No
Http://opendatacommunities.org/id/metropolitan-district-council/leeds,Leeds City Council as Accountable Body,30/09/2016,Social Services Pooled Budgets,Jcs For People With Learning Disabilitie,Third Party Payments,Day Centre,564,19-Sep-2016,1609-00460,0.00,3757.04,R,Affinity Trust,No
Http://opendatacommunities.org/id/metropolitan-district-council/leeds,Leeds City Council as Accountable Body,30/09/2016,Social Services Pooled Budgets,Jcs For People With Learning Disabilitie,Third Party Payments,Home Care,568,19-Sep-2016,1609-00461,0.00,714.00,R,Affinity Trust,No
Http://opendatacommunities.org/id/metropolitan-district-council/leeds,Leeds City Council as Accountable Body,30/09/2016,Social Services Pooled Budgets,Jcs For People With Learning Disabilitie,Third Party Payments,Home Care,568,19-Sep-2016,1609-00462,0.00,511.36,R,Affinity Trust,No
Http://opendatacommunities.org/id/metropolitan-district-council/leeds,Leeds City Council as Accountable Body,30/09/2016,Social Services Pooled Budgets,Jcs For People With Learning Disabilitie,Third Party Payments,Home Care,568,27-Sep-2016,1609-00463,0.00,456.63,R,Affinity Trust,No
Http://opendatacommunities.org/id/metropolitan-district-council/leeds,Leeds City Council as Accountable Body,30/09/2016,Social Services Pooled Budgets,Jcs For People With Learning Disabilitie,Third Party Payments,Sheltered Accommodation,569,21-Sep-2016,1609-00464,0.00,151315.59,R,Affinity Trust North Divisional Office,No
Http://opendatacommunities.org/id/metropolitan-district-council/leeds,Leeds City Council,30/09/2016,Environment & Housing,Parks And Countryside  ,Transport,Hire Of Movable Plant & Machinery,315,01-Aug-2016,1609-00465,0.00,6840.00,R,Afi Uplift Ltd,Yes
Http://opendatacommunities.org/id/metropolitan-district-council/leeds,Leeds City Council,30/09/2016,Environment & Housing,Strategic Housing Support,Supplies and Services,Other Hired And Contracted Services,265,21-Sep-2016,1609-00466,0.00,530.00,R,Afk Estates,No
Http://opendatacommunities.org/id/metropolitan-district-council/leeds,Leeds City Council,30/09/2016,Public Health,Public Health,Supplies and Services,Publication And Promotion,267,01-Sep-2016,1609-00467,0.00,1000.00,R,Age Uk Leeds,No
Http://opendatacommunities.org/id/metropolitan-district-council/leeds,Leeds City Council,30/09/2016,Environment & Housing,SP Contracts & SECC,Third Party Payments,Supporting Ppl - Block Gross Chargeable,514,02-Sep-2016,1609-00468,0.00,3957.68,R,Age Uk Leeds,No
Http://opendatacommunities.org/id/metropolitan-district-council/leeds,Leeds City Council,30/09/2016,Childrens Services,Learning Skills & Universal,Supplies and Services,College Contracts,276,16-Sep-2016,1609-00469,0.00,11550.00,R,Age Uk Leeds,No
Http://opendatacommunities.org/id/metropolitan-district-council/leeds,Leeds City Council,30/09/2016,City Development,Recreation,Supplies and Services,Other Hired And Contracted Services,265,16-Sep-2016,1609-00470,0.00,856.68,R,Age Uk Leeds,No
Http://opendatacommunities.org/id/metropolitan-district-council/leeds,Leeds City Council,30/09/2016,City Development,Recreation,Supplies and Services,Other Hired And Contracted Services,265,23-Sep-2016,1609-00471,0.00,3168.16,R,Age Uk Leeds,No
Http://opendatacommunities.org/id/metropolitan-district-council/leeds,Leeds City Council,30/09/2016,Environment & Housing,SP Contracts & SECC,Third Party Payments,Supporting Ppl - Block Gross Chargeable,514,30-Sep-2016,1609-00472,0.00,3957.68,R,Age Uk Leeds,No
Http://opendatacommunities.org/id/metropolitan-district-council/leeds,Leeds City Council,30/09/2016,Adult Social Care,Services For Older People - 65 And Over,Third Party Payments,Payments To Voluntary Organisations,561,30-Sep-2016,1609-00473,0.00,8024.75,R,Age Uk Leeds,No
Http://opendatacommunities.org/id/metropolitan-district-council/leeds,Leeds City Council,30/09/2016,City Development,Libraries  Arts & Heritage,Supplies and Services,Bought In Professional Services,277,19-Sep-2016,1609-00474,0.00,265.00,R,Agere Learning,No
Http://opendatacommunities.org/id/metropolitan-district-council/leeds,Leeds City Council,30/09/2016,City Development,Libraries  Arts & Heritage,Supplies and Services,Bought In Professional Services,277,26-Sep-2016,1609-00475,0.00,1000.00,R,Agere Learning,No
Http://opendatacommunities.org/id/metropolitan-district-council/leeds,Leeds City Council,30/09/2016,Adult Social Care,Services For Older People Under 65 P/Dis,Third Party Payments,Residential,580,21-Sep-2016,1609-00476,0.00,5598.40,R,Agricola House,No
Http://opendatacommunities.org/id/metropolitan-district-council/leeds,Leeds City Council,30/09/2016,Childrens Services,Learning Skills & Universal,Supplies and Services,Teaching Materials,202,22-Sep-2016,1609-00477,0.00,32.44,R,Aid Training & Operations Ltd,No
Http://opendatacommunities.org/id/metropolitan-district-council/leeds,Leeds City Council as Accountable Body,30/09/2016,Social Services Pooled Budgets,Leeds Community Equip Store Pooled Budgt,Supplies and Services,Other Equipment,203,02-Sep-2016,1609-00478,0.00,538.00,R,Aidapt Bathrooms Ltd,No
Http://opendatacommunities.org/id/metropolitan-district-council/leeds,Leeds City Council as Accountable Body,30/09/2016,Social Services Pooled Budgets,Leeds Community Equip Store Pooled Budgt,Supplies and Services,Other Equipment,203,08-Sep-2016,1609-00479,0.00,303.40,R,Aidapt Bathrooms Ltd,No
Http://opendatacommunities.org/id/metropolitan-district-council/leeds,Leeds City Council as Accountable Body,30/09/2016,Social Services Pooled Budgets,Leeds Community Equip Store Pooled Budgt,Supplies and Services,Other Equipment,203,08-Sep-2016,1609-00480,0.00,1737.06,R,Aidapt Bathrooms Ltd,No
Http://opendatacommunities.org/id/metropolitan-district-council/leeds,Leeds City Council as Accountable Body,30/09/2016,Social Services Pooled Budgets,Leeds Community Equip Store Pooled Budgt,Supplies and Services,Other Equipment,203,15-Sep-2016,1609-00481,0.00,176.96,R,Aidapt Bathrooms Ltd,No
Http://opendatacommunities.org/id/metropolitan-district-council/leeds,Leeds City Council as Accountable Body,30/09/2016,Social Services Pooled Budgets,Leeds Community Equip Store Pooled Budgt,Supplies and Services,Other Equipment,203,16-Sep-2016,1609-00482,0.00,101.12,R,Aidapt Bathrooms Ltd,No
Http://opendatacommunities.org/id/metropolitan-district-council/leeds,Leeds City Council as Accountable Body,30/09/2016,Social Services Pooled Budgets,Leeds Community Equip Store Pooled Budgt,Supplies and Services,Other Equipment,203,23-Sep-2016,1609-00483,0.00,2617.39,R,Aidapt Bathrooms Ltd,No
Http://opendatacommunities.org/id/metropolitan-district-council/leeds,Leeds City Council as Accountable Body,30/09/2016,Social Services Pooled Budgets,Jcs For People With Learning Disabilitie,Supplies and Services,Other Equipment,203,08-Sep-2016,1609-00484,0.00,180.00,R,Aidservice Ltd,No
Http://opendatacommunities.org/id/metropolitan-district-council/leeds,Leeds City Council,30/09/2016,Strategic Landlord,Property and Contracts,Premises,General Maintenance,104,16-Sep-2016,1609-00485,0.00,212.00,R,Aidservice Ltd,No
Http://opendatacommunities.org/id/metropolitan-district-council/leeds,Leeds City Council as Accountable Body,30/09/2016,Social Services Pooled Budgets,Leeds Community Equip Store Pooled Budgt,Supplies and Services,Other Equipment,203,23-Sep-2016,1609-00486,0.00,393.80,R,Aidservice Ltd,No
Http://opendatacommunities.org/id/metropolitan-district-council/leeds,Leeds City Council,30/09/2016,Childrens Services,Safeguarding Targeted & Specialist,Third Party Payments,Placement Support,550,28-Sep-2016,1609-00487,0.00,428.00,R,Aidservice Ltd,No
Http://opendatacommunities.org/id/metropolitan-district-council/leeds,Leeds City Council,30/09/2016,Environment & Housing,Leeds Building Services,Supplies and Services,Operational Materials,205,02-Sep-2016,1609-00488,0.00,152.53,R,Air Conditioning Accessories,No
Http://opendatacommunities.org/id/metropolitan-district-council/leeds,Leeds City Council,30/09/2016,Environment & Housing,Leeds Building Services,Supplies and Services,Operational Materials,205,05-Sep-2016,1609-00489,0.00,47.80,R,Air Conditioning Accessories,No
Http://opendatacommunities.org/id/metropolitan-district-council/leeds,Leeds City Council,30/09/2016,Environment & Housing,Leeds Building Services,Supplies and Services,Operational Materials,205,05-Sep-2016,1609-00490,0.00,1.41,R,Air Conditioning Accessories,No
Http://opendatacommunities.org/id/metropolitan-district-council/leeds,Leeds City Council,30/09/2016,Environment & Housing,Leeds Building Services,Supplies and Services,Operational Materials,205,07-Sep-2016,1609-00491,0.00,32.20,R,Air Conditioning Accessories,No
Http://opendatacommunities.org/id/metropolitan-district-council/leeds,Leeds City Council,30/09/2016,Environment & Housing,Leeds Building Services,Supplies and Services,Operational Materials,205,09-Sep-2016,1609-00492,0.00,230.44,R,Air Conditioning Accessories,No
Http://opendatacommunities.org/id/metropolitan-district-council/leeds,Leeds City Council,30/09/2016,Environment & Housing,Leeds Building Services,Supplies and Services,Operational Materials,205,09-Sep-2016,1609-00493,0.00,105.79,R,Air Conditioning Accessories,No
Http://opendatacommunities.org/id/metropolitan-district-council/leeds,Leeds City Council,30/09/2016,Environment & Housing,Leeds Building Services,Supplies and Services,Operational Materials,205,09-Sep-2016,1609-00494,0.00,408.00,R,Air Conditioning Accessories,No
Http://opendatacommunities.org/id/metropolitan-district-council/leeds,Leeds City Council,30/09/2016,Environment & Housing,Leeds Building Services,Supplies and Services,Operational Materials,205,12-Sep-2016,1609-00495,0.00,20.12,R,Air Conditioning Accessories,No
Http://opendatacommunities.org/id/metropolitan-district-council/leeds,Leeds City Council,30/09/2016,Environment & Housing,Leeds Building Services,Supplies and Services,Operational Materials,205,12-Sep-2016,1609-00496,0.00,75.00,R,Air Conditioning Accessories,No
Http://opendatacommunities.org/id/metropolitan-district-council/leeds,Leeds City Council,30/09/2016,Environment & Housing,Leeds Building Services,Supplies and Services,Operational Materials,205,12-Sep-2016,1609-00497,0.00,57.63,R,Air Conditioning Accessories,No
Http://opendatacommunities.org/id/metropolitan-district-council/leeds,Leeds City Council,30/09/2016,Environment & Housing,Leeds Building Services,Supplies and Services,Operational Materials,205,12-Sep-2016,1609-00498,0.00,77.22,R,Air Conditioning Accessories,No
Http://opendatacommunities.org/id/metropolitan-district-council/leeds,Leeds City Council,30/09/2016,Environment & Housing,Leeds Building Services,Supplies and Services,Operational Materials,205,13-Sep-2016,1609-00499,0.00,95.60,R,Air Conditioning Accessories,No
Http://opendatacommunities.org/id/metropolitan-district-council/leeds,Leeds City Council,30/09/2016,Environment & Housing,Leeds Building Services,Supplies and Services,Operational Materials,205,20-Sep-2016,1609-00500,0.00,172.04,R,Air Conditioning Accessories,No
Http://opendatacommunities.org/id/metropolitan-district-council/leeds,Leeds City Council,30/09/2016,Environment & Housing,Leeds Building Services,Supplies and Services,Operational Materials,205,20-Sep-2016,1609-00501,0.00,44.40,R,Air Conditioning Accessories,No
Http://opendatacommunities.org/id/metropolitan-district-council/leeds,Leeds City Council,30/09/2016,Environment & Housing,Leeds Building Services,Supplies and Services,Operational Materials,205,26-Sep-2016,1609-00502,0.00,56.78,R,Air Conditioning Accessories,No
Http://opendatacommunities.org/id/metropolitan-district-council/leeds,Leeds City Council,30/09/2016,Environment & Housing,Leeds Building Services,Supplies and Services,Operational Materials,205,26-Sep-2016,1609-00503,0.00,157.93,R,Air Conditioning Accessories,No
Http://opendatacommunities.org/id/metropolitan-district-council/leeds,Leeds City Council,30/09/2016,Civic Enterprise Leeds,Commercial Services  ,Supplies and Services,Operational Materials,205,03-Aug-2016,1609-00504,0.00,65.00,R,Air Force Pneumati,Yes
Http://opendatacommunities.org/id/metropolitan-district-council/leeds,Leeds City Council,30/09/2016,Civic Enterprise Leeds,Commercial Services  ,Supplies and Services,Operational Materials,205,19-Aug-2016,1609-00505,0.00,14.50,R,Air Force Pneumati,Yes
Http://opendatacommunities.org/id/metropolitan-district-council/leeds,Leeds City Council,30/09/2016,Environment & Housing,Leeds Building Services,Supplies and Services,Operational Materials,205,26-Sep-2016,1609-00506,0.00,90.60,R,Air Force Pneumatics & Hydraulics,No
Http://opendatacommunities.org/id/metropolitan-district-council/leeds,Leeds City Council,30/09/2016,Citizens and Communities,Communities,Transport,Private Hire,360,29-Sep-2016,1609-00507,0.00,162.00,R,Air Line Connections,No
Http://opendatacommunities.org/id/metropolitan-district-council/leeds,Leeds City Council,30/09/2016,Civic Enterprise Leeds,Commercial Services,Transport,Private Hire,360,30-Sep-2016,1609-00508,0.00,1205.00,R,Air Line Connections,No
Http://opendatacommunities.org/id/metropolitan-district-council/leeds,Leeds City Council,30/09/2016,Environment & Housing,Leeds Building Services,Supplies and Services,Operational Materials,205,01-Sep-2016,1609-00509,0.00,152.40,R,Air Liquide Uk,No
Http://opendatacommunities.org/id/metropolitan-district-council/leeds,Leeds City Council,30/09/2016,Environment & Housing,Environmental Health,Supplies and Services,Other Hired And Contracted Services,265,01-Sep-2016,1609-00510,0.00,13.63,R,Air Liquide Uk,No
Http://opendatacommunities.org/id/metropolitan-district-council/leeds,Leeds City Council,30/09/2016,Environment & Housing,Environmental Health,Supplies and Services,Other Hired And Contracted Services,265,01-Sep-2016,1609-00511,0.00,13.63,R,Air Liquide Uk,No
Http://opendatacommunities.org/id/metropolitan-district-council/leeds,Leeds City Council,30/09/2016,Environment & Housing,Environmental Health,Supplies and Services,Other Hired And Contracted Services,265,01-Sep-2016,1609-00512,0.00,62.58,R,Air Liquide Uk,No
Http://opendatacommunities.org/id/metropolitan-district-council/leeds,Leeds City Council,30/09/2016,Environment & Housing,Leeds Building Services,Supplies and Services,Operational Materials,205,26-Sep-2016,1609-00513,0.00,159.72,R,Air Liquide Uk,No
Http://opendatacommunities.org/id/metropolitan-district-council/leeds,Leeds City Council,30/09/2016,Adult Social Care,Services For Adults Under 65 Mental/Dis,Third Party Payments,Residential,580,21-Sep-2016,1609-00514,0.00,6028.00,R,Aire House,No
Http://opendatacommunities.org/id/metropolitan-district-council/leeds,Leeds City Council as Accountable Body,30/09/2016,Social Services Pooled Budgets,Jcs For People With Learning Disabilitie,Third Party Payments,Residential,580,21-Sep-2016,1609-00515,0.00,3059.84,R,Aire House,No
Http://opendatacommunities.org/id/metropolitan-district-council/leeds,Leeds City Council,30/09/2016,City Development,Libraries  Arts & Heritage,Supplies and Services,Operational Furniture And Equipment,203,13-Sep-2016,1609-00516,0.00,323.80,R,Aire Valley Gas Ltd,No
Http://opendatacommunities.org/id/metropolitan-district-council/leeds,Leeds City Council,30/09/2016,City Development,Economic Development,Capital,Other Costs,7,28-Sep-2016,1609-00517,0.00,184803.10,C,Aire Valley Land Llp,No
Http://opendatacommunities.org/id/metropolitan-district-council/leeds,Leeds City Council,30/09/2016,Adult Social Care,Services For Older People - 65 And Over,Third Party Payments,Residential,580,01-Sep-2016,1609-00518,0.00,17497.01,R,Aire View Residential Home,No
Http://opendatacommunities.org/id/metropolitan-district-council/leeds,Leeds City Council,30/09/2016,Adult Social Care,Services For Older People - 65 And Over,Third Party Payments,Residential Care Dementia,571,21-Sep-2016,1609-00519,0.00,49522.69,R,Aire View Residential Home,No
Http://opendatacommunities.org/id/metropolitan-district-council/leeds,Leeds City Council,30/09/2016,Adult Social Care,Services For Older People - 65 And Over,Third Party Payments,Residential,580,21-Sep-2016,1609-00520,0.00,20929.82,R,Aire View Residential Home,No
Http://opendatacommunities.org/id/metropolitan-district-council/leeds,Leeds City Council,30/09/2016,Public Health,Public Health,Third Party Payments,Public Health Commissioned Services,526,06-Sep-2016,1609-00521,0.00,3038.69,R,Aireborough Family Practice,No
Http://opendatacommunities.org/id/metropolitan-district-council/leeds,Leeds City Council,30/09/2016,Adult Social Care,Services For Older People - 65 And Over,Third Party Payments,Residential,580,01-Sep-2016,1609-00522,0.00,8574.93,R,Airedale (Goldsborough),No
Http://opendatacommunities.org/id/metropolitan-district-council/leeds,Leeds City Council,30/09/2016,Adult Social Care,Services For Older People - 65 And Over,Third Party Payments,Residential,580,05-Sep-2016,1609-00523,0.00,6205.47,R,Airedale (Goldsborough),No
Http://opendatacommunities.org/id/metropolitan-district-council/leeds,Leeds City Council,30/09/2016,Adult Social Care,Services For Older People - 65 And Over,Third Party Payments,Residential Care Dementia,571,21-Sep-2016,1609-00524,0.00,2560.85,R,Airedale (Goldsborough),No
Http://opendatacommunities.org/id/metropolitan-district-council/leeds,Leeds City Council,30/09/2016,Adult Social Care,Services For Older People - 65 And Over,Third Party Payments,Residential,580,21-Sep-2016,1609-00525,0.00,20835.55,R,Airedale (Goldsborough),No
Http://opendatacommunities.org/id/metropolitan-district-council/leeds,Leeds City Council,30/09/2016,Adult Social Care,Services For Older People Under 65 P/Dis,Third Party Payments,Residential,580,21-Sep-2016,1609-00526,0.00,1999.68,R,Airedale (Goldsborough),No
Http://opendatacommunities.org/id/metropolitan-district-council/leeds,Leeds City Council,30/09/2016,Civic Enterprise Leeds,Commercial Services,Supplies and Services,Operational Materials,205,16-Sep-2016,1609-00527,0.00,12500.00,R,Airedale Catering Equipment Ltd,No
Http://opendatacommunities.org/id/metropolitan-district-council/leeds,Leeds City Council,30/09/2016,Adult Social Care,Assessment And Care Management,Employees,Training Costs,71,23-Sep-2016,1609-00528,0.00,120.00,R,Airedale Community Trading (Act) Ltd,No
Http://opendatacommunities.org/id/metropolitan-district-council/leeds,Leeds City Council,30/09/2016,Adult Social Care,Assessment And Care Management,Employees,Training Costs,71,23-Sep-2016,1609-00529,0.00,150.00,R,Airedale Community Trading (Act) Ltd,No
Http://opendatacommunities.org/id/metropolitan-district-council/leeds,Leeds City Council,30/09/2016,Adult Social Care,Assessment And Care Management,Employees,Training Costs,71,23-Sep-2016,1609-00530,0.00,120.00,R,Airedale Community Trading (Act) Ltd,No
Http://opendatacommunities.org/id/metropolitan-district-council/leeds,Leeds City Council,30/09/2016,Environment & Housing,Environmental Health,Supplies and Services,Other Hired And Contracted Services,265,23-Sep-2016,1609-00531,0.00,201.04,R,Aireworth Vets,No
Http://opendatacommunities.org/id/metropolitan-district-council/leeds,Leeds City Council,30/09/2016,Environment & Housing,Environmental Health,Supplies and Services,Other Hired And Contracted Services,265,30-Sep-2016,1609-00532,0.00,212.63,R,Aireworth Vets,No
Http://opendatacommunities.org/id/metropolitan-district-council/leeds,Leeds City Council,30/09/2016,City Development,Libraries  Arts & Heritage,Supplies and Services,Operational Furniture And Equipment,203,07-Sep-2016,1609-00533,0.00,5314.00,R,Airquee Ltd,No
Http://opendatacommunities.org/id/metropolitan-district-council/leeds,Leeds City Council,30/09/2016,Environment & Housing,Community Safety,Supplies and Services,Bought In Professional Services,277,01-Sep-2016,1609-00534,0.00,1575.12,R,Airwave Solutions Ltd,No
Http://opendatacommunities.org/id/metropolitan-district-council/leeds,Leeds City Council,30/09/2016,Adult Social Care,Services For Adults Under 65 Mental/Dis,Third Party Payments,Fees - Level 4,520,05-Sep-2016,1609-00535,0.00,175.00,R,Ait Mitra,No
Http://opendatacommunities.org/id/metropolitan-district-council/leeds,Leeds City Council,30/09/2016,Adult Social Care,Services For Adults Under 65 Mental/Dis,Third Party Payments,Fees - Level 4,520,07-Sep-2016,1609-00536,0.00,175.00,R,Ait Mitra,No
Http://opendatacommunities.org/id/metropolitan-district-council/leeds,Leeds City Council,30/09/2016,Adult Social Care,Services For Adults Under 65 Mental/Dis,Third Party Payments,Fees - Level 4,520,07-Sep-2016,1609-00537,0.00,175.00,R,Ait Mitra,No
Http://opendatacommunities.org/id/metropolitan-district-council/leeds,Leeds City Council,30/09/2016,Adult Social Care,Services For Adults Under 65 Mental/Dis,Third Party Payments,Fees - Level 4,520,09-Sep-2016,1609-00538,0.00,175.00,R,Ait Mitra,No
Http://opendatacommunities.org/id/metropolitan-district-council/leeds,Leeds City Council,30/09/2016,Adult Social Care,Services For Adults Under 65 Mental/Dis,Third Party Payments,Fees - Level 4,520,13-Sep-2016,1609-00539,0.00,175.00,R,Ait Mitra,No
Http://opendatacommunities.org/id/metropolitan-district-council/leeds,Leeds City Council,30/09/2016,Adult Social Care,Services For Adults Under 65 Mental/Dis,Third Party Payments,Fees - Level 4,520,13-Sep-2016,1609-00540,0.00,175.00,R,Ait Mitra,No
Http://opendatacommunities.org/id/metropolitan-district-council/leeds,Leeds City Council,30/09/2016,Adult Social Care,Services For Adults Under 65 Mental/Dis,Third Party Payments,Fees - Level 4,520,13-Sep-2016,1609-00541,0.00,175.00,R,Ait Mitra,No
Http://opendatacommunities.org/id/metropolitan-district-council/leeds,Leeds City Council,30/09/2016,Adult Social Care,Services For Adults Under 65 Mental/Dis,Third Party Payments,Fees - Level 4,520,14-Sep-2016,1609-00542,0.00,175.00,R,Ait Mitra,No
Http://opendatacommunities.org/id/metropolitan-district-council/leeds,Leeds City Council,30/09/2016,Adult Social Care,Services For Adults Under 65 Mental/Dis,Third Party Payments,Fees - Level 4,520,15-Sep-2016,1609-00543,0.00,175.00,R,Ait Mitra,No
Http://opendatacommunities.org/id/metropolitan-district-council/leeds,Leeds City Council,30/09/2016,Adult Social Care,Services For Adults Under 65 Mental/Dis,Third Party Payments,Fees - Level 4,520,15-Sep-2016,1609-00544,0.00,175.00,R,Ait Mitra,No
Http://opendatacommunities.org/id/metropolitan-district-council/leeds,Leeds City Council,30/09/2016,Adult Social Care,Services For Adults Under 65 Mental/Dis,Third Party Payments,Fees - Level 4,520,15-Sep-2016,1609-00545,0.00,175.00,R,Ait Mitra,No
Http://opendatacommunities.org/id/metropolitan-district-council/leeds,Leeds City Council,30/09/2016,Adult Social Care,Services For Adults Under 65 Mental/Dis,Third Party Payments,Fees - Level 4,520,15-Sep-2016,1609-00546,0.00,175.00,R,Ait Mitra,No
Http://opendatacommunities.org/id/metropolitan-district-council/leeds,Leeds City Council,30/09/2016,Adult Social Care,Services For Adults Under 65 Mental/Dis,Third Party Payments,Fees - Level 4,520,15-Sep-2016,1609-00547,0.00,175.00,R,Ait Mitra,No
Http://opendatacommunities.org/id/metropolitan-district-council/leeds,Leeds City Council,30/09/2016,Adult Social Care,Services For Adults Under 65 Mental/Dis,Third Party Payments,Fees - Level 4,520,15-Sep-2016,1609-00548,0.00,175.00,R,Ait Mitra,No
Http://opendatacommunities.org/id/metropolitan-district-council/leeds,Leeds City Council,30/09/2016,Adult Social Care,Services For Adults Under 65 Mental/Dis,Third Party Payments,Fees - Level 4,520,15-Sep-2016,1609-00549,0.00,175.00,R,Ait Mitra,No
Http://opendatacommunities.org/id/metropolitan-district-council/leeds,Leeds City Council,30/09/2016,Adult Social Care,Services For Adults Under 65 Mental/Dis,Third Party Payments,Fees - Level 4,520,15-Sep-2016,1609-00550,0.00,175.00,R,Ait Mitra,No
Http://opendatacommunities.org/id/metropolitan-district-council/leeds,Leeds City Council,30/09/2016,Adult Social Care,Services For Adults Under 65 Mental/Dis,Third Party Payments,Fees - Level 4,520,15-Sep-2016,1609-00551,0.00,175.00,R,Ait Mitra,No
Http://opendatacommunities.org/id/metropolitan-district-council/leeds,Leeds City Council,30/09/2016,Adult Social Care,Services For Adults Under 65 Mental/Dis,Third Party Payments,Fees - Level 4,520,15-Sep-2016,1609-00552,0.00,175.00,R,Ait Mitra,No
Http://opendatacommunities.org/id/metropolitan-district-council/leeds,Leeds City Council,30/09/2016,Adult Social Care,Services For Adults Under 65 Mental/Dis,Third Party Payments,Fees - Level 4,520,15-Sep-2016,1609-00553,0.00,175.00,R,Ait Mitra,No
Http://opendatacommunities.org/id/metropolitan-district-council/leeds,Leeds City Council,30/09/2016,Adult Social Care,Services For Adults Under 65 Mental/Dis,Third Party Payments,Fees - Level 4,520,15-Sep-2016,1609-00554,0.00,175.00,R,Ait Mitra,No
Http://opendatacommunities.org/id/metropolitan-district-council/leeds,Leeds City Council,30/09/2016,Adult Social Care,Services For Adults Under 65 Mental/Dis,Third Party Payments,Fees - Level 4,520,15-Sep-2016,1609-00555,0.00,175.00,R,Ait Mitra,No
Http://opendatacommunities.org/id/metropolitan-district-council/leeds,Leeds City Council,30/09/2016,Adult Social Care,Services For Adults Under 65 Mental/Dis,Third Party Payments,Fees - Level 4,520,15-Sep-2016,1609-00556,0.00,175.00,R,Ait Mitra,No
Http://opendatacommunities.org/id/metropolitan-district-council/leeds,Leeds City Council,30/09/2016,Adult Social Care,Services For Adults Under 65 Mental/Dis,Third Party Payments,Fees - Level 4,520,16-Sep-2016,1609-00557,0.00,175.00,R,Ait Mitra,No
Http://opendatacommunities.org/id/metropolitan-district-council/leeds,Leeds City Council,30/09/2016,Adult Social Care,Services For Adults Under 65 Mental/Dis,Third Party Payments,Fees - Level 4,520,16-Sep-2016,1609-00558,0.00,175.00,R,Ait Mitra,No
Http://opendatacommunities.org/id/metropolitan-district-council/leeds,Leeds City Council,30/09/2016,Adult Social Care,Services For Adults Under 65 Mental/Dis,Third Party Payments,Fees - Level 4,520,16-Sep-2016,1609-00559,0.00,175.00,R,Ait Mitra,No
Http://opendatacommunities.org/id/metropolitan-district-council/leeds,Leeds City Council,30/09/2016,Adult Social Care,Services For Adults Under 65 Mental/Dis,Third Party Payments,Fees - Level 4,520,16-Sep-2016,1609-00560,0.00,175.00,R,Ait Mitra,No
Http://opendatacommunities.org/id/metropolitan-district-council/leeds,Leeds City Council,30/09/2016,Adult Social Care,Services For Adults Under 65 Mental/Dis,Third Party Payments,Fees - Level 4,520,16-Sep-2016,1609-00561,0.00,175.00,R,Ait Mitra,No
Http://opendatacommunities.org/id/metropolitan-district-council/leeds,Leeds City Council,30/09/2016,Adult Social Care,Services For Adults Under 65 Mental/Dis,Third Party Payments,Fees - Level 4,520,16-Sep-2016,1609-00562,0.00,175.00,R,Ait Mitra,No
Http://opendatacommunities.org/id/metropolitan-district-council/leeds,Leeds City Council,30/09/2016,Adult Social Care,Services For Adults Under 65 Mental/Dis,Third Party Payments,Fees - Level 4,520,16-Sep-2016,1609-00563,0.00,175.00,R,Ait Mitra,No
Http://opendatacommunities.org/id/metropolitan-district-council/leeds,Leeds City Council,30/09/2016,Adult Social Care,Services For Adults Under 65 Mental/Dis,Third Party Payments,Fees - Level 4,520,16-Sep-2016,1609-00564,0.00,175.00,R,Ait Mitra,No
Http://opendatacommunities.org/id/metropolitan-district-council/leeds,Leeds City Council,30/09/2016,Adult Social Care,Services For Adults Under 65 Mental/Dis,Third Party Payments,Fees - Level 4,520,16-Sep-2016,1609-00565,0.00,261.00,R,Ait Mitra,No
Http://opendatacommunities.org/id/metropolitan-district-council/leeds,Leeds City Council,30/09/2016,Adult Social Care,Services For Adults Under 65 Mental/Dis,Third Party Payments,Fees - Level 4,520,16-Sep-2016,1609-00566,0.00,175.00,R,Ait Mitra,No
Http://opendatacommunities.org/id/metropolitan-district-council/leeds,Leeds City Council,30/09/2016,Adult Social Care,Services For Adults Under 65 Mental/Dis,Third Party Payments,Fees - Level 4,520,19-Sep-2016,1609-00567,0.00,175.00,R,Ait Mitra,No
Http://opendatacommunities.org/id/metropolitan-district-council/leeds,Leeds City Council,30/09/2016,Adult Social Care,Services For Adults Under 65 Mental/Dis,Third Party Payments,Fees - Level 4,520,19-Sep-2016,1609-00568,0.00,175.00,R,Ait Mitra,No
Http://opendatacommunities.org/id/metropolitan-district-council/leeds,Leeds City Council,30/09/2016,Adult Social Care,Services For Adults Under 65 Mental/Dis,Third Party Payments,Fees - Level 4,520,20-Sep-2016,1609-00569,0.00,175.00,R,Ait Mitra,No
Http://opendatacommunities.org/id/metropolitan-district-council/leeds,Leeds City Council,30/09/2016,Adult Social Care,Services For Adults Under 65 Mental/Dis,Third Party Payments,Fees - Level 4,520,20-Sep-2016,1609-00570,0.00,175.00,R,Ait Mitra,No
Http://opendatacommunities.org/id/metropolitan-district-council/leeds,Leeds City Council,30/09/2016,Adult Social Care,Services For Adults Under 65 Mental/Dis,Third Party Payments,Fees - Level 4,520,20-Sep-2016,1609-00571,0.00,175.00,R,Ait Mitra,No
Http://opendatacommunities.org/id/metropolitan-district-council/leeds,Leeds City Council,30/09/2016,Adult Social Care,Services For Adults Under 65 Mental/Dis,Third Party Payments,Fees - Level 4,520,20-Sep-2016,1609-00572,0.00,175.00,R,Ait Mitra,No
Http://opendatacommunities.org/id/metropolitan-district-council/leeds,Leeds City Council,30/09/2016,Adult Social Care,Services For Adults Under 65 Mental/Dis,Third Party Payments,Fees - Level 4,520,23-Sep-2016,1609-00573,0.00,175.00,R,Ait Mitra,No
Http://opendatacommunities.org/id/metropolitan-district-council/leeds,Leeds City Council,30/09/2016,Adult Social Care,Services For Adults Under 65 Mental/Dis,Third Party Payments,Fees - Level 4,520,23-Sep-2016,1609-00574,0.00,175.00,R,Ait Mitra,No
Http://opendatacommunities.org/id/metropolitan-district-council/leeds,Leeds City Council,30/09/2016,Adult Social Care,Services For Adults Under 65 Mental/Dis,Third Party Payments,Fees - Level 4,520,29-Sep-2016,1609-00575,0.00,261.00,R,Ait Mitra,No
Http://opendatacommunities.org/id/metropolitan-district-council/leeds,Leeds City Council,30/09/2016,Adult Social Care,Services For Adults Under 65 Mental/Dis,Third Party Payments,Fees - Level 4,520,29-Sep-2016,1609-00576,0.00,175.00,R,Ait Mitra,No
Http://opendatacommunities.org/id/metropolitan-district-council/leeds,Leeds City Council,30/09/2016,Adult Social Care,Services For Adults Under 65 Mental/Dis,Third Party Payments,Fees - Level 4,520,29-Sep-2016,1609-00577,0.00,175.00,R,Ait Mitra,No
Http://opendatacommunities.org/id/metropolitan-district-council/leeds,Leeds City Council,30/09/2016,Adult Social Care,Services For Adults Under 65 Mental/Dis,Third Party Payments,Fees - Level 4,520,29-Sep-2016,1609-00578,0.00,175.00,R,Ait Mitra,No
Http://opendatacommunities.org/id/metropolitan-district-council/leeds,Leeds City Council,30/09/2016,Adult Social Care,Services For Adults Under 65 Mental/Dis,Third Party Payments,Fees - Level 4,520,29-Sep-2016,1609-00579,0.00,175.00,R,Ait Mitra,No
Http://opendatacommunities.org/id/metropolitan-district-council/leeds,Leeds City Council,30/09/2016,Adult Social Care,Services For Adults Under 65 Mental/Dis,Third Party Payments,Fees - Level 4,520,29-Sep-2016,1609-00580,0.00,175.00,R,Ait Mitra,No
Http://opendatacommunities.org/id/metropolitan-district-council/leeds,Leeds City Council,30/09/2016,Adult Social Care,Services For Adults Under 65 Mental/Dis,Third Party Payments,Fees - Level 4,520,30-Sep-2016,1609-00581,0.00,175.00,R,Ait Mitra,No
Http://opendatacommunities.org/id/metropolitan-district-council/leeds,Leeds City Council,30/09/2016,Adult Social Care,Services For Adults Under 65 Mental/Dis,Third Party Payments,Fees - Level 4,520,30-Sep-2016,1609-00582,0.00,175.00,R,Ait Mitra,No
Http://opendatacommunities.org/id/metropolitan-district-council/leeds,Leeds City Council,30/09/2016,Adult Social Care,Services For Adults Under 65 Mental/Dis,Third Party Payments,Fees - Level 4,520,30-Sep-2016,1609-00583,0.00,175.00,R,Ait Mitra,No
Http://opendatacommunities.org/id/metropolitan-district-council/leeds,Leeds City Council,30/09/2016,Adult Social Care,Services For Adults Under 65 Mental/Dis,Third Party Payments,Fees - Level 4,520,30-Sep-2016,1609-00584,0.00,175.00,R,Ait Mitra,No
Http://opendatacommunities.org/id/metropolitan-district-council/leeds,Leeds City Council,30/09/2016,Adult Social Care,Services For Adults Under 65 Mental/Dis,Third Party Payments,Fees - Level 4,520,30-Sep-2016,1609-00585,0.00,175.00,R,Ait Mitra,No
Http://opendatacommunities.org/id/metropolitan-district-council/leeds,Leeds City Council,30/09/2016,Adult Social Care,Services For Adults Under 65 Mental/Dis,Third Party Payments,Fees - Level 4,520,30-Sep-2016,1609-00586,0.00,175.00,R,Ait Mitra,No
Http://opendatacommunities.org/id/metropolitan-district-council/leeds,Leeds City Council,30/09/2016,Adult Social Care,Services For Adults Under 65 Mental/Dis,Third Party Payments,Fees - Level 4,520,30-Sep-2016,1609-00587,0.00,175.00,R,Ait Mitra,No
Http://opendatacommunities.org/id/metropolitan-district-council/leeds,Leeds City Council,30/09/2016,Adult Social Care,Services For Adults Under 65 Mental/Dis,Third Party Payments,Fees - Level 4,520,30-Sep-2016,1609-00588,0.00,175.00,R,Ait Mitra,No
Http://opendatacommunities.org/id/metropolitan-district-council/leeds,Leeds City Council,30/09/2016,Adult Social Care,Services For Adults Under 65 Mental/Dis,Third Party Payments,Fees - Level 4,520,30-Sep-2016,1609-00589,0.00,175.00,R,Ait Mitra,No
Http://opendatacommunities.org/id/metropolitan-district-council/leeds,Leeds City Council as Accountable Body,30/09/2016,Social Services Pooled Budgets,Jcs For People With Learning Disabilitie,Third Party Payments,Residential,580,21-Sep-2016,1609-00590,0.00,6173.24,R,Aitch Care Homes,No
Http://opendatacommunities.org/id/metropolitan-district-council/leeds,Leeds City Council,30/09/2016,Environment & Housing,Parks and Countryside,Supplies and Services,Operational Materials,205,16-Sep-2016,1609-00591,0.00,45.90,R,Aitkens Sportsturf Ltd,No
Http://opendatacommunities.org/id/metropolitan-district-council/leeds,Leeds City Council,30/09/2016,Adult Social Care,Services For Older People Under 65 P/Dis,Third Party Payments,Home Care,568,08-Sep-2016,1609-00592,0.00,30.68,R,Aj Social Care,No
Http://opendatacommunities.org/id/metropolitan-district-council/leeds,Leeds City Council,30/09/2016,Adult Social Care,Services For Older People - 65 And Over,Third Party Payments,Home Care,568,16-Sep-2016,1609-00593,0.00,3843.98,R,Aj Social Care,No
Http://opendatacommunities.org/id/metropolitan-district-council/leeds,Leeds City Council,30/09/2016,Adult Social Care,Services For Older People Under 65 P/Dis,Third Party Payments,Home Care,568,16-Sep-2016,1609-00594,0.00,5529.08,R,Aj Social Care,No
Http://opendatacommunities.org/id/metropolitan-district-council/leeds,Leeds City Council,30/09/2016,Adult Social Care,Services For Older People Under 65 P/Dis,Third Party Payments,Home Care,568,16-Sep-2016,1609-00595,0.00,17273.85,R,Aj Social Care,No
Http://opendatacommunities.org/id/metropolitan-district-council/leeds,Leeds City Council,30/09/2016,Adult Social Care,Services For Older People - 65 And Over,Third Party Payments,Home Care,568,30-Sep-2016,1609-00596,0.00,26.37,R,Aj Social Care,No
Http://opendatacommunities.org/id/metropolitan-district-council/leeds,Leeds City Council,30/09/2016,Adult Social Care,Services For Older People Under 65 P/Dis,Third Party Payments,Home Care,568,30-Sep-2016,1609-00597,0.00,23.97,R,Aj Social Care,No
Http://opendatacommunities.org/id/metropolitan-district-council/leeds,Leeds City Council,30/09/2016,Environment & Housing,Leeds Building Services,Supplies and Services,Operational Furniture And Equipment,203,02-Sep-2016,1609-00598,0.00,1104.00,R,Ajm Fixings & Power Tools Ltd,No
Http://opendatacommunities.org/id/metropolitan-district-council/leeds,Leeds City Council,30/09/2016,Environment & Housing,Leeds Building Services,Supplies and Services,Stores - Central And Other Depots,005,02-Sep-2016,1609-00599,0.00,111.44,R,Ajm Fixings & Power Tools Ltd,No
Http://opendatacommunities.org/id/metropolitan-district-council/leeds,Leeds City Council,30/09/2016,Environment & Housing,Leeds Building Services,Supplies and Services,Stores - Central And Other Depots,005,02-Sep-2016,1609-00600,0.00,412.30,R,Ajm Fixings & Power Tools Ltd,No
Http://opendatacommunities.org/id/metropolitan-district-council/leeds,Leeds City Council,30/09/2016,Environment & Housing,Leeds Building Services,Supplies and Services,Operational Furniture And Equipment,203,20-Sep-2016,1609-00601,0.00,305.00,R,Ajm Fixings & Power Tools Ltd,No
Http://opendatacommunities.org/id/metropolitan-district-council/leeds,Leeds City Council,30/09/2016,Environment & Housing,Leeds Building Services,Supplies and Services,Stores - Central And Other Depots,005,21-Sep-2016,1609-00602,0.00,71.75,R,Ajm Fixings & Power Tools Ltd,No
Http://opendatacommunities.org/id/metropolitan-district-council/leeds,Leeds City Council,30/09/2016,Environment & Housing,Leeds Building Services,Supplies and Services,Operational Furniture And Equipment,203,26-Sep-2016,1609-00603,0.00,674.00,R,Ajm Fixings & Power Tools Ltd,No
Http://opendatacommunities.org/id/metropolitan-district-council/leeds,Leeds City Council,30/09/2016,Environment & Housing,Leeds Building Services,Supplies and Services,Stores - Central And Other Depots,005,26-Sep-2016,1609-00604,0.00,646.44,R,Ajm Fixings & Power Tools Ltd,No
Http://opendatacommunities.org/id/metropolitan-district-council/leeds,Leeds City Council,30/09/2016,Environment & Housing,Leeds Building Services,Supplies and Services,Operational Furniture And Equipment,203,29-Sep-2016,1609-00605,0.00,60.20,R,Ajm Fixings & Power Tools Ltd,No
Http://opendatacommunities.org/id/metropolitan-district-council/leeds,Leeds City Council,30/09/2016,Environment & Housing,Leeds Building Services,Supplies and Services,Operational Furniture And Equipment,203,30-Sep-2016,1609-00606,0.00,225.00,R,Ajm Fixings & Power Tools Ltd,No
Http://opendatacommunities.org/id/metropolitan-district-council/leeds,Leeds City Council,30/09/2016,Environment & Housing,Leeds Building Services,Supplies and Services,Stores - Central And Other Depots,005,30-Sep-2016,1609-00607,0.00,305.70,R,Ajm Fixings & Power Tools Ltd,No
Http://opendatacommunities.org/id/metropolitan-district-council/leeds,Leeds City Council,30/09/2016,Environment & Housing,Leeds Building Services,Supplies and Services,Stores - Central And Other Depots,005,30-Sep-2016,1609-00608,0.00,343.50,R,Ajm Fixings & Power Tools Ltd,No
Http://opendatacommunities.org/id/metropolitan-district-council/leeds,Leeds City Council,30/09/2016,Central & Corporate,Human Resources,Employees,Training & Development,70,16-Sep-2016,1609-00609,0.00,225.00,R,Ajp Technologies Ltd,No
Http://opendatacommunities.org/id/metropolitan-district-council/leeds,Leeds City Council,30/09/2016,Adult Social Care,Services For Older People - 65 And Over,Third Party Payments,Nursing Home,570,21-Sep-2016,1609-00610,0.00,1261.04,R,Akari Care Ltd,No
Http://opendatacommunities.org/id/metropolitan-district-council/leeds,Leeds City Council,30/09/2016,Insurance,Insurance,Supplies and Services,Insurance Claims,248,06-Sep-2016,1609-00611,0.00,2754.67,R,REDACTED PERSONAL DATA,No
Http://opendatacommunities.org/id/metropolitan-district-council/leeds,Leeds City Council,30/09/2016,Citizens and Communities,Communities,Supplies and Services,'Well Being' Large Grants Projects,230,01-Sep-2016,1609-00612,0.00,2500.00,R,Al Khidmat Centre,No
Http://opendatacommunities.org/id/metropolitan-district-council/leeds,Leeds City Council,30/09/2016,Citizens and Communities,Communities,Supplies and Services,'Well Being' Large Grants Projects,230,02-Sep-2016,1609-00613,0.00,2500.00,R,Al Khidmat Centre,No
Http://opendatacommunities.org/id/metropolitan-district-council/leeds,Leeds City Council,30/09/2016,Adult Social Care,Services For Older People - 65 And Over,Third Party Payments,Payments To Voluntary Organisations,561,30-Sep-2016,1609-00614,0.00,3000.00,R,Al Khidmat Centre,No
Http://opendatacommunities.org/id/metropolitan-district-council/leeds,Leeds City Council,30/09/2016,Public Health,Public Health,Third Party Payments,Public Health Commissioned Services,526,21-Sep-2016,1609-00615,0.00,4586.10,R,Al Shafa Pharmacy,No
Http://opendatacommunities.org/id/metropolitan-district-council/leeds,Leeds City Council,30/09/2016,Central & Corporate,Democratic Services  ,Supplies and Services,Office Consumables,210,03-Aug-2016,1609-00616,0.00,35.00,R,Alan Brown Flowers,Yes
Http://opendatacommunities.org/id/metropolitan-district-council/leeds,Leeds City Council,30/09/2016,City Development,Libraries  Arts & Heritage,Supplies and Services,Other Hired And Contracted Services,265,09-Sep-2016,1609-00617,0.00,466.90,R,Albion Electric Stores Ltd,No
Http://opendatacommunities.org/id/metropolitan-district-council/leeds,Leeds City Council,30/09/2016,Environment & Housing,Waste Management,Supplies and Services,Other Hired And Contracted Services,265,09-Sep-2016,1609-00618,0.00,100.00,R,Alcontrol Uk Ltd,No
Http://opendatacommunities.org/id/metropolitan-district-council/leeds,Leeds City Council,30/09/2016,Environment & Housing,Waste Management,Supplies and Services,Other Hired And Contracted Services,265,23-Sep-2016,1609-00619,0.00,289.00,R,Alcontrol Uk Ltd,No
Http://opendatacommunities.org/id/metropolitan-district-council/leeds,Leeds City Council,30/09/2016,Childrens Services,Safeguarding Targeted & Specialist  ,Supplies and Services,Food & Drink,231,21-Aug-2016,1609-00620,0.00,23.43,R,Aldi,Yes
Http://opendatacommunities.org/id/metropolitan-district-council/leeds,Leeds City Council,30/09/2016,Childrens Services,Safeguarding Targeted & Specialist  ,Transfer Payments,Leaving Care Allowances,634,25-Aug-2016,1609-00621,0.00,15.17,R,Aldi,Yes
Http://opendatacommunities.org/id/metropolitan-district-council/leeds,Leeds City Council,30/09/2016,Childrens Services,Safeguarding Targeted & Specialist,Support Services,Legal Disbursements,411,05-Sep-2016,1609-00622,0.00,47.00,R,Alere Toxicology Plc,No
Http://opendatacommunities.org/id/metropolitan-district-council/leeds,Leeds City Council,30/09/2016,Childrens Services,Safeguarding Targeted & Specialist,Support Services,Legal Disbursements,411,05-Sep-2016,1609-00623,0.00,47.00,R,Alere Toxicology Plc,No
Http://opendatacommunities.org/id/metropolitan-district-council/leeds,Leeds City Council,30/09/2016,Childrens Services,Safeguarding Targeted & Specialist,Support Services,Legal Disbursements,411,15-Sep-2016,1609-00624,0.00,77.75,R,Alere Toxicology Plc,No
Http://opendatacommunities.org/id/metropolitan-district-council/leeds,Leeds City Council,30/09/2016,Childrens Services,Learning Skills & Universal,Supplies and Services,Training Allowances,257,02-Sep-2016,1609-00625,0.00,255.59,R,REDACTED PERSONAL DATA,No
Http://opendatacommunities.org/id/metropolitan-district-council/leeds,Leeds City Council,30/09/2016,Childrens Services,Learning Skills & Universal,Supplies and Services,Training Allowances,257,09-Sep-2016,1609-00626,0.00,255.59,R,REDACTED PERSONAL DATA,No
Http://opendatacommunities.org/id/metropolitan-district-council/leeds,Leeds City Council,30/09/2016,Childrens Services,Learning Skills & Universal,Supplies and Services,Training Allowances,257,16-Sep-2016,1609-00627,0.00,255.59,R,REDACTED PERSONAL DATA,No
Http://opendatacommunities.org/id/metropolitan-district-council/leeds,Leeds City Council,30/09/2016,Childrens Services,Learning Skills & Universal,Supplies and Services,Training Allowances,257,22-Sep-2016,1609-00628,0.00,255.59,R,REDACTED PERSONAL DATA,No
Http://opendatacommunities.org/id/metropolitan-district-council/leeds,Leeds City Council,30/09/2016,Childrens Services,Learning Skills & Universal,Supplies and Services,Training Allowances,257,30-Sep-2016,1609-00629,0.00,255.59,R,REDACTED PERSONAL DATA,No
Http://opendatacommunities.org/id/metropolitan-district-council/leeds,Leeds City Council,30/09/2016,Childrens Services,Safeguarding Targeted & Specialist,Support Services,Legal Disbursements,411,09-Sep-2016,1609-00630,0.00,469.00,R,Alex Taylor,No
Http://opendatacommunities.org/id/metropolitan-district-council/leeds,Leeds City Council,30/09/2016,Childrens Services,Safeguarding Targeted & Specialist,Support Services,Legal Disbursements,411,09-Sep-2016,1609-00631,0.00,361.00,R,Alex Taylor,No
Http://opendatacommunities.org/id/metropolitan-district-council/leeds,Leeds City Council,30/09/2016,Childrens Services,Safeguarding Targeted & Specialist,Support Services,Legal Disbursements,411,30-Sep-2016,1609-00632,0.00,6928.00,R,Alex Taylor,No
Http://opendatacommunities.org/id/metropolitan-district-council/leeds,Leeds City Council,30/09/2016,Childrens Services,Safeguarding Targeted & Specialist,Support Services,Legal Disbursements,411,30-Sep-2016,1609-00633,0.00,361.00,R,Alex Taylor,No
Http://opendatacommunities.org/id/metropolitan-district-council/leeds,Leeds City Council,30/09/2016,Childrens Services,Safeguarding Targeted & Specialist,Third Party Payments,Rents (non supported),552,22-Sep-2016,1609-00634,0.00,330.00,R,REDACTED PERSONAL DATA,No
Http://opendatacommunities.org/id/metropolitan-district-council/leeds,Leeds City Council,30/09/2016,Childrens Services,Safeguarding Targeted & Specialist,Third Party Payments,Rents (non supported),552,22-Sep-2016,1609-00635,0.00,330.00,R,REDACTED PERSONAL DATA,No
Http://opendatacommunities.org/id/metropolitan-district-council/leeds,Leeds City Council,30/09/2016,Childrens Services,Safeguarding Targeted & Specialist,Third Party Payments,Rents (non supported),552,30-Sep-2016,1609-00636,0.00,990.00,R,REDACTED PERSONAL DATA,No
Http://opendatacommunities.org/id/metropolitan-district-council/leeds,Leeds City Council,30/09/2016,Adult Social Care,Services For Older People - 65 And Over,Third Party Payments,Residential,580,01-Sep-2016,1609-00637,0.00,9107.82,R,Alexander Residential Home,No
Http://opendatacommunities.org/id/metropolitan-district-council/leeds,Leeds City Council,30/09/2016,Adult Social Care,Services For Older People - 65 And Over,Third Party Payments,Residential Care Dementia,571,21-Sep-2016,1609-00638,0.00,8967.00,R,Alexander Residential Home,No
Http://opendatacommunities.org/id/metropolitan-district-council/leeds,Leeds City Council,30/09/2016,Adult Social Care,Services For Older People - 65 And Over,Third Party Payments,Residential,580,21-Sep-2016,1609-00639,0.00,21859.97,R,Alexander Residential Home,No
Http://opendatacommunities.org/id/metropolitan-district-council/leeds,Leeds City Council,30/09/2016,Citizens and Communities,Customer Access,Supplies and Services,Other Hired And Contracted Services,265,05-Sep-2016,1609-00640,0.00,293.50,R,Alexandra Costenco,No
Http://opendatacommunities.org/id/metropolitan-district-council/leeds,Leeds City Council,30/09/2016,Adult Social Care,Services For Older People - 65 And Over,Third Party Payments,Residential,580,01-Sep-2016,1609-00641,0.00,4027.97,R,Alexandra Court,No
Http://opendatacommunities.org/id/metropolitan-district-council/leeds,Leeds City Council,30/09/2016,Adult Social Care,Services For Older People - 65 And Over,Third Party Payments,Residential Care Dementia,571,21-Sep-2016,1609-00642,0.00,1511.28,R,Alexandra Court,No
Http://opendatacommunities.org/id/metropolitan-district-council/leeds,Leeds City Council,30/09/2016,Adult Social Care,Services For Older People - 65 And Over,Third Party Payments,Residential,580,21-Sep-2016,1609-00643,0.00,11586.80,R,Alexandra Court,No
Http://opendatacommunities.org/id/metropolitan-district-council/leeds,Leeds City Council,30/09/2016,Citizens and Communities,Customer Access,Supplies and Services,Other Hired And Contracted Services,265,05-Sep-2016,1609-00644,0.00,524.00,R,Alexandra Hirst,No
Http://opendatacommunities.org/id/metropolitan-district-council/leeds,Leeds City Council,30/09/2016,Environment & Housing,Streetscene Environmental Services,Income,Penalties  Fines & Car Parking Charges,934,02-Sep-2016,1609-00645,0.00,2.00,R,REDACTED PERSONAL DATA,No
Http://opendatacommunities.org/id/metropolitan-district-council/leeds,Leeds City Council,30/09/2016,Citizens and Communities,Customer Access,Supplies and Services,Other Hired And Contracted Services,265,05-Sep-2016,1609-00646,0.00,100.50,R,Alexia Blohm-Pain,No
Http://opendatacommunities.org/id/metropolitan-district-council/leeds,Leeds City Council,30/09/2016,Citizens and Communities,Customer Access,Supplies and Services,Other Hired And Contracted Services,265,05-Sep-2016,1609-00647,0.00,1717.03,R,Alfred Bagnall & Sons (Leeds) Ltd,No
Http://opendatacommunities.org/id/metropolitan-district-council/leeds,Leeds City Council,30/09/2016,Environment & Housing,Leeds Building Services,Supplies and Services,Other Hired And Contracted Services,265,23-Sep-2016,1609-00648,0.00,177.92,R,Alfred Bagnall & Sons (Leeds) Ltd,No
Http://opendatacommunities.org/id/metropolitan-district-council/leeds,Leeds City Council,30/09/2016,Environment & Housing,Leeds Building Services,Supplies and Services,Other Hired And Contracted Services,265,30-Sep-2016,1609-00649,0.00,7547.00,R,Alfred Bagnall & Sons (Leeds) Ltd,No
Http://opendatacommunities.org/id/metropolitan-district-council/leeds,Leeds City Council,30/09/2016,Environment & Housing,Leeds Building Services,Supplies and Services,Other Hired And Contracted Services,265,30-Sep-2016,1609-00650,0.00,3767.00,R,Alfred Bagnall & Sons (Leeds) Ltd,No
Http://opendatacommunities.org/id/metropolitan-district-council/leeds,Leeds City Council,30/09/2016,Environment & Housing,Leeds Building Services,Supplies and Services,Other Hired And Contracted Services,265,30-Sep-2016,1609-00651,0.00,3695.00,R,Alfred Bagnall & Sons (Leeds) Ltd,No
Http://opendatacommunities.org/id/metropolitan-district-council/leeds,Leeds City Council,30/09/2016,Environment & Housing,Leeds Building Services,Supplies and Services,Other Hired And Contracted Services,265,30-Sep-2016,1609-00652,0.00,5643.00,R,Alfred Bagnall & Sons (Leeds) Ltd,No
Http://opendatacommunities.org/id/metropolitan-district-council/leeds,Leeds City Council,30/09/2016,Environment & Housing,Leeds Building Services,Supplies and Services,Other Hired And Contracted Services,265,30-Sep-2016,1609-00653,0.00,172.92,R,Alfred Bagnall & Sons (Leeds) Ltd,No
Http://opendatacommunities.org/id/metropolitan-district-council/leeds,Leeds City Council,30/09/2016,Strategic Accounts,Miscellaneous,Supplies and Services,Non-Recurring Grants,227,05-Sep-2016,1609-00654,0.00,50.00,R,Al-Hassan Education Centre,No
Http://opendatacommunities.org/id/metropolitan-district-council/leeds,Leeds City Council,30/09/2016,Childrens Services,Safeguarding Targeted & Specialist,Transfer Payments,Leaving Care Allowances,634,01-Sep-2016,1609-00655,0.00,60.00,R,REDACTED PERSONAL DATA,No
Http://opendatacommunities.org/id/metropolitan-district-council/leeds,Leeds City Council,30/09/2016,Childrens Services,Safeguarding Targeted & Specialist,Transfer Payments,Leaving Care Allowances,634,15-Sep-2016,1609-00656,0.00,120.00,R,REDACTED PERSONAL DATA,No
Http://opendatacommunities.org/id/metropolitan-district-council/leeds,Leeds City Council,30/09/2016,Childrens Services,Safeguarding Targeted & Specialist,Transfer Payments,Leaving Care Allowances,634,22-Sep-2016,1609-00657,0.00,60.00,R,REDACTED PERSONAL DATA,No
Http://opendatacommunities.org/id/metropolitan-district-council/leeds,Leeds City Council,30/09/2016,Childrens Services,Safeguarding Targeted & Specialist,Transfer Payments,Leaving Care Allowances,634,29-Sep-2016,1609-00658,0.00,60.00,R,REDACTED PERSONAL DATA,No
Http://opendatacommunities.org/id/metropolitan-district-council/leeds,Leeds City Council,30/09/2016,Childrens Services,Safeguarding Targeted & Specialist,Third Party Payments,Section 17,551,01-Sep-2016,1609-00659,0.00,56.90,R,REDACTED PERSONAL DATA,No
Http://opendatacommunities.org/id/metropolitan-district-council/leeds,Leeds City Council,30/09/2016,Childrens Services,Safeguarding Targeted & Specialist,Third Party Payments,Section 17,551,09-Sep-2016,1609-00660,0.00,56.90,R,REDACTED PERSONAL DATA,No
Http://opendatacommunities.org/id/metropolitan-district-council/leeds,Leeds City Council,30/09/2016,Childrens Services,Safeguarding Targeted & Specialist,Third Party Payments,Section 17,551,15-Sep-2016,1609-00661,0.00,56.90,R,REDACTED PERSONAL DATA,No
Http://opendatacommunities.org/id/metropolitan-district-council/leeds,Leeds City Council,30/09/2016,Childrens Services,Safeguarding Targeted & Specialist,Third Party Payments,Section 17,551,23-Sep-2016,1609-00662,0.00,56.90,R,REDACTED PERSONAL DATA,No
Http://opendatacommunities.org/id/metropolitan-district-council/leeds,Leeds City Council,30/09/2016,Childrens Services,Safeguarding Targeted & Specialist,Third Party Payments,Section 17,551,30-Sep-2016,1609-00663,0.00,56.90,R,REDACTED PERSONAL DATA,No
Http://opendatacommunities.org/id/metropolitan-district-council/leeds,Leeds City Council,30/09/2016,City Development,Libraries  Arts & Heritage,Supplies and Services,Other Hired And Contracted Services,265,08-Sep-2016,1609-00664,0.00,115.00,R,Alison Smith,No
Http://opendatacommunities.org/id/metropolitan-district-council/leeds,Leeds City Council,30/09/2016,City Development,Libraries  Arts & Heritage,Supplies and Services,Other Hired And Contracted Services,265,08-Sep-2016,1609-00665,0.00,150.00,R,Alison Smith,No
Http://opendatacommunities.org/id/metropolitan-district-council/leeds,Leeds City Council,30/09/2016,City Development,Libraries  Arts & Heritage,Supplies and Services,Other Hired And Contracted Services,265,14-Sep-2016,1609-00666,0.00,500.00,R,Alison Smith,No
Http://opendatacommunities.org/id/metropolitan-district-council/leeds,Leeds City Council,30/09/2016,City Development,Libraries  Arts & Heritage,Supplies and Services,Other Hired And Contracted Services,265,19-Sep-2016,1609-00667,0.00,250.00,R,Alison Smith,No
Http://opendatacommunities.org/id/metropolitan-district-council/leeds,Leeds City Council,30/09/2016,Civic Enterprise Leeds,Commercial Services,Supplies and Services,Other Hired And Contracted Services,265,05-Sep-2016,1609-00668,0.00,30.00,R,REDACTED PERSONAL DATA,No
Http://opendatacommunities.org/id/metropolitan-district-council/leeds,Leeds City Council,30/09/2016,City Development,Recreation,Income,Swimming Bath Charges,923,12-Sep-2016,1609-00669,0.00,41.40,R,REDACTED PERSONAL DATA,No
Http://opendatacommunities.org/id/metropolitan-district-council/leeds,Leeds City Council,30/09/2016,Childrens Services,Safeguarding Targeted & Specialist,Third Party Payments,Section 17,551,19-Sep-2016,1609-00670,0.00,120.00,R,All Abode,No
Http://opendatacommunities.org/id/metropolitan-district-council/leeds,Leeds City Council,30/09/2016,Childrens Services,Safeguarding Targeted & Specialist,Transfer Payments,Leaving Care Allowances,634,22-Sep-2016,1609-00671,0.00,45.00,R,All Abode,No
Http://opendatacommunities.org/id/metropolitan-district-council/leeds,Leeds City Council,30/09/2016,Environment & Housing,Leeds Building Services,Supplies and Services,Other Hired And Contracted Services,265,01-Sep-2016,1609-00672,0.00,195.00,R,All Clear Solutions Ltd,No
Http://opendatacommunities.org/id/metropolitan-district-council/leeds,Leeds City Council,30/09/2016,Environment & Housing,Leeds Building Services,Supplies and Services,Other Hired And Contracted Services,265,19-Sep-2016,1609-00673,0.00,195.00,R,All Clear Solutions Ltd,No
Http://opendatacommunities.org/id/metropolitan-district-council/leeds,Leeds City Council,30/09/2016,Environment & Housing,Leeds Building Services,Supplies and Services,Other Hired And Contracted Services,265,23-Sep-2016,1609-00674,0.00,195.00,R,All Clear Solutions Ltd,No
Http://opendatacommunities.org/id/metropolitan-district-council/leeds,Leeds City Council,30/09/2016,Environment & Housing,Leeds Building Services,Supplies and Services,Other Hired And Contracted Services,265,23-Sep-2016,1609-00675,0.00,195.00,R,All Clear Solutions Ltd,No
Http://opendatacommunities.org/id/metropolitan-district-council/leeds,Leeds City Council,30/09/2016,Environment & Housing,Leeds Building Services,Supplies and Services,Other Hired And Contracted Services,265,23-Sep-2016,1609-00676,0.00,195.00,R,All Clear Solutions Ltd,No
Http://opendatacommunities.org/id/metropolitan-district-council/leeds,Leeds City Council,30/09/2016,City Development,Recreation  ,Employees,Basic Pay,1,04-Aug-2016,1609-00677,0.00,222.34,R,All England Netbal,Yes
Http://opendatacommunities.org/id/metropolitan-district-council/leeds,Leeds City Council,30/09/2016,Childrens Services,Learning Skills & Universal,Third Party Payments,Services Rendered By Other Organisations,511,09-Sep-2016,1609-00678,0.00,2444.40,R,All Stars Childcare,No
Http://opendatacommunities.org/id/metropolitan-district-council/leeds,Leeds City Council,30/09/2016,Childrens Services,Learning Skills & Universal,Third Party Payments,Services Rendered By Other Organisations,511,14-Sep-2016,1609-00679,0.00,12129.60,R,All Stars Childcare,No
Http://opendatacommunities.org/id/metropolitan-district-council/leeds,Leeds City Council,30/09/2016,Environment & Housing,Parks And Countryside  ,Supplies and Services,Operational Furniture And Equipment,203,01-Aug-2016,1609-00680,0.00,304.45,R,Allen Group,Yes
Http://opendatacommunities.org/id/metropolitan-district-council/leeds,Leeds City Council as Accountable Body,30/09/2016,Social Services Pooled Budgets,Jcs For People With Learning Disabilitie,Third Party Payments,Sheltered Accommodation,569,21-Sep-2016,1609-00681,0.00,12777.88,R,Allerton Avenue,No
Http://opendatacommunities.org/id/metropolitan-district-council/leeds,Leeds City Council,30/09/2016,Public Health,Public Health,Third Party Payments,Public Health Commissioned Services,526,06-Sep-2016,1609-00682,0.00,2352.15,R,Allerton Medical Centre,No
Http://opendatacommunities.org/id/metropolitan-district-council/leeds,Leeds City Council,30/09/2016,Central & Corporate,Finance,Supplies and Services,Bank Charges,263,01-Sep-2016,1609-00683,0.00,-113.45,R,Alliance & Leicester Commercial Bank,No
Http://opendatacommunities.org/id/metropolitan-district-council/leeds,Leeds City Council,30/09/2016,Strategic Landlord,Housing Management,Supplies and Services,Other Hired And Contracted Services,265,06-Sep-2016,1609-00684,0.00,316.18,R,Alliance & Leicester Commercial Bank,No
Http://opendatacommunities.org/id/metropolitan-district-council/leeds,Leeds City Council,30/09/2016,Central & Corporate,Finance,Supplies and Services,Bank Charges,263,06-Sep-2016,1609-00685,0.00,2.02,R,Alliance & Leicester Commercial Bank,No
Http://opendatacommunities.org/id/metropolitan-district-council/leeds,Leeds City Council,30/09/2016,Central & Corporate,Finance,Supplies and Services,Bank Charges,263,06-Sep-2016,1609-00686,0.00,323.27,R,Alliance & Leicester Commercial Bank,No
Http://opendatacommunities.org/id/metropolitan-district-council/leeds,Leeds City Council,30/09/2016,Central & Corporate,Finance,Supplies and Services,Bank Charges,263,06-Sep-2016,1609-00687,0.00,299.48,R,Alliance & Leicester Commercial Bank,No
Http://opendatacommunities.org/id/metropolitan-district-council/leeds,Leeds City Council,30/09/2016,Central & Corporate,Finance,Supplies and Services,Bank Charges,263,06-Sep-2016,1609-00688,0.00,100.14,R,Alliance & Leicester Commercial Bank,No
Http://opendatacommunities.org/id/metropolitan-district-council/leeds,Leeds City Council,30/09/2016,City Development,Highways,Supplies and Services,Other Hired And Contracted Services,265,15-Sep-2016,1609-00689,0.00,9220.78,R,Allied Exploration & Geotechnics Ltd,No
Http://opendatacommunities.org/id/metropolitan-district-council/leeds,Leeds City Council,30/09/2016,City Development,Highways,Supplies and Services,Other Hired And Contracted Services,265,15-Sep-2016,1609-00690,0.00,12822.46,R,Allied Exploration & Geotechnics Ltd,No
Http://opendatacommunities.org/id/metropolitan-district-council/leeds,Leeds City Council,30/09/2016,City Development,Highways,Supplies and Services,Other Hired And Contracted Services,265,15-Sep-2016,1609-00691,0.00,385.50,R,Allied Exploration & Geotechnics Ltd,No
Http://opendatacommunities.org/id/metropolitan-district-council/leeds,Leeds City Council,30/09/2016,City Development,Highways,Supplies and Services,Other Hired And Contracted Services,265,19-Sep-2016,1609-00692,0.00,577.50,R,Allied Exploration & Geotechnics Ltd,No
Http://opendatacommunities.org/id/metropolitan-district-council/leeds,Leeds City Council,30/09/2016,City Development,Highways,Supplies and Services,Other Hired And Contracted Services,265,28-Sep-2016,1609-00693,0.00,671.00,R,Allied Exploration & Geotechnics Ltd,No
Http://opendatacommunities.org/id/metropolitan-district-council/leeds,Leeds City Council,30/09/2016,City Development,Highways,Supplies and Services,Other Hired And Contracted Services,265,29-Sep-2016,1609-00694,0.00,1386.20,R,Allied Exploration & Geotechnics Ltd,No
Http://opendatacommunities.org/id/metropolitan-district-council/leeds,Leeds City Council,30/09/2016,Adult Social Care,Services For Older People Under 65 P/Dis,Third Party Payments,Home Care,568,07-Sep-2016,1609-00695,0.00,126.10,R,Allied Healthcare,No
Http://opendatacommunities.org/id/metropolitan-district-council/leeds,Leeds City Council,30/09/2016,Adult Social Care,Services For Older People - 65 And Over,Third Party Payments,Home Care,568,12-Sep-2016,1609-00696,0.00,35.70,R,Allied Healthcare,No
Http://opendatacommunities.org/id/metropolitan-district-council/leeds,Leeds City Council,30/09/2016,Adult Social Care,Services For Older People - 65 And Over,Third Party Payments,Home Care,568,12-Sep-2016,1609-00697,0.00,35.70,R,Allied Healthcare,No
Http://opendatacommunities.org/id/metropolitan-district-council/leeds,Leeds City Council,30/09/2016,Adult Social Care,Services For Older People - 65 And Over,Third Party Payments,Home Care,568,15-Sep-2016,1609-00698,0.00,4112.90,R,Allied Healthcare,No
Http://opendatacommunities.org/id/metropolitan-district-council/leeds,Leeds City Council,30/09/2016,Adult Social Care,Services For Older People - 65 And Over,Third Party Payments,Home Care,568,15-Sep-2016,1609-00699,0.00,2088.30,R,Allied Healthcare,No
Http://opendatacommunities.org/id/metropolitan-district-council/leeds,Leeds City Council,30/09/2016,Adult Social Care,Services For Older People Under 65 P/Dis,Third Party Payments,Home Care,568,15-Sep-2016,1609-00700,0.00,302.61,R,Allied Healthcare,No
Http://opendatacommunities.org/id/metropolitan-district-council/leeds,Leeds City Council,30/09/2016,Adult Social Care,Services For Older People - 65 And Over,Third Party Payments,Home Care,568,15-Sep-2016,1609-00701,0.00,461.12,R,Allied Healthcare,No
Http://opendatacommunities.org/id/metropolitan-district-council/leeds,Leeds City Council,30/09/2016,Adult Social Care,Services For Older People - 65 And Over,Third Party Payments,Home Care,568,15-Sep-2016,1609-00702,0.00,16325.37,R,Allied Healthcare,No
Http://opendatacommunities.org/id/metropolitan-district-council/leeds,Leeds City Council,30/09/2016,Adult Social Care,Services For Older People Under 65 P/Dis,Third Party Payments,Home Care,568,15-Sep-2016,1609-00703,0.00,4242.45,R,Allied Healthcare,No
Http://opendatacommunities.org/id/metropolitan-district-council/leeds,Leeds City Council,30/09/2016,Adult Social Care,Services For Older People - 65 And Over,Third Party Payments,Home Care,568,15-Sep-2016,1609-00704,0.00,14998.36,R,Allied Healthcare,No
Http://opendatacommunities.org/id/metropolitan-district-council/leeds,Leeds City Council,30/09/2016,Adult Social Care,Services For Older People Under 65 P/Dis,Third Party Payments,Home Care,568,15-Sep-2016,1609-00705,0.00,11097.00,R,Allied Healthcare,No
Http://opendatacommunities.org/id/metropolitan-district-council/leeds,Leeds City Council as Accountable Body,30/09/2016,Social Services Pooled Budgets,Jcs For People With Learning Disabilitie,Third Party Payments,Home Care,568,22-Sep-2016,1609-00706,0.00,564.75,R,Allied Healthcare,No
Http://opendatacommunities.org/id/metropolitan-district-council/leeds,Leeds City Council as Accountable Body,30/09/2016,Social Services Pooled Budgets,Jcs For People With Learning Disabilitie,Third Party Payments,Home Care,568,22-Sep-2016,1609-00707,0.00,1111.71,R,Allied Healthcare,No
Http://opendatacommunities.org/id/metropolitan-district-council/leeds,Leeds City Council as Accountable Body,30/09/2016,Social Services Pooled Budgets,Jcs For People With Learning Disabilitie,Third Party Payments,Home Care,568,22-Sep-2016,1609-00708,0.00,15240.72,R,Allied Healthcare,No
Http://opendatacommunities.org/id/metropolitan-district-council/leeds,Leeds City Council as Accountable Body,30/09/2016,Social Services Pooled Budgets,Jcs For People With Learning Disabilitie,Third Party Payments,Home Care,568,22-Sep-2016,1609-00709,0.00,564.75,R,Allied Healthcare,No
Http://opendatacommunities.org/id/metropolitan-district-council/leeds,Leeds City Council as Accountable Body,30/09/2016,Social Services Pooled Budgets,Jcs For People With Learning Disabilitie,Third Party Payments,Home Care,568,22-Sep-2016,1609-00710,0.00,458.08,R,Allied Healthcare,No
Http://opendatacommunities.org/id/metropolitan-district-council/leeds,Leeds City Council as Accountable Body,30/09/2016,Social Services Pooled Budgets,Jcs For People With Learning Disabilitie,Third Party Payments,Home Care,568,22-Sep-2016,1609-00711,0.00,15129.28,R,Allied Healthcare,No
Http://opendatacommunities.org/id/metropolitan-district-council/leeds,Leeds City Council as Accountable Body,30/09/2016,Social Services Pooled Budgets,Jcs For People With Learning Disabilitie,Third Party Payments,Home Care,568,22-Sep-2016,1609-00712,0.00,564.75,R,Allied Healthcare,No
Http://opendatacommunities.org/id/metropolitan-district-council/leeds,Leeds City Council as Accountable Body,30/09/2016,Social Services Pooled Budgets,Jcs For People With Learning Disabilitie,Third Party Payments,Home Care,568,22-Sep-2016,1609-00713,0.00,-128.60,R,Allied Healthcare,No
Http://opendatacommunities.org/id/metropolitan-district-council/leeds,Leeds City Council as Accountable Body,30/09/2016,Social Services Pooled Budgets,Jcs For People With Learning Disabilitie,Third Party Payments,Home Care,568,22-Sep-2016,1609-00714,0.00,-241.55,R,Allied Healthcare,No
Http://opendatacommunities.org/id/metropolitan-district-council/leeds,Leeds City Council as Accountable Body,30/09/2016,Social Services Pooled Budgets,Jcs For People With Learning Disabilitie,Third Party Payments,Home Care,568,29-Sep-2016,1609-00715,0.00,564.75,R,Allied Healthcare,No
Http://opendatacommunities.org/id/metropolitan-district-council/leeds,Leeds City Council as Accountable Body,30/09/2016,Social Services Pooled Budgets,Jcs For People With Learning Disabilitie,Third Party Payments,Home Care,568,29-Sep-2016,1609-00716,0.00,571.03,R,Allied Healthcare,No
Http://opendatacommunities.org/id/metropolitan-district-council/leeds,Leeds City Council as Accountable Body,30/09/2016,Social Services Pooled Budgets,Jcs For People With Learning Disabilitie,Third Party Payments,Home Care,568,29-Sep-2016,1609-00717,0.00,15196.76,R,Allied Healthcare,No
Http://opendatacommunities.org/id/metropolitan-district-council/leeds,Leeds City Council as Accountable Body,30/09/2016,Social Services Pooled Budgets,Jcs For People With Learning Disabilitie,Third Party Payments,Home Care,568,29-Sep-2016,1609-00718,0.00,564.75,R,Allied Healthcare,No
Http://opendatacommunities.org/id/metropolitan-district-council/leeds,Leeds City Council,30/09/2016,Adult Social Care,Other Generic Services,Third Party Payments,Home Care,568,30-Sep-2016,1609-00719,0.00,17461.43,R,Allied Healthcare,No
Http://opendatacommunities.org/id/metropolitan-district-council/leeds,Leeds City Council as Accountable Body,30/09/2016,Social Services Pooled Budgets,Jcs For People With Learning Disabilitie,Third Party Payments,Home Care,568,30-Sep-2016,1609-00720,0.00,1157.90,R,Allied Healthcare,No
Http://opendatacommunities.org/id/metropolitan-district-council/leeds,Leeds City Council as Accountable Body,30/09/2016,Social Services Pooled Budgets,Jcs For People With Learning Disabilitie,Third Party Payments,Home Care,568,30-Sep-2016,1609-00721,0.00,652.60,R,Allied Healthcare,No
Http://opendatacommunities.org/id/metropolitan-district-council/leeds,Leeds City Council as Accountable Body,30/09/2016,Social Services Pooled Budgets,Jcs For People With Learning Disabilitie,Third Party Payments,Home Care,568,30-Sep-2016,1609-00722,0.00,1174.36,R,Allied Healthcare,No
Http://opendatacommunities.org/id/metropolitan-district-council/leeds,Leeds City Council as Accountable Body,30/09/2016,Social Services Pooled Budgets,Jcs For People With Learning Disabilitie,Third Party Payments,Home Care,568,30-Sep-2016,1609-00723,0.00,1067.93,R,Allied Healthcare,No
Http://opendatacommunities.org/id/metropolitan-district-council/leeds,Leeds City Council,30/09/2016,Public Health,Public Health,Third Party Payments,Public Health Commissioned Services,526,21-Sep-2016,1609-00724,0.00,513.00,R,Allied Pharmacy Ltd,No
Http://opendatacommunities.org/id/metropolitan-district-council/leeds,Leeds City Council,30/09/2016,Public Health,Public Health,Third Party Payments,Public Health Commissioned Services,526,27-Sep-2016,1609-00725,0.00,858.64,R,Allied Pharmacy Ltd,No
Http://opendatacommunities.org/id/metropolitan-district-council/leeds,Leeds City Council,30/09/2016,Strategic Landlord,Housing Management,Supplies and Services,Other Hired And Contracted Services,265,01-Sep-2016,1609-00726,0.00,109.12,R,Allpay Limted,No
Http://opendatacommunities.org/id/metropolitan-district-council/leeds,Leeds City Council,30/09/2016,Strategic Landlord,Housing Management,Supplies and Services,Other Hired And Contracted Services,265,30-Sep-2016,1609-00727,0.00,108.00,R,Allpay Limted,No
Http://opendatacommunities.org/id/metropolitan-district-council/leeds,Leeds City Council,30/09/2016,Environment & Housing,Strategic Housing Support  ,Supplies and Services,Other Hired And Contracted Services,265,05-Aug-2016,1609-00728,0.00,245.12,R,Allpay Moto (Callpay/ivr,Yes
Http://opendatacommunities.org/id/metropolitan-district-council/leeds,Leeds City Council,30/09/2016,Childrens Services,Safeguarding Targeted & Specialist  ,Supplies and Services,Bought In Professional Services,277,11-Aug-2016,1609-00729,0.00,502.19,R,Allpay Moto (Callpay/ivr,Yes
Http://opendatacommunities.org/id/metropolitan-district-council/leeds,Leeds City Council,30/09/2016,Central & Corporate,Democratic Services,Transport,Fuel (Non LCC Supplies),321,07-Sep-2016,1609-00730,0.00,116.01,R,Allstar Business Solutions Ltd,No
Http://opendatacommunities.org/id/metropolitan-district-council/leeds,Leeds City Council,30/09/2016,Childrens Services,Learning Skills & Universal,Transport,Fuel (Non LCC Supplies),321,07-Sep-2016,1609-00731,0.00,603.38,R,Allstar Business Solutions Ltd,No
Http://opendatacommunities.org/id/metropolitan-district-council/leeds,Leeds City Council,30/09/2016,Environment & Housing,Parks and Countryside,Transport,Fuel (Non LCC Supplies),321,07-Sep-2016,1609-00732,0.00,41.55,R,Allstar Business Solutions Ltd,No
Http://opendatacommunities.org/id/metropolitan-district-council/leeds,Leeds City Council,30/09/2016,City Development,Highways,Transport,Fuel (Non LCC Supplies),321,07-Sep-2016,1609-00733,0.00,335.24,R,Allstar Business Solutions Ltd,No
Http://opendatacommunities.org/id/metropolitan-district-council/leeds,Leeds City Council,30/09/2016,Environment & Housing,Waste Management,Transport,Fuel (Non LCC Supplies),321,07-Sep-2016,1609-00734,0.00,1.20,R,Allstar Business Solutions Ltd,No
Http://opendatacommunities.org/id/metropolitan-district-council/leeds,Leeds City Council,30/09/2016,Environment & Housing,Leeds Building Services,Transport,Fuel (Non LCC Supplies),321,12-Sep-2016,1609-00735,0.00,6.00,R,Allstar Business Solutions Ltd,No
Http://opendatacommunities.org/id/metropolitan-district-council/leeds,Leeds City Council,30/09/2016,City Development,Recreation,Supplies and Services,Other Hired And Contracted Services,265,29-Sep-2016,1609-00736,0.00,134.00,R,Alpha Awards Ltd,No
Http://opendatacommunities.org/id/metropolitan-district-council/leeds,Leeds City Council,30/09/2016,Childrens Services,Safeguarding Targeted & Specialist,Support Services,Legal Disbursements,411,02-Sep-2016,1609-00737,0.00,260.00,R,Alphabiolabs,No
Http://opendatacommunities.org/id/metropolitan-district-council/leeds,Leeds City Council,30/09/2016,Childrens Services,Safeguarding Targeted & Specialist,Support Services,Legal Disbursements,411,07-Sep-2016,1609-00738,0.00,136.25,R,Alphabiolabs,No
Http://opendatacommunities.org/id/metropolitan-district-council/leeds,Leeds City Council,30/09/2016,Childrens Services,Safeguarding Targeted & Specialist,Support Services,Legal Disbursements,411,07-Sep-2016,1609-00739,0.00,206.25,R,Alphabiolabs,No
Http://opendatacommunities.org/id/metropolitan-district-council/leeds,Leeds City Council,30/09/2016,Childrens Services,Safeguarding Targeted & Specialist,Support Services,Legal Disbursements,411,09-Sep-2016,1609-00740,0.00,136.25,R,Alphabiolabs,No
Http://opendatacommunities.org/id/metropolitan-district-council/leeds,Leeds City Council,30/09/2016,Childrens Services,Safeguarding Targeted & Specialist,Support Services,Legal Disbursements,411,09-Sep-2016,1609-00741,0.00,148.34,R,Alphabiolabs,No
Http://opendatacommunities.org/id/metropolitan-district-council/leeds,Leeds City Council,30/09/2016,Childrens Services,Safeguarding Targeted & Specialist,Support Services,Legal Disbursements,411,09-Sep-2016,1609-00742,0.00,110.00,R,Alphabiolabs,No
Http://opendatacommunities.org/id/metropolitan-district-council/leeds,Leeds City Council,30/09/2016,Childrens Services,Safeguarding Targeted & Specialist,Support Services,Legal Disbursements,411,09-Sep-2016,1609-00743,0.00,142.50,R,Alphabiolabs,No
Http://opendatacommunities.org/id/metropolitan-district-council/leeds,Leeds City Council,30/09/2016,Childrens Services,Safeguarding Targeted & Specialist,Support Services,Legal Disbursements,411,09-Sep-2016,1609-00744,0.00,247.50,R,Alphabiolabs,No
Http://opendatacommunities.org/id/metropolitan-district-council/leeds,Leeds City Council,30/09/2016,Childrens Services,Safeguarding Targeted & Specialist,Support Services,Legal Disbursements,411,14-Sep-2016,1609-00745,0.00,304.75,R,Alphabiolabs,No
Http://opendatacommunities.org/id/metropolitan-district-council/leeds,Leeds City Council,30/09/2016,Childrens Services,Safeguarding Targeted & Specialist,Support Services,Legal Disbursements,411,23-Sep-2016,1609-00746,0.00,799.00,R,Alphabiolabs,No
Http://opendatacommunities.org/id/metropolitan-district-council/leeds,Leeds City Council,30/09/2016,Childrens Services,Safeguarding Targeted & Specialist,Support Services,Legal Disbursements,411,23-Sep-2016,1609-00747,0.00,107.49,R,Alphabiolabs,No
Http://opendatacommunities.org/id/metropolitan-district-council/leeds,Leeds City Council,30/09/2016,Childrens Services,Safeguarding Targeted & Specialist,Support Services,Legal Disbursements,411,23-Sep-2016,1609-00748,0.00,85.00,R,Alphabiolabs,No
Http://opendatacommunities.org/id/metropolitan-district-council/leeds,Leeds City Council,30/09/2016,Childrens Services,Safeguarding Targeted & Specialist,Support Services,Legal Disbursements,411,29-Sep-2016,1609-00749,0.00,168.75,R,Alphabiolabs,No
Http://opendatacommunities.org/id/metropolitan-district-council/leeds,Leeds City Council,30/09/2016,Childrens Services,Safeguarding Targeted & Specialist,Third Party Payments,Placement Support,550,30-Sep-2016,1609-00750,0.00,345.00,R,Alphabiolabs,No
Http://opendatacommunities.org/id/metropolitan-district-council/leeds,Leeds City Council,30/09/2016,Childrens Services,Safeguarding Targeted & Specialist,Support Services,Legal Disbursements,411,30-Sep-2016,1609-00751,0.00,130.00,R,Alphabiolabs,No
Http://opendatacommunities.org/id/metropolitan-district-council/leeds,Leeds City Council,30/09/2016,Childrens Services,Safeguarding Targeted & Specialist  ,Supplies and Services,Food & Drink,231,06-Aug-2016,1609-00752,0.00,13.46,R,Alpine Coffee Shop,Yes
Http://opendatacommunities.org/id/metropolitan-district-council/leeds,Leeds City Council,30/09/2016,Public Health,Public Health,Third Party Payments,Public Health Commissioned Services,526,21-Sep-2016,1609-00753,0.00,3579.15,R,Al-Shafa Pharmacy,No
Http://opendatacommunities.org/id/metropolitan-district-council/leeds,Leeds City Council,30/09/2016,City Development,Libraries  Arts & Heritage,Supplies and Services,Other Hired And Contracted Services,265,16-Sep-2016,1609-00754,0.00,400.00,R,Altofts And Normanton Brass Band,No
Http://opendatacommunities.org/id/metropolitan-district-council/leeds,Leeds City Council,30/09/2016,Childrens Services,Safeguarding Targeted & Specialist  ,Supplies and Services,Miscellaneous Expenditure,208,06-Aug-2016,1609-00755,0.00,153.84,R,Alton Towers,Yes
Http://opendatacommunities.org/id/metropolitan-district-council/leeds,Leeds City Council,30/09/2016,Childrens Services,Safeguarding Targeted & Specialist  ,Supplies and Services,Miscellaneous Expenditure,208,08-Aug-2016,1609-00756,0.00,6.00,R,Alton Towers,Yes
Http://opendatacommunities.org/id/metropolitan-district-council/leeds,Leeds City Council,30/09/2016,Childrens Services,Partnership Development & Leadership,Employees,Training & Development,70,28-Sep-2016,1609-00757,0.00,1322.20,R,REDACTED PERSONAL DATA,No
Http://opendatacommunities.org/id/metropolitan-district-council/leeds,Leeds City Council,30/09/2016,Childrens Services,Learning Skills & Universal,Third Party Payments,Services Rendered By Other Organisations,511,09-Sep-2016,1609-00758,0.00,1629.60,R,Amanda Wharton,No
Http://opendatacommunities.org/id/metropolitan-district-council/leeds,Leeds City Council,30/09/2016,Environment & Housing,Leeds Building Services,Supplies and Services,Operational Materials,205,13-Sep-2016,1609-00759,0.00,175.00,R,Amari Plastics Plc,No
